Entity,Vendor Name,Expenditure Account ,Document Number,Clearing Date,Amount (�),Merchant Category
TRANSPORT TRADING LTD,RAIL SETTLEMENT PLAN,Rail Settlement Plan - PAYG Creditor,1004\1901686664,05 Aug 2022,"73,717,376.38",
RAIL FOR LONDON LIMITED,MTR CROSSRAIL,Franchise/Concession Fixed Fee,1020\5110148755,19 Aug 2022,"19,407,065.20",
RAIL FOR LONDON LIMITED,345 RAIL LEASING LIMITED,Vehicle Repairs & Maintenance,1020\5110142387,29 Jul 2022,"17,340,982.39",
RAIL FOR LONDON LIMITED,ARRIVA RAIL LONDON LTD,Franchise/Concession Fixed Fee,1020\5110148764,16 Aug 2022,"15,889,627.47",
LONDON BUS SERVICES LTD,METROLINE TRAVEL LTD,Bus Contract Payments,1006\1900047673,05 Aug 2022,"14,983,455.96",
LONDON BUS SERVICES LTD,ARRIVA LONDON NORTH LTD,Bus Contract Payments,1006\1900047661,05 Aug 2022,"13,014,343.33",
LONDON BUS SERVICES LTD,LONDON GENERAL TRANSPORT SERVICES,Bus Contract Payments,1006\1900047668,05 Aug 2022,"11,787,206.16",
LONDON BUS SERVICES LTD,LONDON UNITED BUSWAYS,Bus Contract Payments,1006\1900047671,05 Aug 2022,"10,461,873.01",
LONDON BUS SERVICES LTD,LONDON CENTRAL BUS COMPANY LTD ,Bus Contract Payments,1006\1900047667,05 Aug 2022,"10,156,429.88",
LONDON BUS SERVICES LTD,EAST LONDON BUS & COACH COMPANY LTD,Bus Contract Payments,1006\1900047665,05 Aug 2022,"9,224,609.93",
DOCKLANDS LIGHT RAILWAY,KEOLIS AMEY DOCKLANDS LIMITED,Franchise/Concession Fixed Fee,1012\5110149025,15 Aug 2022,"8,109,085.63",
TFL CORPORATE,TOWN LEGAL LLP,Purchase of Land & Buildings,1001\1900118654,28 Jul 2022,"7,127,659.90",
LONDON BUS SERVICES LTD,ARRIVA LONDON SOUTH LTD,Bus Contract Payments,1006\1900047662,05 Aug 2022,"7,021,688.91",
LONDON BUS SERVICES LTD,STAGECOACH SERVICES LIMITED,Bus Contract Payments,1006\1900047675,05 Aug 2022,"6,292,173.26",
LONDON BUS SERVICES LTD,ABELLIO LONDON LTD,Bus Contract Payments,1006\1900047659,05 Aug 2022,"6,274,517.59",
TRANSPORT TRADING LTD,CUBIC TRANSPORTATION SYSTEMS LTD,Cubic Oyster Contract Costs,1004\5110139090,05 Aug 2022,"5,639,829.44",
TFL CORPORATE,NETWORK RAIL INFRASTRUCTURE,National Rail Fixed Track Access Charges,1001\5110136966,12 Aug 2022,"4,959,949.95",
LONDON BUS SERVICES LTD,METROLINE TRAVEL LTD,Bus Contract Payments,1006\1900047746,19 Aug 2022,"4,645,039.71",
LONDON UNDERGROUND LTD,DRAGADOS S.A.,Civil Engineering Construction Works,1005\5110143268,17 Aug 2022,"4,459,314.31",
LONDON BUS SERVICES LTD,ABELLIO LONDON LTD,Bus Contract Payments,1006\1900047660,05 Aug 2022,"4,143,342.00",
LONDON BUS SERVICES LTD,METROLINE WEST LTD,Bus Contract Payments,1006\1900047674,05 Aug 2022,"4,099,273.42",
LONDON UNDERGROUND LTD,ALSTOM NL SERVICE PROVISION LTD,Fleet Tsssa Contract,1005\5110129606,25 Jul 2022,"4,047,855.98",
LONDON BUS SERVICES LTD,ARRIVA LONDON NORTH LTD,Bus Contract Payments,1006\1900047733,19 Aug 2022,"3,901,704.00",
LONDON BUS SERVICES LTD,METROBUS LIMITED,Bus Contract Payments,1006\1900047672,05 Aug 2022,"3,863,946.19",
LONDON UNDERGROUND LTD,DEPT FOR LEVELLINGUP HOUSING&COMMUN,Rates - Central Listed,1005\1900227095,17 Aug 2022,"3,840,000.00",
LONDON BUS SERVICES LTD,LONDON GENERAL TRANSPORT SERVICES,Bus Contract Payments,1006\1900047741,19 Aug 2022,"3,818,036.00",
TRANSPORT TRADING LTD,RAIL SETTLEMENT PLAN,Rail Settlement Plan - PAYG Creditor,1004\1901686665,05 Aug 2022,"3,812,526.21",
LONDON UNDERGROUND LTD,GBM SERVICES LTD,Operational Cleaning,1005\5110137600,27 Jul 2022,"3,548,758.42",
LUL NOMINEE SSL LIMITED,THALES GROUND TRANSPORTATION SYSTEM,Civil Engineering Construction Works,1031\5110146893,17 Aug 2022,"3,372,375.65",
LONDON BUS SERVICES LTD,LONDON CENTRAL BUS COMPANY LTD ,Bus Contract Payments,1006\1900047740,19 Aug 2022,"3,217,255.71",
LONDON BUS SERVICES LTD,BLUE TRIANGLE BUSES LTD,Bus Contract Payments,1006\1900047663,05 Aug 2022,"3,185,063.03",
SURFACE TRANSPORT CORP,ROAD MANAGEMENT SERVICES PLC,A13 PFI Service Costs,1002\5110148317,17 Aug 2022,"3,149,000.00",
DOCKLANDS LIGHT RAILWAY,THE DOCKLANDS LIGHT RAILWAY,Concession Maintenance Charge,1012\1900005383,26 Jul 2022,"3,090,000.00",
LONDON UNDERGROUND LTD,BRITISH TRANSPORT POLICE,MPS Employment Costs SM,1005\5110140837,17 Aug 2022,"2,992,496.31",
SURFACE TRANSPORT CORP,LONDON BOROUGH OF HAMM& FULHAM,Borough Services,1002\1900072154,09 Aug 2022,"2,930,000.00",
LONDON BUS SERVICES LTD,LONDON UNITED BUSWAYS,Bus Contract Payments,1006\1900047744,19 Aug 2022,"2,922,740.87",
LONDON UNDERGROUND LTD,BRITISH TRANSPORT POLICE,MPS Employment Costs SM,1005\5110141047,17 Aug 2022,"2,818,015.69",
LONDON BUS SERVICES LTD,EAST LONDON BUS & COACH COMPANY LTD,Bus Contract Payments,1006\1900047737,19 Aug 2022,"2,750,787.27",
LONDON BUS SERVICES LTD,LONDON SOVEREIGN LTD ,Bus Contract Payments,1006\1900047669,05 Aug 2022,"2,699,271.80",
LONDON UNDERGROUND LTD,THALES GROUND TRANSPORTATION SYSTEM,Computer Hardware,1005\5110129841,26 Jul 2022,"2,496,707.00",
LONDON UNDERGROUND LTD,ALSTOM NL SERVICE PROVISION LTD,TLL Lease Costs,1005\5110129536,27 Jul 2022,"2,491,206.55",
RAIL FOR LONDON LIMITED,BOMBARDIER TRANSPORT UK,Vehicle Repairs & Maintenance,1020\5110147024,10 Aug 2022,"2,404,252.27",
LONDON BUS SERVICES LTD,ARRIVA LONDON SOUTH LTD,Bus Contract Payments,1006\1900047734,19 Aug 2022,"2,235,837.44",
SURFACE TRANSPORT CORP,ROAD MANAGEMENT SERVICES PLC,A13 PFI Service Costs,1002\5110148323,17 Aug 2022,"2,121,545.19",
LONDON BUS SERVICES LTD,LONDON TRANSIT LIMITED,Bus Contract Payments,1006\1900047670,05 Aug 2022,"2,023,749.39",
LONDON BUS SERVICES LTD,ABELLIO LONDON LTD,Bus Contract Payments,1006\1900047731,19 Aug 2022,"1,997,160.75",
LONDON BUS SERVICES LTD,C T PLUS COMMUNITY INTEREST COMPANY,Bus Contract Payments,1006\1900047666,05 Aug 2022,"1,989,326.18",
LONDON BUS SERVICES LTD,STAGECOACH SERVICES LIMITED,Bus Contract Payments,1006\1900047748,19 Aug 2022,"1,901,784.85",
RAIL FOR LONDON LIMITED,BOMBARDIER TRANSPORT UK,Vehicle Repairs & Maintenance,1020\5110139567,27 Jul 2022,"1,788,194.67",
LONDON BUS SERVICES LTD,STAGECOACH LONDON,Bus Contract Payments,1006\1900047677,05 Aug 2022,"1,786,072.75",
RAIL FOR LONDON LIMITED,BOMBARDIER TRANSPORT UK,Vehicle Repairs & Maintenance,1020\5110143116,01 Aug 2022,"1,723,341.51",
SURFACE TRANSPORT CORP,MORGAN SINDALL  PLC,Contracted Services - Roads,1002\5110133568,29 Jul 2022,"1,716,668.54",
LUL NOMINEE BCV LIMITED,EKE-ELECTRONICS LTD.,Maintenance Materials,1033\5110141630,19 Aug 2022,"1,536,825.06",
LUL NOMINEE BCV LIMITED,OTIS LIMITED,MR Construction Costs,1033\5110145762,17 Aug 2022,"1,523,373.88",
RAIL FOR LONDON LIMITED,TRAM OPERATIONS LIMITED,Franchise/Concession Fixed Fee,1020\5110135205,29 Jul 2022,"1,508,480.77",
TRANSPORT TRADING LTD,THAMES CLIPPERS,Gross Sales Clearance,1004\800046236,28 Jul 2022,"1,484,936.50",
TRANSPORT TRADING LTD,HEATHROW EXPRESS ,JFT Suspense  - TTL,1004\1901686652,03 Aug 2022,"1,438,258.14",
SURFACE TRANSPORT CORP,KIER HIGHWAYS LTD T/A TARMACKIER JV,Building Maintenance & Repairs,1002\5110149769,17 Aug 2022,"1,424,549.82",
LONDON UNDERGROUND LTD,MORSON HUMAN RESOURCES LTD,Track General Maintenance,1005\5110145070,04 Aug 2022,"1,404,125.80",
LONDON UNDERGROUND LTD,EQUANS SERVICES LIMITED,Equipment Repairs & Maintenance,1005\5110145779,18 Aug 2022,"1,382,141.88",
LONDON BUS SERVICES LTD,METROBUS LIMITED,Bus Contract Payments,1006\1900047745,19 Aug 2022,"1,323,772.43",
LONDON BUS SERVICES LTD,METROLINE WEST LTD,Bus Contract Payments,1006\1900047747,19 Aug 2022,"1,288,864.30",
LONDON UNDERGROUND LTD,LANES GROUP PLC,Building Maintenance & Repairs,1005\5110143270,01 Aug 2022,"1,053,809.66",
LONDON BUS SERVICES LTD,ABELLIO LONDON LTD,Bus Contract Payments,1006\1900047732,19 Aug 2022,"1,051,767.63",
LONDON BUS SERVICES LTD,BLUE TRIANGLE BUSES LTD,Bus Contract Payments,1006\1900047735,19 Aug 2022,"1,032,712.79",
LONDON UNDERGROUND LTD,TELENT TECHNOLOGY SERVICES LTD,Security Equipment,1005\5110141703,27 Jul 2022,"1,031,007.53",
SURFACE TRANSPORT CORP,F M CONWAY LTD,Building Maintenance & Repairs,1002\5110149879,17 Aug 2022,"1,024,613.53",
LONDON UNDERGROUND LTD,FERROVIAL LAING O ROURKE ,Civil Engineering Construction Works,1005\5110131501,26 Jul 2022,"1,000,000.00",
LONDON UNDERGROUND LTD,ALSTOM NL SERVICE PROVISION LTD,TLL Lease Costs,1005\5110140932,27 Jul 2022,"972,677.77",
LONDON UNDERGROUND LTD,LANES GROUP PLC,Building Maintenance & Repairs,1005\5110140270,17 Aug 2022,"969,783.26",
TRANSPORT TRADING LTD,CUBIC TRANSPORTATION SYSTEMS LTD,Cubic Oyster Contract Costs,1004\5110139095,05 Aug 2022,"962,863.81",
SURFACE TRANSPORT CORP,ENTERPRISEMOUCHEL LTD ,Building Maintenance & Repairs,1002\5110149846,17 Aug 2022,"953,872.29",
SURFACE TRANSPORT CORP,F M CONWAY LTD,Building Maintenance & Repairs,1002\5110148690,17 Aug 2022,"903,051.15",
RAIL FOR LONDON LIMITED,MOTT MACDONALD LIMITED,Management & Support Consultancy,1020\5110129490,25 Jul 2022,"858,916.93",
LONDON BUS SERVICES LTD,LONDON SOVEREIGN LTD ,Bus Contract Payments,1006\1900047742,19 Aug 2022,"843,359.96",
CYCLE HIRE SCHEME,SERCO LTD,Concession Maintenance Charge,1016\5110129659,25 Jul 2022,"815,741.13",
CYCLE HIRE SCHEME,SERCO LTD,Concession Maintenance Charge,1016\5110137887,10 Aug 2022,"815,741.13",
SURFACE TRANSPORT CORP,CAPITA BUSINESS SERVICES LTD,Management & Support Consultancy,1002\5110129976,26 Jul 2022,"803,945.00",
RAIL FOR LONDON LIMITED,MOTT MACDONALD LIMITED,Management & Support Consultancy,1020\5110138979,16 Aug 2022,"798,779.34",
SURFACE TRANSPORT CORP,CAPITA BUSINESS SERVICES LTD,CCS Service Contract,1002\5110139599,16 Aug 2022,"798,057.46",
SURFACE TRANSPORT CORP,RINGWAY INFRASTRUCTURE SERVICES LTD,Building Maintenance & Repairs,1002\5110149900,17 Aug 2022,"781,134.74",
SURFACE TRANSPORT CORP,CAPITA BUSINESS SERVICES LTD,CCS Service Contract,1002\5110139592,16 Aug 2022,"763,895.97",
LONDON UNDERGROUND LTD,BALFOUR BEATTY RAIL LTD,MR Construction Costs,1005\5110135245,27 Jul 2022,"751,871.63",
LONDON BUS SERVICES LTD,DOCKLANDS MINIBUS LITD ,Bus Contract Payments,1006\1900047664,05 Aug 2022,"726,327.35",
LONDON UNDERGROUND LTD,THALES GROUND TRANSPORTATION SYSTEM,Computer Hardware,1005\5110129806,26 Jul 2022,"724,410.00",
RAIL FOR LONDON LIMITED,BOMBARDIER TRANSPORT UK,Vehicle Repairs & Maintenance,1020\5110143145,01 Aug 2022,"722,920.58",
LONDON UNDERGROUND LTD,MITIE FM LIMITED,Security Services (Guards),1005\5110144952,04 Aug 2022,"720,737.29",
LONDON UNDERGROUND LTD,EDF ENERGY,Electricity,1005\1900232185,25 Jul 2022,"716,725.16",
SURFACE TRANSPORT CORP,CAPITA BUSINESS SERVICES LTD,CCS Service Contract,1002\5110139585,16 Aug 2022,"687,951.62",
LONDON UNDERGROUND LTD,EDF ENERGY,Electricity,1005\1900232186,25 Jul 2022,"677,860.49",
SURFACE TRANSPORT CORP,F M CONWAY LTD,Civil Engineering Construction Works,1002\5110148124,17 Aug 2022,"673,598.21",
LONDON BUS SERVICES LTD,C T PLUS COMMUNITY INTEREST COMPANY,Bus Contract Payments,1006\1900047738,19 Aug 2022,"652,286.16",
LONDON UNDERGROUND LTD,CLESHAR CONTRACT SERVICES,Track General Maintenance,1005\5110145360,04 Aug 2022,"647,639.20",
LONDON UNDERGROUND LTD,MORSON HUMAN RESOURCES LTD,Track General Maintenance,1005\5110135685,26 Jul 2022,"639,017.75",
SURFACE TRANSPORT CORP,CAPITA BUSINESS SERVICES LTD,CCS Service Contract,1002\5110139588,16 Aug 2022,"630,248.95",
TRANSPORT TRADING LTD,LONDON BOROUGH OF SOUTHWARK,Rates,1004\1901686410,01 Aug 2022,"601,692.00",
LONDON BUS SERVICES LTD,STAGECOACH LONDON,Bus Contract Payments,1006\1900047739,19 Aug 2022,"594,056.11",
LONDON UNDERGROUND LTD,DYER & BUTLER LTD,Professional Engineering Services,1005\5110144880,18 Aug 2022,"587,579.02",
RAIL FOR LONDON LIMITED,MORGAN SINDALL  PLC,Civil Engineering Construction Works,1020\5110145761,17 Aug 2022,"586,749.89",
LONDON BUS SERVICES LTD,SULLIVAN BUS & COACH LIMITED,Bus Contract Payments,1006\1900047676,05 Aug 2022,"545,453.07",
LONDON UNDERGROUND LTD,EQUANS SERVICES LIMITED,Fire and Safety Equipment,1005\5110145536,18 Aug 2022,"532,766.17",
TFL CORPORATE,NETWORK RAIL INFRASTRUCTURE,Purchase of Land & Buildings,1001\1900123593,11 Aug 2022,"530,508.00",
DOCKLANDS LIGHT RAILWAY,BUCKINGHAM GROUP CONTRACTING LTD,Civil Engineering Construction Works,1012\5110141823,01 Aug 2022,"530,453.49",
DOCKLANDS LIGHT RAILWAY,CONST. Y AUX. DE FERROCARRILES S.A,Vehicle Purchases,1012\5110148515,12 Aug 2022,"510,805.17",
LONDON UNDERGROUND LTD,MORSON HUMAN RESOURCES LTD,Track General Maintenance,1005\5110146374,08 Aug 2022,"508,475.03",
LONDON BUS SERVICES LTD,LONDON TRANSIT LIMITED,Bus Contract Payments,1006\1900047743,19 Aug 2022,"507,980.88",
LONDON UNDERGROUND LTD,OTIS LIMITED,Escalators,1005\5110148770,15 Aug 2022,"504,618.56",
TRANSPORT TRADING LTD,BEMROSEBOOTH LIMITED,Ticket & Pass Production,1004\5110129777,25 Jul 2022,"496,620.00",
SURFACE TRANSPORT CORP,CAPITA BUSINESS SERVICES LTD,Management & Support Consultancy,1002\5110129979,26 Jul 2022,"490,945.00",
SURFACE TRANSPORT CORP,LONDON COUNCILS,Taxicard Funding,1002\1900072369,27 Jul 2022,"464,391.34",
SURFACE TRANSPORT CORP,F M CONWAY LTD,Building Maintenance & Repairs,1002\5110137895,28 Jul 2022,"460,465.41",
SURFACE TRANSPORT CORP,CAPITA BUSINESS SERVICES LTD,CCS Service Contract,1002\5110139583,16 Aug 2022,"460,278.11",
LUL NOMINEE BCV LIMITED,SIEMENS MOBILITY LIMITED,Signalling Systems,1033\5110138837,27 Jul 2022,"458,258.89",
LONDON UNDERGROUND LTD,TAYLOR WOODROW CONS BAM NUTTAL LTD,MR Construction Costs,1005\5110140696,08 Aug 2022,"457,438.65",
TFL CORPORATE,HCL TECHNOLOGIES UK LTD,Manage IT Services,1001\5110137728,18 Aug 2022,"452,028.00",
RAIL FOR LONDON LIMITED,BOMBARDIER TRANSPORT UK,Vehicle Repairs & Maintenance,1020\5110148106,16 Aug 2022,"448,176.50",
SURFACE TRANSPORT CORP,CAPITA BUSINESS SERVICES LTD,CCS Service Contract,1002\5110139648,16 Aug 2022,"446,701.02",
SURFACE TRANSPORT CORP,KIER HIGHWAYS LTD T/A TARMACKIER JV,Building Maintenance & Repairs,1002\5110148070,19 Aug 2022,"445,538.37",
SURFACE TRANSPORT CORP,EUROVIA CONTRACTING SOUTH,Contracted Services - Roads,1002\5110148099,17 Aug 2022,"420,606.22",
SURFACE TRANSPORT CORP,CAPITA BUSINESS SERVICES LTD,CCS Service Contract,1002\5110139651,16 Aug 2022,"418,982.37",
RAIL FOR LONDON LIMITED,BOMBARDIER TRANSPORT UK,Vehicle Repairs & Maintenance,1020\5110143131,01 Aug 2022,"417,078.38",
TRANSPORT TRADING LTD,MITIE FM LIMITED,Security Services (Guards),1004\5110136720,01 Aug 2022,"415,020.68",
TRANSPORT TRADING LTD,MITIE FM LIMITED,Security Services (Guards),1004\5110144886,04 Aug 2022,"415,020.68",
SURFACE TRANSPORT CORP,ENTERPRISEMOUCHEL LTD ,Contracted Services - Roads,1002\5110143389,02 Aug 2022,"405,553.41",
LONDON UNDERGROUND LTD,CLESHAR CONTRACT SERVICES,Track General Maintenance,1005\5110145196,04 Aug 2022,"404,809.28",
LONDON UNDERGROUND LTD,DELATIM LIMITED,MR Construction Costs,1005\5110141849,28 Jul 2022,"404,574.23",
DOCKLANDS LIGHT RAILWAY,UK POWER NETWORKS LTD,Electricity,1012\5110143380,02 Aug 2022,"400,000.00",
SURFACE TRANSPORT CORP,EDF ENERGY,Electricity,1002\5110134886,25 Jul 2022,"399,059.79",
LONDON UNDERGROUND LTD,EDF ENERGY,Electricity,1005\1900232184,25 Jul 2022,"389,506.70",
DOCKLANDS LIGHT RAILWAY,MACE MACRO LTD,Professional Engineering Services,1012\5110139548,17 Aug 2022,"384,586.50",
SURFACE TRANSPORT CORP,CAPITA BUSINESS SERVICES LTD,CCS Service Contract,1002\5110139582,16 Aug 2022,"377,967.99",
TRANSPORT TRADING LTD,THAMES CLIPPERS,Gross Sales Clearance,1004\800046235,28 Jul 2022,"376,624.00",
SURFACE TRANSPORT CORP,CAPITA BUSINESS SERVICES LTD,CCS Service Contract,1002\5110139579,16 Aug 2022,"371,730.53",
PUBLIC CARRIAGE OFFICE,NSL LIMITED,PCO Outsourced Services,1003\5110136691,27 Jul 2022,"364,687.29",
LONDON UNDERGROUND LTD,TELENT TECHNOLOGY SERVICES LTD,Security Equipment,1005\5110139021,16 Aug 2022,"363,839.20",
TRANSPORT TRADING LTD,GBM SERVICES LTD,Office Cleaning,1004\5110137466,25 Jul 2022,"359,586.21",
LONDON UNDERGROUND LTD,CLESHAR CONTRACT SERVICES,Track General Maintenance,1005\5110148470,12 Aug 2022,"357,741.30",
DOCKLANDS LIGHT RAILWAY,ORTON LIFTS & ESCALATORS,Civil Engineering Construction Works,1012\5110144947,05 Aug 2022,"350,300.95",
LONDON UNDERGROUND LTD,EQUANS SERVICES LIMITED,Equipment Repairs & Maintenance,1005\5110145533,18 Aug 2022,"350,034.75",
SURFACE TRANSPORT CORP,COSTAIN LTD,Contracted Services - Highway Bridges,1002\5110147497,10 Aug 2022,"348,461.25",
RFL (IINFRASTRUCTURE) LTD,SIEMENS MOBILITY LIMITED,Professional Engineering Services,1025\5110129650,25 Jul 2022,"345,145.00",
LONDON UNDERGROUND LTD,GT GETTAXI (UK) LTD,Travel to/from work (Unsocial Hours),1005\5110147305,10 Aug 2022,"336,932.31",
TRANSPORT TRADING LTD,LONDON BOROUGH OF NEWHAM ,Rates,1004\1901686376,01 Aug 2022,"332,500.00",
RAIL FOR LONDON LIMITED,MTR CROSSRAIL,MR Construction Costs,1020\5110132580,01 Aug 2022,"332,326.60",
LONDON UNDERGROUND LTD,MORSON HUMAN RESOURCES LTD,Track General Maintenance,1005\5110148693,12 Aug 2022,"321,031.68",
RFL (IINFRASTRUCTURE) LTD,TALLERES ZITRON SA UK BRANCH,Professional Engineering Services,1025\5110135474,01 Aug 2022,"318,655.06",
TRANSPORT TRADING LTD,VINCI CONSTRUCTION UK LTD,Building Maintenance & Repairs,1004\5110147936,19 Aug 2022,"316,228.04",
SURFACE TRANSPORT CORP,SIEMENS TRAFFIC CONTROLS,Cameras,1002\5110133264,27 Jul 2022,"309,126.97",
LONDON UNDERGROUND LTD,MULALLEY & CO LTD,Planning & Development Consultancy,1005\5110136528,25 Jul 2022,"299,353.57",
TRANSPORT TRADING LTD,PA CONSULTING SERVICES LTD,IT Consultancy,1004\5110130185,26 Jul 2022,"297,087.50",
RAIL FOR LONDON LIMITED,BUCKINGHAM GROUP CONTRACTING LTD,Civil Engineering Construction Works,1020\5110142339,03 Aug 2022,"292,726.53",
CYCLE HIRE SCHEME,SERCO LTD,Concession Maintenance Charge,1016\5110131557,27 Jul 2022,"292,131.92",
SURFACE TRANSPORT CORP,RINGWAY JACOBS LIMITED,Road Maintenance,1002\5110142170,02 Aug 2022,"290,561.44",
TFL CORPORATE,GALLAGHER BASSETT INTERNAT. LTD,Claim Settlements,1001\1900119673,28 Jul 2022,"289,900.24",
LONDON UNDERGROUND LTD,MORSON HUMAN RESOURCES LTD,Track General Maintenance,1005\5110135690,26 Jul 2022,"287,366.45",
TFL CORPORATE,BYTES SOFTWARE SERVICES,Computer Hardware,1001\5110129674,26 Jul 2022,"286,566.95",
SURFACE TRANSPORT CORP,SIEMENS TRAFFIC CONTROLS,Cameras,1002\5110133258,27 Jul 2022,"285,884.34",
TFL CORPORATE,AXA PPP HEALTHCARE,General Insurance,1001\5110150174,17 Aug 2022,"282,281.55",
LONDON UNDERGROUND LTD,THALES GROUND TRANSPORTATION SYSTEM,Civil Engineering Construction Works,1005\5110146990,17 Aug 2022,"279,136.82",
LONDON UNDERGROUND LTD,HAYLEY GROUP PLC,BAU CPAF concumables Consolidated invoice,1005\5110149515,16 Aug 2022,"278,728.78",
LONDON UNDERGROUND LTD,PANASONIC MARKETING EUROPE GMBH,Contracted Services Buildings,1005\5110136810,01 Aug 2022,"278,670.58",
LONDON UNDERGROUND LTD,BAE SYSTEMS AEI,Software Maintenance,1005\5110136989,10 Aug 2022,"275,000.00",
TFL CORPORATE,INSIGHT DIRECT UK LIMITED,Software Maintenance,1001\5110136816,05 Aug 2022,"274,099.66",
LONDON UNDERGROUND LTD,MULALLEY & CO LTD,Planning & Development Consultancy,1005\5110149896,17 Aug 2022,"268,501.17",
SURFACE TRANSPORT CORP,ROAD MANAGEMENT SERVICES PLC,A13 PFI Service Costs,1002\5110148330,17 Aug 2022,"261,940.89",
LUL NOMINEE BCV LIMITED,CIRCET (UK) LIMITED,MR Construction Costs,1033\5110141598,04 Aug 2022,"260,989.41",
LONDON UNDERGROUND LTD,THALES GROUND TRANSPORTATION SYSTEM,Computer Hardware,1005\5110141367,17 Aug 2022,"258,359.00",
SURFACE TRANSPORT CORP,EDF ENERGY,Electricity,1002\5110134896,25 Jul 2022,"258,039.46",
LONDON UNDERGROUND LTD,MORS SMITT STS SIGNALS,Fleet,1005\5110144699,03 Aug 2022,"255,230.14",
LUL NOMINEE BCV LIMITED,OTIS LIMITED,MR Construction Costs,1033\5110150637,19 Aug 2022,"253,355.04",
LONDON UNDERGROUND LTD,OTIS LIMITED,Escalators,1005\5110145186,15 Aug 2022,"246,580.37",
TFL CORPORATE,DAISY CORPORATE SERVICES TRADINGLTD,Maintenance of Telecommunications Equipment,1001\5110133122,01 Aug 2022,"245,207.13",
LONDON UNDERGROUND LTD,WAVE UTILITIES,Water,1005\1900232516,28 Jul 2022,"243,896.31",
LONDON BUS SERVICES LTD,GBM SERVICES LTD,Office Cleaning,1006\5110137519,25 Jul 2022,"241,465.87",
LONDON UNDERGROUND LTD,1STINRAIL LIMITED,Track General Maintenance,1005\5110141862,01 Aug 2022,"239,458.77",
SURFACE TRANSPORT CORP,GREATER LONDON AUTHORITY ,CCS Service Contract,1002\5110138470,10 Aug 2022,"237,731.44",
LONDON BUS SERVICES LTD,DOCKLANDS MINIBUS LITD ,Bus Contract Payments,1006\1900047736,19 Aug 2022,"237,053.19",
TRANSPORT TRADING LTD,LONDON BOROUGH OF GREENWICH,Rates,1004\1901686473,01 Aug 2022,"236,208.00",
SURFACE TRANSPORT CORP,SOPRA STERIA LTD,Computer Software,1002\5110138434,19 Aug 2022,"235,520.84",
LONDON UNDERGROUND LTD,SCHINDLER LTD,Lift Maintenance,1005\5110141860,28 Jul 2022,"230,164.27",
LONDON UNDERGROUND LTD,EDF ENERGY,Electricity,1005\1900232180,02 Aug 2022,"226,721.28",
RFL (IINFRASTRUCTURE) LTD,KNORR-BREMSE RAIL SYSTEMS LTD,Building Maintenance & Repairs,1025\5110130076,27 Jul 2022,"226,102.94",
SURFACE TRANSPORT CORP,TELENT TECHNOLOGY SERVICES LTD,Traffic Signals,1002\5110137333,10 Aug 2022,"225,697.81",
SURFACE TRANSPORT CORP,VCCP GROUP LLP,Agency Fees Paid To Marketing Agencies,1002\5110138807,16 Aug 2022,"225,450.00",
SURFACE TRANSPORT CORP,KIER HIGHWAYS LTD T/A TARMACKIER JV,Contracted Services - Roads,1002\5110148352,17 Aug 2022,"220,909.56",
LONDON UNDERGROUND LTD,TRACKWORK RESOURCES LTD,Track General Maintenance,1005\5110148091,11 Aug 2022,"219,867.83",
LONDON UNDERGROUND LTD,EDF ENERGY,Electricity,1005\1900232181,02 Aug 2022,"219,397.80",
PUBLIC CARRIAGE OFFICE,NSL LIMITED,PCO Outsourced Services,1003\5110139033,03 Aug 2022,"218,548.54",
LONDON UNDERGROUND LTD,SCHINDLER LTD,Lift Maintenance,1005\5110141875,05 Aug 2022,"218,263.69",
SURFACE TRANSPORT CORP,SIEMENS MOBILITY LIMITED,Traffic Signals,1002\5110142377,09 Aug 2022,"218,212.75",
SURFACE TRANSPORT CORP,HYDER CONSULTING (UK) LTD,Management & Support Consultancy,1002\5110147317,10 Aug 2022,"217,536.93",
LONDON UNDERGROUND LTD,CPC PROJECT SERVICES LLP,MR Construction Costs,1005\5110142006,02 Aug 2022,"214,855.50",
LUL NOMINEE SSL LIMITED,CIRCET (UK) LIMITED,Civil Engineering Construction Works,1031\5110134686,26 Jul 2022,"212,027.03",
SURFACE TRANSPORT CORP,SIEMENS TRAFFIC CONTROLS,Maintenance of Plant & Equipment,1002\5110142440,10 Aug 2022,"210,266.59",
SURFACE TRANSPORT CORP,TELENT TECHNOLOGY SERVICES LTD,Maintenance of Plant & Equipment,1002\5110137263,10 Aug 2022,"209,754.50",
SURFACE TRANSPORT CORP,TELENT TECHNOLOGY SERVICES LTD,Traffic Signals,1002\5110137264,10 Aug 2022,"208,040.02",
RAIL FOR LONDON LIMITED,NETWORK RAIL INFRASTRUCTURE,Civil Engineering Construction Works,1020\5110140680,17 Aug 2022,"206,461.35",
SURFACE TRANSPORT CORP,CSTS LTD,Maintenance of Plant & Equipment,1002\5110145021,17 Aug 2022,"206,139.90",
LONDON UNDERGROUND LTD,OTIS LIMITED,Escalators,1005\5110150684,19 Aug 2022,"204,992.83",
DOCKLANDS LIGHT RAILWAY,BCM  CONSTRUCTION LIMITED,Civil Engineering Construction Works,1012\5110140723,26 Jul 2022,"201,740.97",
LONDON UNDERGROUND LTD,MCGINLEY SUPPORT SERVICES LTD,Track General Maintenance,1005\5110146138,05 Aug 2022,"201,653.81",
SURFACE TRANSPORT CORP,CADENT GAS LIMITED,Section 159 Payments,1002\1900072519,10 Aug 2022,"197,343.56",
RAIL FOR LONDON LIMITED,NETWORK RAIL INFRASTRUCTURE,Professional Engineering Services,1020\5110130836,27 Jul 2022,"196,225.00",
TFL CORPORATE,DELOITTE MCS LIMITED ,Management & Support Consultancy,1001\5110140074,17 Aug 2022,"196,200.00",
TRANSPORT TRADING LTD,NOVACROFT DIRECT LTD,Ticket & Pass Production,1004\5110144074,08 Aug 2022,"195,492.86",
RFL (IINFRASTRUCTURE) LTD,NCC SERVICES LIMITED,Manage IT Services,1025\5110133222,02 Aug 2022,"193,001.67",
TFL CORPORATE,AMAZON WEB SERVICES EMEA SARL,Manage IT Services,1001\5110138950,28 Jul 2022,"190,280.57",
LONDON UNDERGROUND LTD,QUATTRO LTD ,Non Recyclable Waste Disposal/Refuse Collection,1005\5110122724,29 Jul 2022,"189,152.84",
DOCKLANDS LIGHT RAILWAY,THALES GROUND TRANSPORTATION SYSTEM,Civil Engineering Construction Works,1012\5110137549,09 Aug 2022,"186,656.09",
DOCKLANDS LIGHT RAILWAY,THALES GROUND TRANSPORTATION SYSTEM,Civil Engineering Construction Works,1012\5110137551,09 Aug 2022,"186,656.09",
LONDON UNDERGROUND LTD,SOLUTION RAIL LIMITED,MR Construction Costs,1005\5110144198,18 Aug 2022,"185,398.09",
LONDON UNDERGROUND LTD,THALES GROUND TRANSPORTATION SYSTEM,Computer Hardware,1005\5110129714,26 Jul 2022,"181,575.00",
DOCKLANDS LIGHT RAILWAY,KEOLIS AMEY DOCKLANDS LIMITED,Professional Engineering Services,1012\5110139085,26 Jul 2022,"181,499.19",
LONDON UNDERGROUND LTD,ALSTOM NL SERVICE PROVISION LTD,TLL Lease Costs,1005\5110129597,25 Jul 2022,"180,842.94",
TFL CORPORATE,EFFICIO LIMITED,Management & Support Consultancy,1001\5110133113,27 Jul 2022,"179,633.75",
SURFACE TRANSPORT CORP,ROAD MANAGEMENT SERVICES PLC,A13 PFI Service Costs,1002\5110148320,17 Aug 2022,"177,000.00",
TFL CORPORATE,AMAZON WEB SERVICES EMEA SARL,Manage IT Services,1001\5110149575,16 Aug 2022,"176,708.50",
TTL PROPERTIES LTD,NCP SERVICES LTD,Property Management Fees,1040\5110137336,10 Aug 2022,"175,882.44",
LONDON UNDERGROUND LTD,MITIE FM LIMITED,Security Services (Guards),1005\5110142017,28 Jul 2022,"175,496.26",
SURFACE TRANSPORT CORP,GTT-EMEA LIMITED,Telephony Fixed,1002\5110137564,02 Aug 2022,"174,541.63",
LUL NOMINEE SSL LIMITED,CIRCET (UK) LIMITED,Civil Engineering Construction Works,1031\5110139041,03 Aug 2022,"174,228.38",
TRANSPORT TRADING LTD,VINCI CONSTRUCTION UK LTD,Building Maintenance & Repairs,1004\5110146855,09 Aug 2022,"168,997.19",
LONDON UNDERGROUND LTD,TOTAL GAS & POWER LTD,Gas,1005\1900232553,29 Jul 2022,"165,189.16",
TRANSPORT TRADING LTD,JOURNEYCALL LTD,Ticket & Pass Production,1004\5110144242,18 Aug 2022,"164,711.10",
LONDON BUS SERVICES LTD,TRUEFORM ENGINEERING LTD,Purchase of Bus Shelters,1006\5110138791,25 Jul 2022,"163,683.22",
LONDON UNDERGROUND LTD,MORSON HUMAN RESOURCES LTD,Track General Maintenance,1005\5110135692,26 Jul 2022,"162,557.26",
LONDON UNDERGROUND LTD,MORS SMITT STS SIGNALS,Fleet,1005\5110150372,18 Aug 2022,"160,870.00",
SURFACE TRANSPORT CORP,GEOPLACE LLP,Section 159 Payments,1002\1900072372,27 Jul 2022,"160,375.00",
SURFACE TRANSPORT CORP,SOUTHERN GAS NETWORK PLC ,Section 159 Payments,1002\1900072399,26 Jul 2022,"158,582.00",
LONDON BUS SERVICES LTD,SULLIVAN BUS & COACH LIMITED,Bus Contract Payments,1006\1900047749,19 Aug 2022,"158,211.69",
TRANSPORT TRADING LTD,SODEXO LTD,Caterers Service Charges,1004\5110145109,19 Aug 2022,"158,106.51",
TRANSPORT TRADING LTD,SODEXO LTD,Caterers Service Charges,1004\5110128211,25 Jul 2022,"157,011.28",
RAIL FOR LONDON LIMITED,NETWORK RAIL INFRASTRUCTURE,National Rail Contribution,1020\5110133080,01 Aug 2022,"156,950.53",
DOCKLANDS LIGHT RAILWAY,ASH CIVIL CONSTRUCTION,Civil Engineering Construction Works,1012\5110138191,29 Jul 2022,"154,553.73",
DOCKLANDS LIGHT RAILWAY,KEOLIS AMEY DOCKLANDS LIMITED,Professional Engineering Services,1012\5110144157,05 Aug 2022,"154,265.88",
LONDON UNDERGROUND LTD,MORGAN SINDALL  PLC,MR Construction Costs,1005\5110145189,09 Aug 2022,"152,769.69",
LUL NOMINEE SSL LIMITED,PROGRESS RAIL SERVICES UK LTD,Track General Maintenance,1031\5110131749,25 Jul 2022,"152,680.00",
SURFACE TRANSPORT CORP,COSTAIN LTD,Contracted Services - Highway Bridges,1002\5110147588,10 Aug 2022,"149,937.68",
SURFACE TRANSPORT CORP,LONDON BOROUGH OF CROYDON,Borough Services - Claim Against Pr Yr Accrual,1002\1900071962,16 Aug 2022,"149,527.59",
SURFACE TRANSPORT CORP,KIER HIGHWAYS LTD T/A TARMACKIER JV,Civil Engineering Construction Works,1002\5110149771,17 Aug 2022,"148,118.12",
LONDON UNDERGROUND LTD,BP OIL UK LIMITED,Vehicle Operating Leases,1005\5110132903,27 Jul 2022,"147,605.18",
TFL CORPORATE,PROBRAND LTD,Software Maintenance,1001\5110111534,05 Aug 2022,"144,329.00",
SURFACE TRANSPORT CORP,REDSPEED INTERNATIONAL  LTD,Maintenance of Plant & Equipment,1002\5110139682,17 Aug 2022,"143,729.09",
LONDON UNDERGROUND LTD,1STINRAIL LIMITED,Track General Maintenance,1005\5110141864,01 Aug 2022,"143,500.00",
LUL NOMINEE BCV LIMITED,GALLDRIS SERVICES LIMITED,Civil Engineering Construction Works,1033\5110141484,27 Jul 2022,"140,726.76",
SURFACE TRANSPORT CORP,ASITE SOLUTIONS LTD,Software Maintenance,1002\5110130974,27 Jul 2022,"140,100.00",
RFL (IINFRASTRUCTURE) LTD,SIEMENS MOBILITY LIMITED,Building Maintenance & Repairs,1025\5110129712,25 Jul 2022,"139,398.95",
RAIL FOR LONDON LIMITED,MOTT MACDONALD LIMITED,Management & Support Consultancy,1020\5110135811,08 Aug 2022,"136,695.17",
TFL CORPORATE,VERSION 1 SOLUTIONS LIMITED,Software Maintenance,1001\5110144923,04 Aug 2022,"136,564.50",
TRANSPORT TRADING LTD,LONDON BOROUGH OF LEWISHAM,Rates,1004\1901686469,01 Aug 2022,"135,660.00",
TFL CORPORATE,STRATEGIC RAIL CONSULTANTS LTD,Management & Support Consultancy,1001\5110145101,08 Aug 2022,"133,710.13",
SURFACE TRANSPORT CORP,TELENT TECHNOLOGY SERVICES LTD,Maintenance of Plant & Equipment,1002\5110137259,10 Aug 2022,"133,453.09",
LONDON UNDERGROUND LTD,HAYLEY GROUP PLC,BAU CPAF concumables Consolidated invoice,1005\5110149517,16 Aug 2022,"132,495.93",
LONDON UNDERGROUND LTD,BRUSH TRACTION LTD,Fleet,1005\5110132665,27 Jul 2022,"132,416.00",
LONDON UNDERGROUND LTD,Z-TECH CONTROL SYSTEMS LTD,MR Construction Costs,1005\5110148293,11 Aug 2022,"131,863.15",
LONDON UNDERGROUND LTD,MORSON HUMAN RESOURCES LTD,Track General Maintenance,1005\5110135688,26 Jul 2022,"131,548.98",
TFL CORPORATE,KPMG,Software Maintenance,1001\5110132607,27 Jul 2022,"129,204.00",
LONDON BUS SERVICES LTD,MITIE CLEANING & ENVIRONMENTAL,Building Maintenance & Repairs,1006\5110132618,27 Jul 2022,"128,819.33",
LONDON UNDERGROUND LTD,QUATTRO LTD ,Non Recyclable Waste Disposal/Refuse Collection,1005\5110142089,28 Jul 2022,"127,094.93",
LONDON UNDERGROUND LTD,THALES GROUND TRANSPORTATION SYSTEM,Civil Engineering Construction Works,1005\5110147025,17 Aug 2022,"126,845.38",
LONDON UNDERGROUND LTD,COONEEN DEFENCE LTD,Uniforms,1005\5110144455,11 Aug 2022,"126,532.23",
TRANSPORT TRADING LTD,VINCI CONSTRUCTION UK LTD,Building Maintenance & Repairs,1004\5110146821,09 Aug 2022,"126,128.65",
LONDON UNDERGROUND LTD,BOMBARDIER TRANSPORT UK,Maintenance Materials,1005\5110140789,26 Jul 2022,"124,796.86",
LONDON UNDERGROUND LTD,BOMBARDIER TRANSPORT UK,Maintenance Materials,1005\5110148729,17 Aug 2022,"124,796.86",
DOCKLANDS LIGHT RAILWAY,HYDER CONSULTING (UK) LTD,Civil Engineering Construction Works,1012\5110142003,03 Aug 2022,"124,439.30",
TFL CORPORATE,AMAZON WEB SERVICES EMEA SARL,Manage IT Services,1001\5110142093,28 Jul 2022,"124,312.29",
TFL CORPORATE,ATKINS LIMITED,Management & Support Consultancy,1001\5110133940,03 Aug 2022,"124,194.38",
LONDON UNDERGROUND LTD,HAYLEY GROUP PLC,BAU CPAF concumables Consolidated invoice,1005\5110140968,28 Jul 2022,"123,491.80",
LONDON UNDERGROUND LTD,GPX ENGINEERING LTD,Track General Maintenance,1005\5110150162,17 Aug 2022,"123,403.11",
LONDON UNDERGROUND LTD,DURA COMPOSITES LTD,Maintenance Materials,1005\5110097078,15 Aug 2022,"123,143.30",
TFL CORPORATE,COMPUTACENTER PLC,Computer Hardware,1001\5110138308,15 Aug 2022,"122,658.18",
RAIL FOR LONDON LIMITED,MITIE FM LIMITED,Security Services (Guards),1020\5110142130,28 Jul 2022,"121,954.10",
LONDON UNDERGROUND LTD,HAYLEY GROUP PLC,BAU CPAF concumables Consolidated invoice,1005\5110141221,28 Jul 2022,"121,943.46",
LONDON BUS SERVICES LTD,TRUEFORM ENGINEERING LTD,Purchase of Bus Shelters,1006\5110142144,01 Aug 2022,"121,270.06",
LONDON UNDERGROUND LTD,SCHINDLER LTD,Lift Maintenance,1005\5110143031,10 Aug 2022,"120,678.65",
TFL CORPORATE,AMAZON WEB SERVICES EMEA SARL,Manage IT Services,1001\5110149593,16 Aug 2022,"120,646.64",
LUL NOMINEE BCV LIMITED,EKE-ELECTRONICS LTD.,Maintenance Materials,1033\5110141490,19 Aug 2022,"120,274.91",
LONDON UNDERGROUND LTD,QUATTRO LTD ,Vehicle Operating Leases,1005\5110109279,28 Jul 2022,"119,226.64",
LUL NOMINEE SSL LIMITED,TIMKEN EUROPE,Fleet,1031\5110135454,05 Aug 2022,"119,200.00",
LONDON UNDERGROUND LTD,TELEFONIKA KABLE SA,Signals & Electricals stock issues,1005\5110139106,10 Aug 2022,"118,000.90",
LONDON UNDERGROUND LTD,BRECKNELL WILLIS & CO LTD,Track General Maintenance,1005\5110132574,27 Jul 2022,"117,874.80",
LONDON BUS SERVICES LTD,VINCI CONSTRUCTION UK LTD,Building Maintenance & Repairs,1006\5110142127,28 Jul 2022,"117,706.56",
LONDON UNDERGROUND LTD,OCL RAIL LTD,MR Construction Costs,1005\5110140869,04 Aug 2022,"117,402.88",
RAIL FOR LONDON LIMITED,BOMBARDIER TRANSPORT UK,Vehicle Repairs & Maintenance,1020\5110136101,27 Jul 2022,"115,277.63",
TFL CORPORATE,EFFICIO LIMITED,Management & Support Consultancy,1001\5110133585,27 Jul 2022,"112,641.25",
LONDON UNDERGROUND LTD,EQUANS SERVICES LIMITED,Equipment Repairs & Maintenance,1005\5110145098,18 Aug 2022,"110,793.90",
SURFACE TRANSPORT CORP,TELENT TECHNOLOGY SERVICES LTD,Traffic Signals,1002\5110137319,10 Aug 2022,"109,680.20",
DOCKLANDS LIGHT RAILWAY,ASH CIVIL CONSTRUCTION,Civil Engineering Construction Works,1012\5110145812,11 Aug 2022,"109,571.21",
TFL CORPORATE, EXCELERATED S2P,Software Maintenance,1001\5110140760,17 Aug 2022,"109,500.00",
SURFACE TRANSPORT CORP,TELENT TECHNOLOGY SERVICES LTD,Traffic Signals,1002\5110137301,10 Aug 2022,"109,396.78",
LONDON BUS SERVICES LTD,TRUEFORM ENGINEERING LTD,Purchase of Bus Shelters,1006\5110138792,25 Jul 2022,"108,994.37",
LONDON UNDERGROUND LTD,MERSEN UK TEESSIDE LIMITED,Maintenance Materials,1005\5110129202,25 Jul 2022,"108,688.36",
TFL CORPORATE,COMPUTACENTER PLC,Computer Consumables,1001\5110138095,10 Aug 2022,"107,733.60",
SURFACE TRANSPORT CORP,LONDON COUNCILS,PCN and Penalty Fare Processing,1002\5110140577,02 Aug 2022,"107,119.00",
RFL (IINFRASTRUCTURE) LTD,EQUANS SERVICES LIMITED,Fire and Safety Equipment,1025\5110145535,18 Aug 2022,"106,898.99",
TRANSPORT TRADING LTD,LONDON BOROUGH OF CROYDON,Rates,1004\1901686374,01 Aug 2022,"106,400.00",
LONDON UNDERGROUND LTD,ALSTOM NL SERVICE PROVISION LTD,Fleet Tsssa Contract,1005\5110129602,25 Jul 2022,"106,219.22",
LONDON UNDERGROUND LTD,CLOSE BROTHERS RAIL LTD,Building Maintenance & Repairs,1005\5110148081,16 Aug 2022,"105,888.70",
LONDON UNDERGROUND LTD,UK POWER NETWORKS LTD,MR Construction Costs,1005\5110150191,18 Aug 2022,"105,166.76",
LONDON UNDERGROUND LTD,STRATEGIC RAIL CONSULTANTS LTD,MR Construction Costs,1005\5110145900,09 Aug 2022,"104,685.19",
RAIL FOR LONDON LIMITED,OVE ARUP & PARTNERS LTD,Management & Support Consultancy,1020\5110134000,03 Aug 2022,"103,950.00",
SURFACE TRANSPORT CORP,"SYSTEMS ENGINEERING, ASSESSMENT",Computer Software,1002\5110129702,26 Jul 2022,"103,706.56",
DOCKLANDS LIGHT RAILWAY,AECOM LTD,Professional Engineering Services,1012\5110140720,10 Aug 2022,"103,285.43",
LONDON BUS SERVICES LTD,TRUEFORM ENGINEERING LTD,Purchase of Bus Shelters,1006\5110142133,01 Aug 2022,"102,077.18",
DOCKLANDS LIGHT RAILWAY,PROGRESS RAIL SERVICES UK LTD,Civil Engineering Construction Works,1012\5110137990,10 Aug 2022,"101,385.00",
LONDON UNDERGROUND LTD,PCG ASSOCIATES LIMITED,Signalling Systems,1005\5110148321,16 Aug 2022,"101,145.50",
TFL CORPORATE,INSIGHT DIRECT UK LIMITED,Software Maintenance,1001\5110141902,08 Aug 2022,"101,113.17",
LONDON UNDERGROUND LTD,DELATIM LIMITED,Building Maintenance & Repairs,1005\5110149622,16 Aug 2022,"100,802.55",
TFL CORPORATE,HCL TECHNOLOGIES UK LTD,Computer Software,1001\5110142842,17 Aug 2022,"99,546.75",
LONDON UNDERGROUND LTD,DUCTCLEAN (UK) LTD T/A DCUK FM,Track General Maintenance,1005\5110135646,28 Jul 2022,"99,208.21",
TRANSPORT TRADING LTD,GRAYSONS HOSPITALITY LIMITED,Caterers Service Charges,1004\5110144147,11 Aug 2022,"98,680.67",
LONDON UNDERGROUND LTD,CLESHAR CONTRACT SERVICES,Track General Maintenance,1005\5110145194,04 Aug 2022,"97,947.09",
LONDON UNDERGROUND LTD,NETWORK RAIL INFRASTRUCTURE,National Rail Variable Track Access Charges,1005\5110132018,27 Jul 2022,"97,902.49",
LUL NOMINEE BCV LIMITED,SIEMENS MOBILITY LIMITED,Signalling Systems,1033\5110141821,27 Jul 2022,"96,911.03",
LONDON UNDERGROUND LTD,CACI LTD,Software Maintenance,1005\5110131434,27 Jul 2022,"96,775.00",
LONDON UNDERGROUND LTD,PROBRAND LTD,Software Maintenance,1005\5110120770,10 Aug 2022,"96,721.00",
TFL CORPORATE,DELOITTE MCS LIMITED ,Management & Support Consultancy,1001\5110140073,17 Aug 2022,"95,375.00",
LONDON UNDERGROUND LTD,CLESHAR CONTRACT SERVICES,Horticultural Expenses,1005\5110147565,10 Aug 2022,"95,275.00",
LONDON UNDERGROUND LTD,Z-TECH CONTROL SYSTEMS LTD,MR Construction Costs,1005\5110135246,12 Aug 2022,"94,341.63",
LONDON UNDERGROUND LTD,OCTAVIUS INFRASTRUCTURE LTD,MR Construction Costs,1005\5110144400,03 Aug 2022,"92,823.76",
SURFACE TRANSPORT CORP,RIVERLINX LIMITED,Civil Engineering Construction Works,1002\5110135331,17 Aug 2022,"92,055.00",
LONDON UNDERGROUND LTD,COONEEN DEFENCE LTD,Uniforms,1005\5110144441,12 Aug 2022,"91,809.19",
LONDON UNDERGROUND LTD,COONEEN DEFENCE LTD,Uniforms,1005\5110144442,12 Aug 2022,"90,860.86",
LONDON UNDERGROUND LTD,DELATIM LIMITED,MR Construction Costs,1005\5110149825,17 Aug 2022,"90,593.10",
CYCLE HIRE SCHEME,KELLY TECHNICAL SERVICES LIMITED,Concession Maintenance Charge,1016\5110141948,17 Aug 2022,"90,544.97",
TFL CORPORATE,MEDIAEDGE,Radio TV Press Poster Cinema Airtime And Space,1001\5110137914,02 Aug 2022,"89,790.20",
LUL NOMINEE SSL LIMITED,CH2M HILL UNITED KINGDOM,Civil Engineering Construction Works,1031\5110138686,15 Aug 2022,"88,916.51",
TFL CORPORATE,JACOBS U.K LIMITED,Civil Engineering Construction Works,1001\5110133619,02 Aug 2022,"88,876.00",
LONDON UNDERGROUND LTD,CLESHAR CONTRACT SERVICES,Civil Engineering Construction Works,1005\5110145192,18 Aug 2022,"88,413.78",
LONDON UNDERGROUND LTD,TPS LTD,Signalling Systems,1005\5110150618,19 Aug 2022,"88,360.00",
TRANSPORT TRADING LTD,BNP PARIBAS REAL ESTATE ADV & PROP,Management & Support Consultancy,1004\5110129579,19 Aug 2022,"87,692.31",
TFL CORPORATE,ASITE SOLUTIONS LTD,Manage IT Services,1001\5110131014,27 Jul 2022,"87,150.00",
TFL CORPORATE,SUSTRANS LTD,Marketing Strategy And Consultancy,1001\5110131064,27 Jul 2022,"86,618.00",
LONDON UNDERGROUND LTD,MORSON HUMAN RESOURCES LTD,Track General Maintenance,1005\5110146371,08 Aug 2022,"86,500.40",
LONDON BUS SERVICES LTD,BALLYMORE (EDGWARE) LIMITED,Planning & Development Consultancy,1006\5110143354,04 Aug 2022,"85,822.16",
LONDON UNDERGROUND LTD,THALES GROUND TRANSPORTATION SYSTEM,Computer Hardware,1005\5110129732,26 Jul 2022,"85,652.00",
DOCKLANDS LIGHT RAILWAY,HYDER CONSULTING (UK) LTD,Civil Engineering Construction Works,1012\5110139015,16 Aug 2022,"85,581.13",
VICTORIA COACH STATN LTD,NATIONAL EXPRESS LTD,VCS Repayments & Commission,1008\1900004671,27 Jul 2022,"84,804.11",
LONDON UNDERGROUND LTD,BIFFA WASTE SERVICES LIMITED,Non Recyclable Waste Disposal/Refuse Collection,1005\5110136893,02 Aug 2022,"84,234.12",
TFL CORPORATE,SKY HIGH PLC,Transport Planning Consultancy & Services,1001\5110142158,17 Aug 2022,"84,180.28",
LUL NOMINEE SSL LIMITED,CIRCET (UK) LIMITED,Professional Engineering Services,1031\5110144245,18 Aug 2022,"82,927.74",
LONDON UNDERGROUND LTD,BYWATERS (LEYTON) LIMITED,Non Recyclable Waste Disposal/Refuse Collection,1005\5110132513,27 Jul 2022,"82,770.18",
SURFACE TRANSPORT CORP,LONDON BOROUGH OF HARROW,Borough Services - Claim Against Pr Yr Accrual,1002\1900072196,17 Aug 2022,"82,226.00",
LONDON UNDERGROUND LTD,NETWORK RAIL INFRASTRUCTURE,Traction Current,1005\5110132479,27 Jul 2022,"81,727.98",
LONDON UNDERGROUND LTD,TOTAL GAS & POWER LTD,Gas,1005\1900232554,29 Jul 2022,"81,404.45",
CYCLE HIRE SCHEME,SERCO LTD,Concession Maintenance Charge,1016\5110131553,27 Jul 2022,"81,396.00",
RFL (IINFRASTRUCTURE) LTD,MORSON HUMAN RESOURCES LTD,Management & Support Consultancy,1025\5110139492,17 Aug 2022,"81,273.69",
SURFACE TRANSPORT CORP,TELENT TECHNOLOGY SERVICES LTD,Maintenance of Plant & Equipment,1002\5110137294,10 Aug 2022,"81,030.43",
LONDON RIVER SERVICES LTD,COUNTY BUILDING SERVICES LTD,Building Maintenance & Repairs,1007\5110149522,16 Aug 2022,"80,630.10",
SURFACE TRANSPORT CORP,TELENT TECHNOLOGY SERVICES LTD,Road Maintenance,1002\5110140053,17 Aug 2022,"80,051.09",
LONDON BUS SERVICES LTD,EQUALITY WORKS LIMITED,Management & Support Consultancy,1006\5110147647,18 Aug 2022,"79,725.00",
TRANSPORT TRADING LTD,GLOBAL MEDIA GROUP SERVICES LTD,Purchase of Associates Loan Notes (Activity),1004\5110094600,12 Aug 2022,"79,668.33",
LONDON UNDERGROUND LTD,LANES GROUP PLC,Building Maintenance & Repairs,1005\5110139175,03 Aug 2022,"79,145.14",
RFL (IINFRASTRUCTURE) LTD,MORSON HUMAN RESOURCES LTD,Management & Support Consultancy,1025\5110134149,03 Aug 2022,"79,004.40",
RFL (IINFRASTRUCTURE) LTD,MORSON HUMAN RESOURCES LTD,Management & Support Consultancy,1025\5110136896,10 Aug 2022,"77,976.33",
SURFACE TRANSPORT CORP,CAPITA BUSINESS SERVICES LTD,Management & Support Consultancy,1002\5110129974,26 Jul 2022,"77,908.00",
TFL CORPORATE,DELOITTE MCS LIMITED ,Management & Support Consultancy,1001\5110140061,17 Aug 2022,"77,500.00",
SURFACE TRANSPORT CORP,TELENT TECHNOLOGY SERVICES LTD,Traffic Signals,1002\5110129727,25 Jul 2022,"77,443.07",
TFL CORPORATE, EXCELERATED S2P,Software Maintenance,1001\5110129108,25 Jul 2022,"77,000.00",
DOCKLANDS LIGHT RAILWAY,ASHURST LLP,Legal Fees,1012\5110145068,04 Aug 2022,"76,345.86",
SURFACE TRANSPORT CORP,LONDON BOROUGH OF REDBRIDGE,Borough Services - Claim Against Pr Yr Accrual,1002\1900072133,02 Aug 2022,"76,000.00",
LONDON UNDERGROUND LTD,ALSTOM NL SERVICE PROVISION LTD,Fleet Tsssa Contract,1005\5110129607,25 Jul 2022,"75,566.93",
LONDON UNDERGROUND LTD,COONEEN DEFENCE LTD,Uniforms,1005\5110144453,11 Aug 2022,"75,500.30",
TFL CORPORATE,HP INC UK LTD,Manage IT Services,1001\5110129978,08 Aug 2022,"75,335.35",
LUL NOMINEE SSL LIMITED,BOMBARDIER TRANSPORT UK,Fleet,1031\5110137142,10 Aug 2022,"75,200.00",
TTL PROPERTIES LTD,THE SKILLS CENTRE LONDON LIMITED,Planning & Development Consultancy,1040\5110150035,17 Aug 2022,"75,000.00",
TTL PROPERTIES LTD,THE SKILLS CENTRE LONDON LIMITED,Planning & Development Consultancy,1040\5110150036,17 Aug 2022,"75,000.00",
TFL CORPORATE,HP INC UK LTD,Manage IT Services,1001\5110103606,08 Aug 2022,"74,995.78",
TFL CORPORATE,SNP UK,Software Maintenance,1001\5110146323,09 Aug 2022,"74,850.00",
LONDON UNDERGROUND LTD,GPX ENGINEERING LTD,Track General Maintenance,1005\5110150253,18 Aug 2022,"74,693.93",
TRANSPORT TRADING LTD,GLOBAL MEDIA GROUP SERVICES LTD,Purchase of Associates Loan Notes (Activity),1004\5110129891,26 Jul 2022,"74,372.63",
TFL CORPORATE,HP INC UK LTD,Manage IT Services,1001\5110141544,10 Aug 2022,"74,181.59",
LONDON UNDERGROUND LTD,ARRIVA LONDON NORTH LTD,Rail Replacement Service Costs,1005\5110140939,12 Aug 2022,"73,764.58",
TFL CORPORATE,HP INC UK LTD,Manage IT Services,1001\5110148833,15 Aug 2022,"73,731.79",
TFL CORPORATE,EQUINIX (UK) LTD,Manage IT Services,1001\5110133052,27 Jul 2022,"73,227.82",
SURFACE TRANSPORT CORP,TELENT TECHNOLOGY SERVICES LTD,Maintenance of Plant & Equipment,1002\5110137281,10 Aug 2022,"72,857.29",
DOCKLANDS LIGHT RAILWAY,TRACK AND BUILD LTD.,Civil Engineering Construction Works,1012\5110148478,15 Aug 2022,"72,401.76",
LONDON UNDERGROUND LTD,CACI LTD,Computer Software,1005\5110137877,10 Aug 2022,"72,000.00",
LONDON UNDERGROUND LTD,TPS LTD,Signalling Systems,1005\5110140671,19 Aug 2022,"71,768.00",
LUL NOMINEE SSL LIMITED,CIRCET (UK) LIMITED,Civil Engineering Construction Works,1031\5110134095,25 Jul 2022,"71,194.59",
LUL NOMINEE SSL LIMITED,SCHAEFFLER (UK) LTD,Fleet,1031\5110134911,03 Aug 2022,"70,788.00",
TFL CORPORATE,SIGNALLING INSTALLATION & MAINT,Management & Support Consultancy,1001\5110130683,27 Jul 2022,"70,560.00",
LONDON UNDERGROUND LTD,NETWORK RAIL INFRASTRUCTURE,Traction Current,1005\5110132396,27 Jul 2022,"70,469.75",
LONDON UNDERGROUND LTD,CAPITAL CITY COLLEGE GROUP,Staff Training,1005\5110136970,27 Jul 2022,"70,200.00",
LONDON UNDERGROUND LTD,ENERVEO LTD,MR Construction Costs,1005\5110143870,02 Aug 2022,"69,910.23",
LONDON UNDERGROUND LTD,SCHINDLER LTD,Escalators,1005\5110137898,02 Aug 2022,"69,887.55",
LONDON UNDERGROUND LTD,SIEMENS MOBILITY LIMITED,Signalling Systems,1005\5110129214,25 Jul 2022,"69,780.00",
LONDON UNDERGROUND LTD,KONE PLC,MR Construction Costs,1005\5110141036,26 Jul 2022,"69,460.97",
RAIL FOR LONDON LIMITED,BOMBARDIER TRANSPORT UK,Vehicle Repairs & Maintenance,1020\5110143123,01 Aug 2022,"69,296.91",
TFL CORPORATE,DELOITTE MCS LIMITED ,Management & Support Consultancy,1001\5110140069,17 Aug 2022,"69,275.00",
SURFACE TRANSPORT CORP,TELENT TECHNOLOGY SERVICES LTD,Maintenance of Plant & Equipment,1002\5110133197,02 Aug 2022,"69,142.46",
LONDON UNDERGROUND LTD,CLESHAR CONTRACT SERVICES,Horticultural Expenses,1005\5110141601,27 Jul 2022,"68,900.00",
LONDON UNDERGROUND LTD,THALES GROUND TRANSPORTATION SYSTEM,Civil Engineering Construction Works,1005\5110147029,19 Aug 2022,"68,699.07",
RFL (IINFRASTRUCTURE) LTD,EQUANS SERVICES LIMITED,Fire and Safety Equipment,1025\5110132791,18 Aug 2022,"68,598.70",
RFL (IINFRASTRUCTURE) LTD,NETWORK RAIL INFRASTRUCTURE,Building Maintenance & Repairs,1025\5110134690,03 Aug 2022,"68,586.00",
RFL (IINFRASTRUCTURE) LTD,EQUANS SERVICES LIMITED,Fire and Safety Equipment,1025\5110143226,01 Aug 2022,"68,305.35",
TFL CORPORATE,MEDIAEDGE,Radio TV Press Poster Cinema Airtime And Space,1001\5110137916,02 Aug 2022,"68,061.19",
LONDON TRANSPORT MUSEUM,MITIE FM LIMITED,Security Services (Guards),1011\5110142111,28 Jul 2022,"68,034.48",
DIAL A RIDE,EALING COMMUNITY TRANSPORT LTD,Operator Costs,1010\5110136193,28 Jul 2022,"67,833.03",
LONDON UNDERGROUND LTD,NETWORK RAIL INFRASTRUCTURE,Signalling Systems,1005\5110145928,05 Aug 2022,"67,643.11",
SURFACE TRANSPORT CORP,REDSPEED INTERNATIONAL  LTD,Maintenance of Plant & Equipment,1002\5110139691,17 Aug 2022,"67,580.63",
TFL CORPORATE, EXCELERATED S2P,Software Maintenance,1001\5110130284,27 Jul 2022,"67,500.00",
LONDON UNDERGROUND LTD,OVE ARUP & PARTNERS LTD,Contractors,1005\5110134003,03 Aug 2022,"67,468.00",
LONDON UNDERGROUND LTD,COONEEN DEFENCE LTD,Uniforms,1005\5110144452,11 Aug 2022,"67,450.45",
LUL NOMINEE SSL LIMITED,SCHAEFFLER (UK) LTD,Fleet,1031\5110133586,27 Jul 2022,"67,248.60",
TFL CORPORATE,EFFICIO LIMITED,Management & Support Consultancy,1001\5110133106,27 Jul 2022,"67,125.00",
RFL (IINFRASTRUCTURE) LTD,INSIGHT DIRECT UK LIMITED,Software Maintenance,1025\5110139517,12 Aug 2022,"66,832.63",
LONDON UNDERGROUND LTD,SOLUTION RAIL LIMITED,MR Construction Costs,1005\5110141868,01 Aug 2022,"66,639.72",
TFL CORPORATE,MEDIAEDGE,Radio TV Press Poster Cinema Airtime And Space,1001\5110142143,11 Aug 2022,"66,500.00",
TFL CORPORATE,XANTA LIMITED,Management & Support Consultancy,1001\5110144928,09 Aug 2022,"66,176.25",
LONDON BUS SERVICES LTD,F M CONWAY LTD,Building Maintenance & Repairs,1006\5110148045,17 Aug 2022,"65,725.81",
LONDON UNDERGROUND LTD,NETWORK RAIL INFRASTRUCTURE,National Rail Variable Track Access Charges,1005\5110132401,27 Jul 2022,"65,424.65",
TRANSPORT TRADING LTD,LENDLEASE JACOBS JOINT VENTURE,Legal Fees,1004\1901686372,02 Aug 2022,"65,000.00",
TFL CORPORATE,MEDIAEDGE,Radio TV Press Poster Cinema Airtime And Space,1001\5110129097,01 Aug 2022,"64,999.83",
LONDON UNDERGROUND LTD,BYWATERS (LEYTON) LIMITED,Non Recyclable Waste Disposal/Refuse Collection,1005\5110134030,27 Jul 2022,"64,981.98",
VICTORIA COACH STATN LTD,GBM SERVICES LTD,Office Cleaning,1008\5110137468,25 Jul 2022,"64,800.02",
TFL CORPORATE,PERTEMPS RECRUITMENT PARTNERSHIPLTD,Recruitment Agency Fees,1001\5110144888,19 Aug 2022,"64,775.00",
TFL CORPORATE,STRATEGIC RAIL CONSULTANTS LTD,Management & Support Consultancy,1001\5110141912,29 Jul 2022,"64,096.00",
DOCKLANDS LIGHT RAILWAY,DYER & BUTLER LTD,Civil Engineering Construction Works,1012\5110145193,04 Aug 2022,"64,026.08",
TFL CORPORATE,WSO2 UK LIMITED,Software Maintenance,1001\5110131045,27 Jul 2022,"63,900.74",
LONDON UNDERGROUND LTD,UK POWER NETWORKS LTD,Building Maintenance & Repairs,1005\5110143033,17 Aug 2022,"63,861.85",
LONDON UNDERGROUND LTD,DUCTCLEAN (UK) LTD T/A DCUK FM,Track General Maintenance,1005\5110137983,28 Jul 2022,"63,788.03",
TFL CORPORATE,EQUINIX (UK) LTD,Manage IT Services,1001\5110133044,27 Jul 2022,"63,705.00",
LONDON UNDERGROUND LTD,ALPHABET (GB) LIMITED,Operating Lease Expense - Motor Vehicles,1005\5110132931,27 Jul 2022,"63,270.38",
RAIL FOR LONDON LIMITED,345 RAIL LEASING LIMITED,Vehicle Repairs & Maintenance,1020\5110143207,10 Aug 2022,"63,211.98",
LONDON UNDERGROUND LTD,TELENT TECHNOLOGY SERVICES LTD,Cameras,1005\5110142403,29 Jul 2022,"62,970.16",
RFL (IINFRASTRUCTURE) LTD,MORSON HUMAN RESOURCES LTD,Management & Support Consultancy,1025\5110132002,27 Jul 2022,"62,739.90",
LONDON UNDERGROUND LTD,GPX ENGINEERING LTD,Track General Maintenance,1005\5110150249,18 Aug 2022,"62,287.60",
RAIL FOR LONDON LIMITED,NETWORK RAIL INFRASTRUCTURE,Maintenance of Plant & Equipment,1020\5110134670,03 Aug 2022,"61,745.77",
RAIL FOR LONDON LIMITED,MOTT MACDONALD LIMITED,Management & Support Consultancy,1020\5110139697,17 Aug 2022,"61,467.91",
TFL CORPORATE,STRATEGIC RAIL CONSULTANTS LTD,Management & Support Consultancy,1001\5110146871,10 Aug 2022,"61,375.39",
SURFACE TRANSPORT CORP,CAPITA BUSINESS SERVICES LTD,CCS Service Contract,1002\5110139586,16 Aug 2022,"61,169.96",
LONDON UNDERGROUND LTD,RJC (UK) LTD,Escalators,1005\5110139155,17 Aug 2022,"61,152.00",
RAIL FOR LONDON LIMITED,MITIE FM LIMITED,Security Services (Guards),1020\5110142128,01 Aug 2022,"61,016.60",
LUL NOMINEE SSL LIMITED,SKF (UK) LTD,Fleet,1031\5110133750,02 Aug 2022,"60,686.40",
LONDON BUS SERVICES LTD,UNIVERSITY BUS LTD,Bus Contract Payments,1006\1900047678,05 Aug 2022,"60,625.58",
LONDON BUS SERVICES LTD,TAIT EUROPE LTD,Radio Systems Equipment & Maintenance,1006\5110139030,11 Aug 2022,"60,595.83",
TRANSPORT TRADING LTD,CLEVELAND SCOTT YORK LLP,Legal Fees,1004\5110146841,16 Aug 2022,"60,577.41",
LONDON UNDERGROUND LTD,EQUANS SERVICES LIMITED,Fire and Safety Equipment,1005\5110145565,05 Aug 2022,"60,268.93",
LUL NOMINEE BCV LIMITED,SOLUTION RAIL LIMITED,MR Construction Costs,1033\5110141872,04 Aug 2022,"60,033.25",
SURFACE TRANSPORT CORP,CAPITA BUSINESS SERVICES LTD,CCS Service Contract,1002\5110139573,16 Aug 2022,"59,825.00",
LONDON UNDERGROUND LTD,COSTAIN LTD,Contracted Services Buildings,1005\5110147164,18 Aug 2022,"59,651.64",
SURFACE TRANSPORT CORP,TELENT TECHNOLOGY SERVICES LTD,Traffic Signals,1002\5110129538,25 Jul 2022,"59,606.26",
LONDON UNDERGROUND LTD,CIRCET (UK) LIMITED,Contracted Services Buildings,1005\5110148094,18 Aug 2022,"59,347.98",
LUL NOMINEE BCV LIMITED,KINGSBEECH LTD,Track General Maintenance,1033\5110144655,08 Aug 2022,"59,263.50",
TRANSPORT TRADING LTD,CORPORATE DOCUMENT SERVICES LTD,Printing,1004\5110147581,19 Aug 2022,"58,720.26",
LUL NOMINEE BCV LIMITED,PROGRESS RAIL SERVICES UK LTD,Track General Maintenance,1033\5110131754,27 Jul 2022,"58,160.00",
LONDON BUS SERVICES LTD,TELENT TECHNOLOGY SERVICES LTD,Maintenance of Plant & Equipment,1006\5110136439,10 Aug 2022,"58,117.93",
LONDON UNDERGROUND LTD,PROGRESS RAIL SERVICES UK LTD,Track General Maintenance,1005\5110134329,03 Aug 2022,"57,858.48",
LONDON UNDERGROUND LTD,SPECIALIST ENGINEERING SERVICES,Equipment Repairs & Maintenance,1005\5110136693,27 Jul 2022,"57,850.00",
LONDON UNDERGROUND LTD,SPOOR-TECH LTD,MR Construction Costs,1005\5110143053,18 Aug 2022,"56,759.67",
TFL CORPORATE,DELOITTE MCS LIMITED ,Management & Support Consultancy,1001\5110140067,17 Aug 2022,"56,400.00",
RAIL FOR LONDON LIMITED,AVONDALE ENVIRONMENTAL SERVICES LTD,Management & Support Consultancy,1020\5110149410,19 Aug 2022,"55,850.00",
LONDON UNDERGROUND LTD,ARMADILLO LED,Signalling Systems,1005\5110128242,27 Jul 2022,"55,688.00",
LONDON UNDERGROUND LTD,ALSTOM NL SERVICE PROVISION LTD,Civil Engineering Construction Works,1005\5110129570,25 Jul 2022,"55,360.16",
DOCKLANDS LIGHT RAILWAY,TRACK AND BUILD LTD.,Civil Engineering Construction Works,1012\5110148453,16 Aug 2022,"55,109.24",
TRANSPORT TRADING LTD,JOURNEYCALL LTD,Ticket & Pass Production,1004\5110146246,18 Aug 2022,"55,065.68",
LUL NOMINEE BCV LIMITED,HAYLEY GROUP PLC,Track General Maintenance,1033\5110130598,27 Jul 2022,"54,870.00",
TFL CORPORATE,DELOITTE MCS LIMITED ,Management & Support Consultancy,1001\5110140062,17 Aug 2022,"54,000.00",
PUBLIC CARRIAGE OFFICE,MAYA LESTER QC,Legal Fees,1003\5110143242,01 Aug 2022,"54,000.00",
LONDON BUS SERVICES LTD,TELENT TECHNOLOGY SERVICES LTD,Security Equipment,1006\5110147374,17 Aug 2022,"53,966.00",
LONDON BUS SERVICES LTD,TELENT TECHNOLOGY SERVICES LTD,Security Equipment,1006\5110149624,16 Aug 2022,"53,966.00",
LONDON BUS SERVICES LTD,EDF ENERGY,Electricity,1006\5110138162,03 Aug 2022,"53,934.79",
RFL (IINFRASTRUCTURE) LTD,TELENT TECHNOLOGY SERVICES LTD,Fire and Safety Equipment,1025\5110133675,02 Aug 2022,"53,800.80",
TRANSPORT TRADING LTD,PAYCOMPLETE UK LTD,Cash Handling & Processing,1004\5110133071,01 Aug 2022,"53,303.53",
TRANSPORT TRADING LTD,PAYCOMPLETE UK LTD,Cash Handling & Processing,1004\5110133073,01 Aug 2022,"53,303.53",
DOCKLANDS LIGHT RAILWAY,POD-TRAK LTD,Civil Engineering Construction Works,1012\5110138040,02 Aug 2022,"53,257.69",
TFL CORPORATE,DELOITTE MCS LIMITED ,Management & Support Consultancy,1001\5110127755,04 Aug 2022,"53,000.00",
RAIL FOR LONDON LIMITED,MOTT MACDONALD LIMITED,Management & Support Consultancy,1020\5110138655,16 Aug 2022,"52,667.19",
LONDON UNDERGROUND LTD,OCTAVIUS INFRASTRUCTURE LTD,MR Construction Costs,1005\5110144592,03 Aug 2022,"52,530.22",
LONDON UNDERGROUND LTD,LANES GROUP PLC,Civil Engineering Construction Works,1005\5110145777,18 Aug 2022,"52,523.82",
TTL PROPERTIES LTD,PA CONSULTING SERVICES LTD,Planning & Development Consultancy,1040\5110131324,27 Jul 2022,"52,500.00",
LUL NOMINEE SSL LIMITED,THALES GROUND TRANSPORTATION SYSTEM,Computer Hardware,1031\5110129737,26 Jul 2022,"52,021.00",
LONDON UNDERGROUND LTD,GB RAILFREIGHT LTD,Equipment Repairs & Maintenance,1005\5110144616,10 Aug 2022,"51,995.26",
LONDON UNDERGROUND LTD,MORS SMITT STS SIGNALS,Fleet,1005\5110144683,03 Aug 2022,"51,907.98",
SURFACE TRANSPORT CORP,SIEMENS TRAFFIC CONTROLS,Cameras,1002\5110142376,09 Aug 2022,"51,751.69",
DOCKLANDS LIGHT RAILWAY,HYDER CONSULTING (UK) LTD,Planning & Development Consultancy,1012\5110143833,17 Aug 2022,"51,706.03",
TFL CORPORATE,MEDIAEDGE,Social Media And Digital Advertising Space,1001\5110136136,28 Jul 2022,"51,666.69",
LONDON UNDERGROUND LTD,HAYLEY GROUP PLC,Maintenance Materials,1005\5110149610,16 Aug 2022,"51,547.81",
SURFACE TRANSPORT CORP,SIEMENS TRAFFIC CONTROLS,Road Maintenance,1002\5110142382,16 Aug 2022,"51,525.35",
LONDON UNDERGROUND LTD,THALES GROUND TRANSPORTATION SYSTEM,Civil Engineering Construction Works,1005\5110146924,19 Aug 2022,"51,355.50",
SURFACE TRANSPORT CORP,GTT-EMEA LIMITED,Telephony Fixed,1002\5110137569,09 Aug 2022,"51,091.82",
LONDON UNDERGROUND LTD,ABELLIO EAST ANGLIA LTD,MR Construction Costs,1005\5110132922,26 Jul 2022,"51,080.73",
TRANSPORT TRADING LTD,LONDON BOROUGH OF ISLINGTON,Rates,1004\1901686456,01 Aug 2022,"51,072.00",
TFL CORPORATE,MEDIAEDGE,Radio TV Press Poster Cinema Airtime And Space,1001\5110137903,02 Aug 2022,"51,058.66",
LONDON UNDERGROUND LTD,NEW ERA FUELS LTD,Vehicle Operating Leases,1005\5110131520,10 Aug 2022,"50,696.62",
TFL CORPORATE,STRATEGIC RAIL CONSULTANTS LTD,Management & Support Consultancy,1001\5110144398,05 Aug 2022,"50,649.80",
TRANSPORT TRADING LTD,CORPORATE DOCUMENT SERVICES LTD,Printing,1004\5110147578,19 Aug 2022,"50,608.16",
LONDON RIVER SERVICES LTD,EUROVIA CONTRACTING SOUTH,Civil Engineering Construction Works,1007\5110148127,17 Aug 2022,"50,478.75",
LONDON UNDERGROUND LTD,SCHAEFFLER (UK) LTD,Maintenance Materials,1005\5110143090,04 Aug 2022,"50,359.76",
LONDON UNDERGROUND LTD,TELENT TECHNOLOGY SERVICES LTD,Equipment Repairs & Maintenance,1005\5110130602,10 Aug 2022,"50,315.95",
TRANSPORT TRADING LTD,NOVACROFT DIRECT LTD,Ticket & Pass Production,1004\5110144062,08 Aug 2022,"50,212.06",
SURFACE TRANSPORT CORP,TELENT TECHNOLOGY SERVICES LTD,Maintenance of Plant & Equipment,1002\5110137257,10 Aug 2022,"50,140.88",
TTL PROPERTIES LTD,HA MARKS LTD,MR Construction Costs,1040\5110147339,15 Aug 2022,"50,000.00",
DOCKLANDS LIGHT RAILWAY,MOTT MACDONALD LIMITED,Civil Engineering Construction Works,1012\5110142154,28 Jul 2022,"50,000.00",
SURFACE TRANSPORT CORP,TELENT TECHNOLOGY SERVICES LTD,Traffic Signals,1002\5110129642,25 Jul 2022,"49,752.66",
SURFACE TRANSPORT CORP,RINGWAY INFRASTRUCTURE SERVICES LTD,Civil Engineering Construction Works,1002\5110149642,17 Aug 2022,"49,575.62",
RAIL FOR LONDON LIMITED,MOTT MACDONALD LIMITED,Management & Support Consultancy,1020\5110129477,25 Jul 2022,"49,256.25",
TRANSPORT TRADING LTD,TOTAL GAS & POWER LTD,Gas,1004\1901686243,27 Jul 2022,"49,248.32",
DIAL A RIDE,BP OIL UK LIMITED,Vehicle Running Costs,1010\5110132906,27 Jul 2022,"49,189.51",
TFL CORPORATE,MEDIAEDGE,Radio TV Press Poster Cinema Airtime And Space,1001\5110136183,28 Jul 2022,"48,979.73",
LUL NOMINEE SSL LIMITED,FAIVELEY TRANSPORT,Component Repairs Sub Contracted,1031\5110132663,17 Aug 2022,"48,957.00",
TFL CORPORATE,MEDIAEDGE,Radio TV Press Poster Cinema Airtime And Space,1001\5110136191,28 Jul 2022,"48,943.78",
RAIL FOR LONDON LIMITED,CONWAY AECOM LTD,Contracted Services - Roads,1020\5110143267,02 Aug 2022,"48,791.47",
RAIL FOR LONDON LIMITED,CONWAY AECOM LTD,Contracted Services - Roads,1020\5110143391,02 Aug 2022,"48,666.79",
TRANSPORT TRADING LTD,CITY OF WESTMINSTER,Rates,1004\1901686452,01 Aug 2022,"48,353.00",
LONDON UNDERGROUND LTD,GT GETTAXI (UK) LTD,Travel to/from work (Unsocial Hours),1005\5110147301,10 Aug 2022,"48,064.25",
SURFACE TRANSPORT CORP,CITY OF WESTMINSTER,Borough Services,1002\1900072142,02 Aug 2022,"48,000.00",
SURFACE TRANSPORT CORP,LONDON BOROUGH OF LEWISHAM,Borough Services,1002\5110138408,25 Jul 2022,"47,972.17",
TFL CORPORATE,STRATEGIC RAIL CONSULTANTS LTD,Management & Support Consultancy,1001\5110144397,05 Aug 2022,"47,817.20",
LUL NOMINEE BCV LIMITED,THALES GROUND TRANSPORTATION SYSTEM,Computer Hardware,1033\5110129730,26 Jul 2022,"47,700.00",
RFL (IINFRASTRUCTURE) LTD,PBE EUROPE LIMITED,Building Maintenance & Repairs,1025\5110143493,03 Aug 2022,"47,600.00",
LONDON UNDERGROUND LTD,TELENT TECHNOLOGY SERVICES LTD,Retentions Control Account > 1Year,1005\5110099459,03 Aug 2022,"47,540.70",
SURFACE TRANSPORT CORP,CAPITA BUSINESS SERVICES LTD,CCS Service Contract,1002\5110139658,16 Aug 2022,"47,311.30",
LONDON UNDERGROUND LTD,TELENT TECHNOLOGY SERVICES LTD,Cameras,1005\5110142121,18 Aug 2022,"47,094.27",
VICTORIA COACH STATN LTD,FLIXBUS DACH GMBH,VCS Repayments & Commission,1008\1900004669,29 Jul 2022,"47,039.64",
DIAL A RIDE,DABD,Operator Costs,1010\5110147822,16 Aug 2022,"47,031.16",
RFL (IINFRASTRUCTURE) LTD,SCHINDLER LTD,Building Maintenance & Repairs,1025\5110142630,29 Jul 2022,"47,027.97",
DOCKLANDS LIGHT RAILWAY,POD-TRAK LTD,Civil Engineering Construction Works,1012\5110142821,02 Aug 2022,"46,795.20",
LONDON UNDERGROUND LTD,TRACKWORK RESOURCES LTD,Track General Maintenance,1005\5110144380,02 Aug 2022,"46,764.63",
LONDON UNDERGROUND LTD,DELATIM LIMITED,Civil Engineering Construction Works,1005\5110149637,16 Aug 2022,"46,645.37",
LONDON UNDERGROUND LTD,L.B FOSTER RAIL TECHNOLOGIES(UK)LTD,Track General Maintenance,1005\5110141419,17 Aug 2022,"46,400.00",
LONDON UNDERGROUND LTD,INSIGHT DIRECT UK LIMITED,Software Maintenance,1005\5110148701,16 Aug 2022,"46,388.46",
TRANSPORT TRADING LTD,CITY OF LONDON ,Rates,1004\1901686668,03 Aug 2022,"46,378.99",
LONDON UNDERGROUND LTD,EQUANS SERVICES LIMITED,Fire and Safety Equipment,1005\5110132043,18 Aug 2022,"46,298.64",
LUL NOMINEE BCV LIMITED,KINGSBEECH LTD,Track General Maintenance,1033\5110144637,08 Aug 2022,"45,915.00",
LONDON UNDERGROUND LTD,NETWORK RAIL COMMERCIAL PROPERTY,National Rail Long Term Charges,1005\5110136731,10 Aug 2022,"45,423.56",
RAIL FOR LONDON LIMITED,ENERGY AND SYSTEM TECHNICAL LTD,Management & Support Consultancy,1020\5110144223,03 Aug 2022,"45,366.63",
TRANSPORT TRADING LTD,CBRE LIMITED,Management & Support Consultancy,1004\5110145554,17 Aug 2022,"45,000.00",
TFL CORPORATE,STRATEGIC RAIL CONSULTANTS LTD,Management & Support Consultancy,1001\5110146870,10 Aug 2022,"44,828.75",
LUL NOMINEE SSL LIMITED,SCHUNK CARBON TECHNOLOGY LIMITED,Fleet,1031\5110133174,29 Jul 2022,"44,767.26",
RAIL FOR LONDON LIMITED,LANES GROUP PLC,Building Maintenance & Repairs,1020\5110140280,11 Aug 2022,"44,652.02",
RAIL FOR LONDON LIMITED,SIEMENS MOBILITY LIMITED,Maintenance of Plant & Equipment,1020\5110129749,12 Aug 2022,"44,649.50",
TFL CORPORATE,HERBERT SMITH LLP,Legal Fees,1001\5110129589,25 Jul 2022,"44,473.44",
LUL NOMINEE SSL LIMITED,SCHUNK CARBON TECHNOLOGY LIMITED,Fleet,1031\5110141616,29 Jul 2022,"44,394.77",
SURFACE TRANSPORT CORP,O2 UK LTD,Maintenance of Plant & Equipment,1002\5110133017,02 Aug 2022,"44,166.67",
TFL CORPORATE,PERTEMPS RECRUITMENT PARTNERSHIPLTD,Recruitment Agency Fees,1001\5110132476,26 Jul 2022,"44,008.00",
SURFACE TRANSPORT CORP,PCUBED LTD,Software Maintenance,1002\5110136112,27 Jul 2022,"44,000.00",
TFL CORPORATE,EFFICIO LIMITED,Management & Support Consultancy,1001\5110132035,27 Jul 2022,"43,945.00",
DOCKLANDS LIGHT RAILWAY,PROGRESS RAIL SERVICES UK LTD,Civil Engineering Construction Works,1012\5110141076,17 Aug 2022,"43,870.00",
TFL CORPORATE,CAPITA BUSINESS SERVICES LTD,IT Consultancy,1001\5110137272,10 Aug 2022,"43,725.88",
DIAL A RIDE,WALTHAM FOREST CT LTD,Operator Costs,1010\5110133274,01 Aug 2022,"43,646.19",
LONDON UNDERGROUND LTD,MCGINLEY SUPPORT SERVICES LTD,Track General Maintenance,1005\5110146213,08 Aug 2022,"43,620.02",
DIAL A RIDE,WESTWAY COMMUNITY TRANSPORT,Operator Costs,1010\5110142147,02 Aug 2022,"43,611.33",
TTL PROPERTIES LTD,JNG CONSTRUCTION & ENGINEERING,Civil Engineering Construction Works,1040\5110142501,02 Aug 2022,"43,584.39",
DIAL A RIDE,DABD,Operator Costs,1010\5110130772,09 Aug 2022,"43,567.34",
LONDON UNDERGROUND LTD,NETWORK RAIL INFRASTRUCTURE,National Rail Fixed Track Access Charges,1005\5110132365,27 Jul 2022,"43,542.04",
TFL CORPORATE,STRATEGIC RAIL CONSULTANTS LTD,Management & Support Consultancy,1001\5110144395,05 Aug 2022,"43,368.20",
LUL NOMINEE SSL LIMITED,LUCCHINI UK LTD,Signalling Systems,1031\5110141375,17 Aug 2022,"43,179.76",
TFL CORPORATE,ATKINS LIMITED,Management & Support Consultancy,1001\5110136123,09 Aug 2022,"43,163.44",
SURFACE TRANSPORT CORP,TELENT TECHNOLOGY SERVICES LTD,Traffic Signals,1002\5110129565,25 Jul 2022,"43,162.97",
LONDON BUS SERVICES LTD,METROLINE TRAVEL LTD,Bus Contract Payments,1006\1900047689,05 Aug 2022,"42,805.49",
TFL CORPORATE,MEDIAEDGE,Radio TV Press Poster Cinema Airtime And Space,1001\5110136277,28 Jul 2022,"42,789.76",
DIAL A RIDE,WESTWAY COMMUNITY TRANSPORT,Operator Costs,1010\5110142108,02 Aug 2022,"42,611.04",
SURFACE TRANSPORT CORP,EDF ENERGY,Electricity,1002\5110138293,02 Aug 2022,"42,484.74",
DOCKLANDS LIGHT RAILWAY,POD-TRAK LTD,Civil Engineering Construction Works,1012\5110138039,04 Aug 2022,"42,060.73",
LUL NOMINEE BCV LIMITED,DYER & BUTLER LTD,Building Maintenance & Repairs,1033\5110130151,27 Jul 2022,"42,053.92",
DOCKLANDS LIGHT RAILWAY,MOTT MACDONALD LIMITED,Civil Engineering Construction Works,1012\5110142112,28 Jul 2022,"42,000.00",
LONDON RIVER SERVICES LTD,RS COMPONENTS LTD,Maintenance Materials,1007\5110135042,04 Aug 2022,"41,930.00",
LUL NOMINEE SSL LIMITED,EMERSON NETWORK POWER LTD,Equipment Repairs & Maintenance,1031\5110120409,27 Jul 2022,"41,801.95",
LUL NOMINEE SSL LIMITED,EMERSON NETWORK POWER LTD,Equipment Repairs & Maintenance,1031\5110132639,27 Jul 2022,"41,801.95",
LUL NOMINEE SSL LIMITED,EMERSON NETWORK POWER LTD,Equipment Repairs & Maintenance,1031\5110135825,08 Aug 2022,"41,801.95",
TRANSPORT TRADING LTD,CITY OF WESTMINSTER,Rates,1004\1901686690,05 Aug 2022,"41,773.50",
LONDON UNDERGROUND LTD,SPEEDY HIRE DIRECT LTD,Plant & Equipment Purchases,1005\5110134267,27 Jul 2022,"41,692.49",
SURFACE TRANSPORT CORP,GTT-EMEA LIMITED,Telephony Fixed,1002\5110149603,19 Aug 2022,"41,651.35",
RFL (IINFRASTRUCTURE) LTD,MITIE FM LIMITED,Security Services (Guards),1025\5110144891,04 Aug 2022,"41,584.62",
LONDON UNDERGROUND LTD,DUCTCLEAN (UK) LTD T/A DCUK FM,Building Maintenance & Repairs,1005\5110133575,28 Jul 2022,"41,529.39",
LONDON UNDERGROUND LTD,AMETEK AIRTECHNOLOGY GROUP LTD,Fleet,1005\5110131002,27 Jul 2022,"41,400.00",
LONDON UNDERGROUND LTD,WHITMORE EUROPE LIMITED,Track General Maintenance,1005\5110139352,28 Jul 2022,"41,331.00",
SURFACE TRANSPORT CORP,GTT-EMEA LIMITED,Radio Systems Equipment & Maintenance,1002\5110149621,17 Aug 2022,"41,222.55",
TRANSPORT TRADING LTD,ECKOH UK LIMITED,Telephony Fixed,1004\5110144613,08 Aug 2022,"41,183.59",
RAIL FOR LONDON LIMITED,BENTLEY SYSTEMS LTD,Manage IT Services,1020\5110133111,01 Aug 2022,"41,003.00",
LUL NOMINEE SSL LIMITED,EASTERN COMPRESSORS LTD,Equipment Repairs & Maintenance,1031\5110141106,27 Jul 2022,"40,614.40",
LONDON UNDERGROUND LTD,OLF INSULATORS,Fleet,1005\5110133635,27 Jul 2022,"40,500.00",
SURFACE TRANSPORT CORP,"SYSTEMS ENGINEERING, ASSESSMENT",Cameras,1002\5110129790,26 Jul 2022,"40,410.65",
LONDON BUS SERVICES LTD,ABELLIO LONDON LTD,Bus Contract Payments,1006\1900047679,05 Aug 2022,"40,330.84",
SURFACE TRANSPORT CORP,RIVERLINX LIMITED,Civil Engineering Construction Works,1002\5110135325,25 Jul 2022,"40,326.00",
SURFACE TRANSPORT CORP,RIVERLINX LIMITED,Civil Engineering Construction Works,1002\5110135326,17 Aug 2022,"40,324.37",
DIAL A RIDE,WESTWAY COMMUNITY TRANSPORT,Operator Costs,1010\5110141599,28 Jul 2022,"40,283.58",
LONDON UNDERGROUND LTD,ALSTOM NL SERVICE PROVISION LTD,Fleet Tsssa Contract,1005\5110129539,25 Jul 2022,"40,269.20",
TFL CORPORATE,GUTTERIDGE HASKINS & DAVEY LIMITED,Management & Support Consultancy,1001\5110124130,26 Jul 2022,"40,000.00",
LONDON UNDERGROUND LTD,MTC LTD,Maintenance Materials,1005\5110129623,25 Jul 2022,"40,000.00",
LONDON UNDERGROUND LTD,A J WELLS & SONS LTD,MR Construction Costs,1005\5110148564,15 Aug 2022,"39,715.68",
LONDON UNDERGROUND LTD,ALSTOM NL SERVICE PROVISION LTD,Fleet Tsssa Contract,1005\5110129586,25 Jul 2022,"39,702.21",
LONDON UNDERGROUND LTD,TRENITALIA C2C LTD,National Rail Long Term Charges,1005\5110137844,08 Aug 2022,"39,652.23",
LONDON UNDERGROUND LTD,OTIS LIMITED,Escalators,1005\5110150704,19 Aug 2022,"39,647.13",
SURFACE TRANSPORT CORP,SIEMENS TRAFFIC CONTROLS,Road Maintenance,1002\5110132826,04 Aug 2022,"39,600.98",
LONDON UNDERGROUND LTD,C E F,Heating & Lighting,1005\5110140354,10 Aug 2022,"39,267.00",
LONDON UNDERGROUND LTD,SCHINDLER LTD,Lift Maintenance,1005\5110143030,17 Aug 2022,"39,069.05",
LUL NOMINEE SSL LIMITED,ROSS PNEUMATROL LTD,Fleet,1031\5110144285,09 Aug 2022,"38,845.50",
LONDON UNDERGROUND LTD,TELENT TECHNOLOGY SERVICES LTD,Equipment Repairs & Maintenance,1005\5110130340,10 Aug 2022,"38,811.35",
LUL NOMINEE SSL LIMITED,ERIKS  EMS,Fleet,1031\5110143988,04 Aug 2022,"38,737.10",
TFL CORPORATE,LINKS SIGNS LTD,Non Permanent Signage And Way Finding,1001\5110138496,25 Jul 2022,"38,546.00",
LUL NOMINEE SSL LIMITED,ITT HOLDINGS CZECH REPUBLIC S.R.O.,Fleet,1031\5110134799,05 Aug 2022,"38,515.75",
LONDON UNDERGROUND LTD,NETWORK RAIL INFRASTRUCTURE,National Rail Fixed Track Access Charges,1005\5110131642,27 Jul 2022,"38,468.62",
SURFACE TRANSPORT CORP,AECOM LTD,Planning & Development Consultancy,1002\5110134899,09 Aug 2022,"38,083.18",
LUL NOMINEE SSL LIMITED,TRACK AND BUILD LTD.,Civil Engineering Construction Works,1031\5110141370,27 Jul 2022,"38,075.25",
LONDON UNDERGROUND LTD,SPEEDY HIRE DIRECT LTD,Plant & Equipment Purchases,1005\5110134266,27 Jul 2022,"37,953.20",
LONDON UNDERGROUND LTD,METROLINE TRAVEL LTD,Rail Replacement Service Costs,1005\5110140271,15 Aug 2022,"37,902.87",
DOCKLANDS LIGHT RAILWAY,POD-TRAK LTD,Civil Engineering Construction Works,1012\5110147370,10 Aug 2022,"37,578.62",
LONDON UNDERGROUND LTD,NETWORK RAIL INFRASTRUCTURE,National Rail Fixed Track Access Charges,1005\5110131494,27 Jul 2022,"37,173.51",
LONDON UNDERGROUND LTD,L.B FOSTER RAIL TECHNOLOGIES(UK)LTD,Track General Maintenance,1005\5110136205,09 Aug 2022,"37,120.00",
LONDON UNDERGROUND LTD,SPEEDY HIRE DIRECT LTD,Plant & Equipment Purchases,1005\5110134289,27 Jul 2022,"36,943.44",
SURFACE TRANSPORT CORP,TELENT TECHNOLOGY SERVICES LTD,Traffic Signals,1002\5110129543,25 Jul 2022,"36,909.61",
LONDON BUS SERVICES LTD,TRUEFORM ENGINEERING LTD,Maintenance of  Bus Stops,1006\5110142136,01 Aug 2022,"36,803.15",
DOCKLANDS LIGHT RAILWAY,OTB ENGINEERING LTD,Civil Engineering Construction Works,1012\5110140058,04 Aug 2022,"36,650.00",
LONDON UNDERGROUND LTD,TOWER SUPPLIES,Protective Clothing,1005\5110145264,09 Aug 2022,"36,633.17",
SURFACE TRANSPORT CORP,TELENT TECHNOLOGY SERVICES LTD,Street Furniture,1002\5110137409,25 Jul 2022,"36,588.93",
TFL CORPORATE,MEDIAEDGE,Radio TV Press Poster Cinema Airtime And Space,1001\5110137917,02 Aug 2022,"36,552.51",
SURFACE TRANSPORT CORP,TELENT TECHNOLOGY SERVICES LTD,Street Furniture,1002\5110129560,25 Jul 2022,"36,529.06",
TFL CORPORATE,EFFICIO LIMITED,Management & Support Consultancy,1001\5110133110,27 Jul 2022,"36,400.00",
TFL CORPORATE,STRATEGIC RAIL CONSULTANTS LTD,Management & Support Consultancy,1001\5110150031,19 Aug 2022,"36,234.63",
TRANSPORT TRADING LTD,ROYAL BOROUGH KENSINGTON & CHELSEA,Rates,1004\1901686463,01 Aug 2022,"36,176.00",
LONDON UNDERGROUND LTD,MEDIAEDGE,Social Media And Digital Advertising Space,1005\5110127116,25 Jul 2022,"36,000.28",
RFL (IINFRASTRUCTURE) LTD,DMA,Manage IT Services,1025\5110138822,18 Aug 2022,"35,815.00",
SURFACE TRANSPORT CORP,SIMULATION SYSTEMS LTD,Equipment Repairs & Maintenance,1002\5110143063,05 Aug 2022,"35,788.54",
LONDON UNDERGROUND LTD,MORS SMITT STS SIGNALS,Fleet,1005\5110144903,04 Aug 2022,"35,457.02",
LONDON UNDERGROUND LTD,NETWORK RAIL INFRASTRUCTURE,Traction Current,1005\5110132392,27 Jul 2022,"35,448.65",
LONDON UNDERGROUND LTD,ALSTOM NL SERVICE PROVISION LTD,Fleet Tsssa Contract,1005\5110138034,25 Jul 2022,"35,120.00",
TRANSPORT TRADING LTD,NOVACROFT DIRECT LTD,Ticket & Pass Production,1004\5110144043,08 Aug 2022,"35,102.00",
SURFACE TRANSPORT CORP,SKY HIGH PLC,Traffic Signals,1002\5110114159,28 Jul 2022,"35,082.00",
LONDON UNDERGROUND LTD,GRUNDON WASTE MANAGEMENT LTD,Non Recyclable Waste Disposal/Refuse Collection,1005\5110137271,26 Jul 2022,"34,844.37",
LONDON BUS SERVICES LTD,TRUEFORM ENGINEERING LTD,Building Maintenance & Repairs,1006\5110142129,01 Aug 2022,"34,820.70",
TFL CORPORATE,GUTTERIDGE HASKINS & DAVEY LIMITED,Management & Support Consultancy,1001\5110130972,27 Jul 2022,"34,781.00",
LUL NOMINEE SSL LIMITED,MCNEALY BROWN LTD,Civil Engineering Construction Works,1031\5110142167,05 Aug 2022,"34,750.05",
LUL NOMINEE SSL LIMITED,CIRCET (UK) LIMITED,Civil Engineering Construction Works,1031\5110139057,03 Aug 2022,"34,733.07",
LONDON UNDERGROUND LTD,FAITHFUL+GOULD,Planning & Development Consultancy,1005\5110129836,27 Jul 2022,"34,623.14",
SURFACE TRANSPORT CORP,TELENT TECHNOLOGY SERVICES LTD,Street Furniture,1002\5110137420,25 Jul 2022,"34,614.11",
SURFACE TRANSPORT CORP,CONWAY AECOM LTD,Contracted Services - Roads,1002\5110143385,02 Aug 2022,"34,578.87",
LONDON UNDERGROUND LTD,OFCOM,Professional Engineering Services,1005\5110134950,03 Aug 2022,"34,371.00",
TFL CORPORATE,EFFICIO LIMITED,Management & Support Consultancy,1001\5110133108,27 Jul 2022,"34,200.00",
LONDON TRANSPORT MUSEUM,MITIE FM LIMITED,Security Services (Guards),1011\5110142002,02 Aug 2022,"34,017.24",
TFL CORPORATE,GUTTERIDGE HASKINS & DAVEY LIMITED,Management & Support Consultancy,1001\5110134917,10 Aug 2022,"34,000.00",
LONDON BUS SERVICES LTD,CITYSWIFT,Vehicle Repairs & Maintenance,1006\5110135257,03 Aug 2022,"33,960.67",
DOCKLANDS LIGHT RAILWAY,THAMES CLIPPERS,Ticket & Pass Production,1012\1900005390,17 Aug 2022,"33,896.56",
DOCKLANDS LIGHT RAILWAY,DELATIM LIMITED,Civil Engineering Construction Works,1012\5110143266,01 Aug 2022,"33,783.62",
LUL NOMINEE SSL LIMITED,KINGSBEECH LTD,Electrical Equipment Maintenance,1031\5110144775,03 Aug 2022,"33,680.00",
LUL NOMINEE SSL LIMITED,OCL RAIL LTD,Civil Engineering Construction Works,1031\5110145065,08 Aug 2022,"33,624.36",
LONDON UNDERGROUND LTD,OCTAVIUS INFRASTRUCTURE LTD,MR Construction Costs,1005\5110144505,03 Aug 2022,"33,546.47",
LONDON UNDERGROUND LTD,MILWAUKEE COMPOSITES INC.,Maintenance Materials,1005\5110134659,25 Jul 2022,"33,400.00",
LONDON UNDERGROUND LTD,ISLINGTON COUNCIL,Electricity,1005\1900232550,15 Aug 2022,"33,342.10",
DOCKLANDS LIGHT RAILWAY,OTB ENGINEERING LTD,Civil Engineering Construction Works,1012\5110140794,04 Aug 2022,"33,307.50",
TRANSPORT TRADING LTD,CAPITA BUSINESS SERVICES LTD,IT Consultancy,1004\5110130812,27 Jul 2022,"33,305.15",
TFL CORPORATE,ALSTOM NL SERVICE PROVISION LTD,Civil Engineering Construction Works,1001\5110129553,17 Aug 2022,"33,276.00",
LONDON UNDERGROUND LTD,GPX ENGINEERING LTD,Track General Maintenance,1005\5110150233,18 Aug 2022,"33,260.20",
LONDON UNDERGROUND LTD,TELENT TECHNOLOGY SERVICES LTD,Cameras,1005\5110142411,29 Jul 2022,"32,988.03",
LUL NOMINEE SSL LIMITED,HARMILL SYSTEMS LTD,Civil Engineering Construction Works,1031\5110144889,11 Aug 2022,"32,987.95",
TFL CORPORATE,STRATEGIC RAIL CONSULTANTS LTD,Management & Support Consultancy,1001\5110146882,10 Aug 2022,"32,810.13",
LONDON UNDERGROUND LTD,NEW ERA FUELS LTD,Vehicle Running Costs,1005\5110149538,19 Aug 2022,"32,808.31",
LONDON UNDERGROUND LTD,NETWORK RAIL INFRASTRUCTURE,National Rail Fixed Track Access Charges,1005\5110131496,27 Jul 2022,"32,773.09",
SURFACE TRANSPORT CORP,TELENT TECHNOLOGY SERVICES LTD,Street Furniture,1002\5110129633,25 Jul 2022,"32,686.66",
TFL CORPORATE,CYBERSOURCE  LIMITED,Software Maintenance,1001\5110145114,12 Aug 2022,"32,686.50",
LONDON UNDERGROUND LTD,SPOOR-TECH LTD,MR Construction Costs,1005\5110124303,28 Jul 2022,"32,610.63",
LONDON UNDERGROUND LTD,GPX ENGINEERING LTD,Track General Maintenance,1005\5110150192,18 Aug 2022,"32,601.60",
TFL CORPORATE,VIRGIN MEDIA,Maintenance of Telecommunications Equipment,1001\5110135905,28 Jul 2022,"32,565.94",
TFL CORPORATE,AECOM LTD,Transport Planning Consultancy & Services,1001\5110134757,03 Aug 2022,"32,555.73",
LONDON BUS SERVICES LTD,MILESTONE INFRASTRUCTURE LIMITED,Building Maintenance & Repairs,1006\5110144749,10 Aug 2022,"32,548.77",
LONDON UNDERGROUND LTD,JONES LANG LASALLE,Management & Support Consultancy,1005\5110139101,19 Aug 2022,"32,500.00",
LONDON UNDERGROUND LTD,LOWERY LTD,Civil Engineering Construction Works,1005\5110150380,18 Aug 2022,"32,491.85",
LUL NOMINEE SSL LIMITED,SKF (UK) LTD,Fleet,1031\5110131761,27 Jul 2022,"32,280.00",
LONDON UNDERGROUND LTD,SOLUTION RAIL LIMITED,MR Construction Costs,1005\5110148908,17 Aug 2022,"32,199.54",
TFL CORPORATE,ARK SIGNALLING CONSULTANCY,Management & Support Consultancy,1001\5110140875,27 Jul 2022,"32,130.00",
LONDON UNDERGROUND LTD,NETWORK RAIL INFRASTRUCTURE,Traction Current,1005\5110132419,27 Jul 2022,"31,971.93",
LONDON UNDERGROUND LTD,CHILTERN RAILWAYS,National Rail Performance Charges,1005\5110141728,18 Aug 2022,"31,965.54",
RAIL FOR LONDON LIMITED,OCTAVIUS INFRASTRUCTURE LTD,Professional Engineering Services,1020\5110144462,04 Aug 2022,"31,948.21",
RAIL FOR LONDON LIMITED,ARRIVA LONDON NORTH LTD,Rail Replacement Service Costs,1020\5110140937,12 Aug 2022,"31,875.20",
TFL CORPORATE,OVE ARUP & PARTNERS LTD,Planning & Development Consultancy,1001\5110135402,03 Aug 2022,"31,858.95",
LONDON UNDERGROUND LTD,RHINO DOORS,MR Construction Costs,1005\5110149308,17 Aug 2022,"31,771.50",
SURFACE TRANSPORT CORP,TELENT TECHNOLOGY SERVICES LTD,Street Furniture,1002\5110129588,25 Jul 2022,"31,725.50",
TRANSPORT TRADING LTD,TELENT TECHNOLOGY SERVICES LTD,Security Equipment,1004\5110141683,27 Jul 2022,"31,678.28",
TRANSPORT TRADING LTD,TELENT TECHNOLOGY SERVICES LTD,Security Equipment,1004\5110147518,10 Aug 2022,"31,678.28",
LONDON UNDERGROUND LTD,SCHINDLER LTD,Lift Maintenance,1005\5110141845,28 Jul 2022,"31,657.04",
SURFACE TRANSPORT CORP,DAISY CORPORATE SERVICES TRADINGLTD,Telephony Fixed,1002\5110133685,02 Aug 2022,"31,507.00",
SURFACE TRANSPORT CORP,DAISY CORPORATE SERVICES TRADINGLTD,Telephony Fixed,1002\5110133686,02 Aug 2022,"31,507.00",
TFL CORPORATE,BENTLEY SYSTEMS LTD,Software Maintenance,1001\5110134068,03 Aug 2022,"31,500.00",
LONDON UNDERGROUND LTD,MEDIAEDGE,Social Media And Digital Advertising Space,1005\5110094152,25 Jul 2022,"31,481.01",
TTL PROPERTIES LTD,LONDON LEGACY DEVELOPMENT CORPORATI,Management & Support Consultancy,1040\5110144091,04 Aug 2022,"31,475.85",
LONDON UNDERGROUND LTD,BRITISH STEEL LIMITED ,Track General Maintenance,1005\5110130900,03 Aug 2022,"31,419.38",
LONDON UNDERGROUND LTD,BRITISH STEEL LIMITED ,Track General Maintenance,1005\5110132910,01 Aug 2022,"31,419.38",
LONDON UNDERGROUND LTD,BRITISH STEEL LIMITED ,Track General Maintenance,1005\5110134097,02 Aug 2022,"31,419.38",
LONDON UNDERGROUND LTD,BRITISH STEEL LIMITED ,Track General Maintenance,1005\5110134107,03 Aug 2022,"31,419.38",
LONDON UNDERGROUND LTD,BRITISH STEEL LIMITED ,Track General Maintenance,1005\5110134778,03 Aug 2022,"31,419.38",
LONDON UNDERGROUND LTD,BRITISH STEEL LIMITED ,Track General Maintenance,1005\5110135175,03 Aug 2022,"31,419.38",
LONDON UNDERGROUND LTD,BRITISH STEEL LIMITED ,Track General Maintenance,1005\5110135885,08 Aug 2022,"31,419.38",
LONDON UNDERGROUND LTD,BRITISH STEEL LIMITED ,Track General Maintenance,1005\5110136225,09 Aug 2022,"31,419.38",
LONDON UNDERGROUND LTD,BRITISH STEEL LIMITED ,Track General Maintenance,1005\5110136690,10 Aug 2022,"31,419.38",
LONDON UNDERGROUND LTD,BRITISH STEEL LIMITED ,Track General Maintenance,1005\5110138516,15 Aug 2022,"31,419.38",
LONDON UNDERGROUND LTD,BRITISH STEEL LIMITED ,Track General Maintenance,1005\5110138602,15 Aug 2022,"31,419.38",
LONDON UNDERGROUND LTD,BRITISH STEEL LIMITED ,Track General Maintenance,1005\5110140770,17 Aug 2022,"31,419.38",
LUL NOMINEE BCV LIMITED,BRITISH STEEL LIMITED ,Track General Maintenance,1033\5110130897,27 Jul 2022,"31,419.38",
TFL CORPORATE,CORPORATE DOCUMENT SERVICES LTD,Printing,1001\5110145062,10 Aug 2022,"31,214.16",
LONDON UNDERGROUND LTD,MORS SMITT STS SIGNALS,Fleet,1005\5110144898,04 Aug 2022,"31,195.68",
LONDON UNDERGROUND LTD,MORSON HUMAN RESOURCES LTD,Heating & Lighting,1005\5110148903,15 Aug 2022,"31,154.08",
LUL NOMINEE BCV LIMITED,PROMEX LTD,Maintenance Materials,1033\5110142463,09 Aug 2022,"31,132.89",
TRANSPORT TRADING LTD,A J WELLS & SONS LTD,Non Permanent Signage And Way Finding,1004\5110144167,03 Aug 2022,"31,065.24",
LONDON UNDERGROUND LTD,HCL TECHNOLOGIES UK LTD,Computer Software,1005\5110142840,17 Aug 2022,"31,025.00",
LONDON UNDERGROUND LTD,C E F,Heating & Lighting,1005\5110140348,08 Aug 2022,"31,003.80",
LONDON UNDERGROUND LTD,POWERCUBE LIMITED,MR Construction Costs,1005\5110140953,12 Aug 2022,"31,002.52",
TRANSPORT TRADING LTD,CORONA ENERGY RETAIL 4 LTD,Gas,1004\1901686695,08 Aug 2022,"30,758.45",
TRANSPORT TRADING LTD,LONDON BOROUGH OF TOWER HAMLETS,Rates,1004\1901686890,16 Aug 2022,"30,720.00",
RAIL FOR LONDON LIMITED,NETWORK RAIL INFRASTRUCTURE,Building Maintenance & Repairs,1020\5110137311,10 Aug 2022,"30,698.50",
LONDON UNDERGROUND LTD,SOLUTION RAIL LIMITED,MR Construction Costs,1005\5110133908,28 Jul 2022,"30,644.42",
LUL NOMINEE SSL LIMITED,HARMILL SYSTEMS LTD,Civil Engineering Construction Works,1031\5110145722,05 Aug 2022,"30,570.00",
PUBLIC CARRIAGE OFFICE,NSL LIMITED,PCO Outsourced Services,1003\5110137309,10 Aug 2022,"30,529.55",
LONDON UNDERGROUND LTD,VOITH TURBO LTD,Fleet,1005\5110135855,08 Aug 2022,"30,505.00",
SURFACE TRANSPORT CORP,GINGER LEHMANN LTD,Road Maintenance,1002\5110142486,08 Aug 2022,"30,351.12",
LONDON UNDERGROUND LTD,HAYLEY GROUP PLC,Maintenance Materials,1005\5110140672,26 Jul 2022,"30,048.92",
SURFACE TRANSPORT CORP,CSTS LTD,Street Furniture,1002\5110135419,26 Jul 2022,"30,022.08",
LONDON UNDERGROUND LTD,TOTAL RAIL SOLUTIONS,Track General Maintenance,1005\5110142716,01 Aug 2022,"30,005.60",
LONDON UNDERGROUND LTD,BRYAN CAVE LEIGHTON PAISNER LLP,Planning & Development Consultancy,1005\1900233003,08 Aug 2022,"30,000.00",
SURFACE TRANSPORT CORP,NETWORK RAIL INFRASTRUCTURE,Road Maintenance,1002\5110132503,01 Aug 2022,"30,000.00",
LUL NOMINEE SSL LIMITED,HOLBRO ENGINEERING LTD,Fleet,1031\5110144152,02 Aug 2022,"30,000.00",
TFL CORPORATE,MEDIAEDGE,Art And Poetry Installations And Programmes,1001\5110136134,28 Jul 2022,"29,998.43",
DOCKLANDS LIGHT RAILWAY,POD-TRAK LTD,Civil Engineering Construction Works,1012\5110138059,09 Aug 2022,"29,958.82",
LONDON UNDERGROUND LTD,GBM SERVICES LTD,Operational Cleaning,1005\5110141010,26 Jul 2022,"29,933.80",
SURFACE TRANSPORT CORP,CAPITA BUSINESS SERVICES LTD,CCS Service Contract,1002\5110139589,16 Aug 2022,"29,628.20",
TRANSPORT TRADING LTD,CITY OF WESTMINSTER,Rates,1004\1901686669,03 Aug 2022,"29,594.51",
LONDON UNDERGROUND LTD,VAUGHAN PLANT HAULAGE LIMITED,Vehicle Operating Leases,1005\5110108510,03 Aug 2022,"29,510.00",
TRANSPORT TRADING LTD,WANDSWORTH COUNCIL,Rates,1004\1901686472,01 Aug 2022,"29,440.00",
RAIL FOR LONDON LIMITED,ENERGY AND SYSTEM TECHNICAL LTD,Management & Support Consultancy,1020\5110144216,04 Aug 2022,"29,416.46",
LONDON RIVER SERVICES LTD,MARINE CONTROL SERVICES AS,Management & Support Consultancy,1007\5110129456,28 Jul 2022,"29,400.00",
SURFACE TRANSPORT CORP,SIEMENS TRAFFIC CONTROLS,Street Furniture,1002\5110142439,03 Aug 2022,"29,303.66",
LUL NOMINEE BCV LIMITED,EQUANS SERVICES LIMITED,Fire and Safety Equipment,1033\5110094446,08 Aug 2022,"29,237.88",
LUL NOMINEE SSL LIMITED,BRUSH TRACTION LTD,Component Repairs Sub Contracted,1031\5110142822,29 Jul 2022,"29,235.00",
LUL NOMINEE BCV LIMITED,VOESTALPINE TURNOUT TECHNOLOGY UK,Signalling Systems,1033\5110139487,17 Aug 2022,"29,116.80",
LUL NOMINEE SSL LIMITED,R T BEARINGS LIMITED,Fleet,1031\5110136987,10 Aug 2022,"29,074.30",
SURFACE TRANSPORT CORP,O2 UK LTD,Telephony Mobile,1002\1900072730,19 Aug 2022,"29,040.61",
RFL (IINFRASTRUCTURE) LTD,SCHINDLER LTD,Building Maintenance & Repairs,1025\5110142813,29 Jul 2022,"28,986.71",
LONDON UNDERGROUND LTD,ENDEAVOUR DRILLING LTD,Civil Engineering Construction Works,1005\5110147428,11 Aug 2022,"28,982.75",
LONDON UNDERGROUND LTD,INTEGRA BUILDINGS LIMITED,Maintenance Materials,1005\5110132543,08 Aug 2022,"28,970.00",
LONDON UNDERGROUND LTD,NETWORK RAIL INFRASTRUCTURE,National Rail Fixed Track Access Charges,1005\5110131649,27 Jul 2022,"28,909.28",
TFL CORPORATE,HERBERT SMITH LLP,Legal Fees,1001\5110113417,15 Aug 2022,"28,852.97",
LONDON UNDERGROUND LTD,COMMANDER BUILDING SERVICES LIMITED,Equipment Repairs & Maintenance,1005\5110147293,17 Aug 2022,"28,775.45",
TRANSPORT TRADING LTD,ATOC,Software Maintenance,1004\5110133618,02 Aug 2022,"28,688.54",
TRANSPORT TRADING LTD,REMIT CONSULTING LTD,Legal Fees,1004\5110136327,09 Aug 2022,"28,600.00",
LONDON RIVER SERVICES LTD,PORT OF LONDON AUTHORITY,Pier Charges,1007\5110132532,01 Aug 2022,"28,529.47",
LUL NOMINEE SSL LIMITED,LUCCHINI UK LTD,Signalling Systems,1031\5110138441,03 Aug 2022,"28,454.40",
SURFACE TRANSPORT CORP,PAVEMENT TESTING SERVICES LIMITED,Professional Engineering Services,1002\5110140815,03 Aug 2022,"28,350.00",
LONDON UNDERGROUND LTD,UNIPART RAIL LTD,Fleet,1005\5110138089,10 Aug 2022,"28,210.00",
SURFACE TRANSPORT CORP,PINSENTS MASONS,Legal Fees,1002\5110136888,28 Jul 2022,"28,119.14",
LONDON UNDERGROUND LTD,NETWORK RAIL INFRASTRUCTURE,Electricity,1005\5110116330,12 Aug 2022,"28,052.32",
TFL CORPORATE,OTM (UK) LTD,Production Artwork And Design For Marketing,1001\5110146229,10 Aug 2022,"27,900.00",
LONDON UNDERGROUND LTD,OLDHAM ENGINEERING LTD,Fleet,1005\5110147322,10 Aug 2022,"27,888.00",
SURFACE TRANSPORT CORP,TELENT TECHNOLOGY SERVICES LTD,Road Maintenance,1002\5110139513,17 Aug 2022,"27,812.75",
LONDON UNDERGROUND LTD,BRYEN & LANGLEY LTD,Building Maintenance & Repairs,1005\5110147348,19 Aug 2022,"27,719.19",
LONDON UNDERGROUND LTD,NETWORK RAIL COMMERCIAL PROPERTY,National Rail Long Term Charges,1005\5110136706,10 Aug 2022,"27,688.46",
LONDON UNDERGROUND LTD,NETWORK RAIL COMMERCIAL PROPERTY,National Rail Long Term Charges,1005\5110136709,10 Aug 2022,"27,688.46",
TFL CORPORATE,CORPORATE DOCUMENT SERVICES LTD,Printing,1001\5110138642,08 Aug 2022,"27,313.65",
LONDON UNDERGROUND LTD,EQUANS SERVICES LIMITED,Fire and Safety Equipment,1005\5110145531,18 Aug 2022,"27,210.69",
LONDON BUS SERVICES LTD,MITIE CLEANING & ENVIRONMENTAL,Building Maintenance & Repairs,1006\5110137373,10 Aug 2022,"27,113.55",
SURFACE TRANSPORT CORP,BRITISH TELECOM PLC,Telephony Fixed,1002\5110132926,01 Aug 2022,"27,051.84",
SURFACE TRANSPORT CORP,TELENT TECHNOLOGY SERVICES LTD,Traffic Signals,1002\5110137425,25 Jul 2022,"27,025.38",
TRANSPORT TRADING LTD,NOVACROFT DIRECT LTD,Ticket & Pass Production,1004\5110144058,08 Aug 2022,"27,000.00",
PUBLIC CARRIAGE OFFICE,TIM JOHNSTON,Legal Fees,1003\5110143247,01 Aug 2022,"27,000.00",
TFL CORPORATE,BRAVOSOLUTION UK LIMITED,Software Maintenance,1001\5110134021,27 Jul 2022,"26,923.00",
RFL (IINFRASTRUCTURE) LTD,KONE PLC,Building Maintenance & Repairs,1025\5110135676,10 Aug 2022,"26,908.57",
DOCKLANDS LIGHT RAILWAY,XANTA LIMITED,Civil Engineering Construction Works,1012\5110144931,09 Aug 2022,"26,898.00",
TRANSPORT TRADING LTD,CITY OF WESTMINSTER,Rates,1004\1901686438,01 Aug 2022,"26,866.00",
SURFACE TRANSPORT CORP,TELENT TECHNOLOGY SERVICES LTD,Traffic Signals,1002\5110129626,25 Jul 2022,"26,835.10",
LONDON UNDERGROUND LTD,ABB LIMITED,Electrical Equipment Maintenance,1005\5110135390,27 Jul 2022,"26,809.23",
LONDON UNDERGROUND LTD,MOTIVAIR COMPRESSORS LTD,Maintenance Materials,1005\5110146526,08 Aug 2022,"26,797.75",
TRANSPORT TRADING LTD,DAISY CORPORATE SERVICES TRADINGLTD,Telephony Fixed,1004\5110140101,17 Aug 2022,"26,762.12",
TFL CORPORATE,LEMONGRASS CONSULTING LIMITED,Computer Software,1001\5110144502,10 Aug 2022,"26,664.00",
TRANSPORT TRADING LTD,TELENT TECHNOLOGY SERVICES LTD,Security Equipment,1004\5110135743,17 Aug 2022,"26,635.81",
DOCKLANDS LIGHT RAILWAY,PROGRESS RAIL SERVICES UK LTD,Civil Engineering Construction Works,1012\5110140930,17 Aug 2022,"26,602.00",
LONDON BUS SERVICES LTD,APOLLO VEHICLE SAFETY LIMITED,Vehicle Repairs & Maintenance,1006\5110133270,27 Jul 2022,"26,565.00",
TTL PROPERTIES LTD,JNG CONSTRUCTION & ENGINEERING,Building Maintenance & Repairs,1040\5110141427,01 Aug 2022,"26,467.11",
SURFACE TRANSPORT CORP,TELENT TECHNOLOGY SERVICES LTD,Traffic Signals,1002\5110137422,16 Aug 2022,"26,445.32",
DIAL A RIDE,VINCI CONSTRUCTION UK LTD,Building Maintenance & Repairs,1010\5110142732,05 Aug 2022,"26,296.28",
LONDON BUS SERVICES LTD,QUOD LTD,Planning & Development Consultancy,1006\5110143472,01 Aug 2022,"26,280.00",
TFL CORPORATE,2CV RESEARCH,Customer Research And Counts,1001\5110131272,27 Jul 2022,"26,275.00",
LONDON UNDERGROUND LTD,NETWORK RAIL INFRASTRUCTURE,Traction Current,1005\5110132416,27 Jul 2022,"26,253.27",
LONDON UNDERGROUND LTD,LPA EXCIL ELECTRONICS,Fleet,1005\5110140275,17 Aug 2022,"26,251.50",
TTL PROPERTIES LTD,LONDON LEGACY DEVELOPMENT CORPORATI,Management & Support Consultancy,1040\5110144086,04 Aug 2022,"26,229.88",
TRANSPORT TRADING LTD,CITY OF WESTMINSTER,Rates,1004\1901686449,01 Aug 2022,"26,201.00",
LONDON UNDERGROUND LTD,DYER & BUTLER LTD,Civil Engineering Construction Works,1005\5110144885,18 Aug 2022,"26,200.44",
LONDON UNDERGROUND LTD,HCL TECHNOLOGIES UK LTD,Computer Software,1005\5110142838,17 Aug 2022,"26,163.00",
LONDON UNDERGROUND LTD,FAIVELEY TRANSPORT,Fleet,1005\5110144587,17 Aug 2022,"26,121.56",
LONDON UNDERGROUND LTD,JOHN COBB & PARTNERS,Building Maintenance & Repairs,1005\5110145896,10 Aug 2022,"25,964.47",
LONDON UNDERGROUND LTD,BRITISH STEEL LIMITED ,Track General Maintenance,1005\5110130268,26 Jul 2022,"25,955.14",
LONDON UNDERGROUND LTD,BRITISH STEEL LIMITED ,Track General Maintenance,1005\5110130901,27 Jul 2022,"25,955.14",
LONDON UNDERGROUND LTD,MCGINLEY SUPPORT SERVICES LTD,Track General Maintenance,1005\5110146211,08 Aug 2022,"25,903.32",
LONDON UNDERGROUND LTD,SOLUTION RAIL LIMITED,MR Construction Costs,1005\5110146923,10 Aug 2022,"25,818.34",
RAIL FOR LONDON LIMITED,SYNECTICS SECURITY LTD,Vehicle Repairs & Maintenance,1020\5110146361,09 Aug 2022,"25,801.33",
LONDON TRANSPORT MUSEUM,GBM SERVICES LTD,Office Cleaning,1011\5110137578,25 Jul 2022,"25,698.57",
LONDON UNDERGROUND LTD,DELATIM LIMITED,MR Construction Costs,1005\5110139959,29 Jul 2022,"25,679.63",
TRANSPORT TRADING LTD,LONDON BOROUGH OF SOUTHWARK,Rates,1004\1901686405,01 Aug 2022,"25,669.00",
LONDON UNDERGROUND LTD,CLOSE BROTHERS RAIL LTD,Building Maintenance & Repairs,1005\5110147619,15 Aug 2022,"25,472.12",
TFL CORPORATE,AMAZON WEB SERVICES EMEA SARL,Manage IT Services,1001\5110138978,28 Jul 2022,"25,432.50",
TFL CORPORATE,DATAQUEST (HEATHROW) LTD,Software Maintenance,1001\5110143390,04 Aug 2022,"25,350.00",
LONDON UNDERGROUND LTD,THALES GROUND TRANSPORTATION SYSTEM,Computer Hardware,1005\5110129809,26 Jul 2022,"25,226.00",
SURFACE TRANSPORT CORP,INDRA SISTEMAS S.A.-BRANCH IN UK,Software Maintenance,1002\5110132546,27 Jul 2022,"25,204.28",
LONDON BUS SERVICES LTD,TRUEFORM ENGINEERING LTD,Maintenance of  Bus Stops,1006\5110138794,25 Jul 2022,"25,103.43",
SURFACE TRANSPORT CORP,CAPITA BUSINESS SERVICES LTD,CCS Service Contract,1002\5110134766,03 Aug 2022,"25,095.15",
LONDON UNDERGROUND LTD,TOTAL RAIL SOLUTIONS,Track General Maintenance,1005\5110147644,11 Aug 2022,"25,073.20",
TFL CORPORATE,AECOM LTD,Planning & Development Consultancy,1001\5110132500,27 Jul 2022,"25,016.62",
TFL CORPORATE,KORN FERRY (UK) LIMITED,Recruitment Agency Fees,1001\5110137906,05 Aug 2022,"25,000.00",
TFL CORPORATE,ASHURST LLP,Legal Fees,1001\5110136821,10 Aug 2022,"25,000.00",
TRANSPORT TRADING LTD,C & W (U.K.) LLP,Management & Support Consultancy,1004\5110146866,19 Aug 2022,"24,990.00",
RAIL FOR LONDON LIMITED,DYER & BUTLER LTD,Civil Engineering Construction Works,1020\5110138319,04 Aug 2022,"24,888.73",
DOCKLANDS LIGHT RAILWAY,INTERFLEET TECHNOLOGY LIMITED,Civil Engineering Construction Works,1012\5110137510,10 Aug 2022,"24,876.00",
LONDON UNDERGROUND LTD,ASPIRE,Planning & Development Consultancy,1005\5110143335,01 Aug 2022,"24,866.29",
LUL NOMINEE SSL LIMITED,KNORR-BREMSE RAIL SYSTEMS LTD,Fleet,1031\5110137137,10 Aug 2022,"24,810.36",
LONDON UNDERGROUND LTD,THALES GROUND TRANSPORTATION SYSTEM,Civil Engineering Construction Works,1005\5110146997,19 Aug 2022,"24,774.29",
TFL CORPORATE,DATAQUEST (HEATHROW) LTD,Computer Hardware,1001\5110143480,09 Aug 2022,"24,712.50",
SURFACE TRANSPORT CORP,INDRA SISTEMAS S.A.-BRANCH IN UK,Software Maintenance,1002\5110108345,04 Aug 2022,"24,703.84",
TFL CORPORATE,MOTT MACDONALD LIMITED,Management & Support Consultancy,1001\5110131095,27 Jul 2022,"24,700.00",
RAIL FOR LONDON LIMITED,OTB ENGINEERING LTD,Professional Engineering Services,1020\5110140045,28 Jul 2022,"24,675.00",
SURFACE TRANSPORT CORP,CAPITA BUSINESS SERVICES LTD,CCS Service Contract,1002\5110139655,16 Aug 2022,"24,668.17",
TFL CORPORATE,PROBRAND LTD,Software Maintenance,1001\5110127903,05 Aug 2022,"24,653.00",
TFL CORPORATE,LOUGHBOROUGH UNI ENTERPRISES LTD,Planning & Development Consultancy,1001\5110145169,16 Aug 2022,"24,644.50",
LONDON UNDERGROUND LTD,BROOKVEX IMS LTD,Lift Maintenance,1005\5110147285,11 Aug 2022,"24,569.77",
LONDON UNDERGROUND LTD,TRENITALIA C2C LTD,National Rail Qualifying Expenditure Charges,1005\5110137840,10 Aug 2022,"24,528.90",
LONDON UNDERGROUND LTD,RJC (UK) LTD,Building Maintenance & Repairs,1005\5110140047,17 Aug 2022,"24,476.35",
LONDON UNDERGROUND LTD,TOTAL RAIL SOLUTIONS,Track General Maintenance,1005\5110142748,01 Aug 2022,"24,466.00",
LONDON TRANSPORT MUSEUM,VINCI CONSTRUCTION UK LTD,Building Maintenance & Repairs,1011\5110142588,05 Aug 2022,"24,441.96",
VICTORIA COACH STATN LTD,RINGWAY INFRASTRUCTURE SERVICES LTD,Building Maintenance & Repairs,1008\5110148066,17 Aug 2022,"24,402.20",
LONDON UNDERGROUND LTD,GT GETTAXI (UK) LTD,Travel to/from work (Unsocial Hours),1005\5110147328,10 Aug 2022,"24,365.20",
TRANSPORT TRADING LTD,NOVACROFT DIRECT LTD,Ticket & Pass Production,1004\5110144049,08 Aug 2022,"24,252.94",
TFL CORPORATE,AMAZON WEB SERVICES EMEA SARL,Manage IT Services,1001\5110149602,16 Aug 2022,"24,209.17",
TFL CORPORATE,COGNIZANT WORLDWIDE LIMITED,Software Maintenance,1001\5110143168,17 Aug 2022,"24,198.00",
LUL NOMINEE BCV LIMITED,D & D RAIL LTD,MR Construction Costs,1033\5110143862,03 Aug 2022,"24,194.32",
LONDON UNDERGROUND LTD,SCHINDLER LTD,Lift Maintenance,1005\5110141870,28 Jul 2022,"24,067.04",
LONDON BUS SERVICES LTD,NEL HYDROGEN A/S,Vehicle Repairs & Maintenance,1006\5110131455,29 Jul 2022,"24,056.43",
TFL CORPORATE,XPS PENSIONS LIMITED,Management & Support Consultancy,1001\5110144919,17 Aug 2022,"23,992.00",
TTL PROPERTIES LTD,NCP SERVICES LTD,Property Management Fees,1040\5110137344,10 Aug 2022,"23,958.93",
TTL PROPERTIES LTD,EQUANS SERVICES LIMITED,Fire and Safety Equipment,1040\5110129474,03 Aug 2022,"23,907.30",
RAIL FOR LONDON LIMITED,BOMBARDIER TRANSPORT UK,Vehicle Repairs & Maintenance,1020\5110143139,01 Aug 2022,"23,481.03",
RFL (IINFRASTRUCTURE) LTD,SIEMENS MOBILITY LIMITED,Staff Training,1025\5110134820,11 Aug 2022,"23,414.80",
LONDON UNDERGROUND LTD,SCHUNK CARBON TECHNOLOGY LIMITED,Fleet,1005\5110141377,29 Jul 2022,"23,388.43",
LONDON RIVER SERVICES LTD,PORT OF LONDON AUTHORITY,Pier Charges,1007\5110132528,01 Aug 2022,"23,230.11",
LONDON UNDERGROUND LTD,ASPIRE,Planning & Development Consultancy,1005\5110140309,28 Jul 2022,"23,162.24",
LONDON UNDERGROUND LTD,SIEMENS MOBILITY LIMITED,Signals & Electricals stock issues,1005\5110139170,17 Aug 2022,"23,102.90",
CYCLE HIRE SCHEME,SERCO LTD,Concession Maintenance Charge,1016\5110131527,27 Jul 2022,"23,089.84",
LUL NOMINEE BCV LIMITED,KINGSBEECH LTD,Track General Maintenance,1033\5110139560,26 Jul 2022,"23,080.00",
DOCKLANDS LIGHT RAILWAY,MEX PROJECT SERVICES LTD,Civil Engineering Construction Works,1012\5110138102,28 Jul 2022,"23,047.20",
LUL NOMINEE SSL LIMITED,TRANSFORGED UK LTD ,Civil Engineering Construction Works,1031\5110144240,04 Aug 2022,"23,000.90",
DOCKLANDS LIGHT RAILWAY,DATA TECH HOLDINGS LTD,Civil Engineering Construction Works,1012\5110133384,03 Aug 2022,"22,975.88",
TFL CORPORATE,BURGES SALMON LLP,Legal Fees,1001\5110136882,27 Jul 2022,"22,943.00",
TRANSPORT TRADING LTD,JOURNEYCALL LTD,Ticket & Pass Production,1004\5110144241,18 Aug 2022,"22,841.50",
LONDON UNDERGROUND LTD,O2 UK LTD,Radio Pagers,1005\1900233005,08 Aug 2022,"22,834.40",
SURFACE TRANSPORT CORP,CSTS LTD,Road Maintenance,1002\5110134842,10 Aug 2022,"22,666.43",
LUL NOMINEE SSL LIMITED,KNORR-BREMSE RAIL SYSTEMS LTD,Fleet,1031\5110139262,15 Aug 2022,"22,650.16",
LUL NOMINEE SSL LIMITED,KNORR-BREMSE RAIL SYSTEMS LTD,Fleet,1031\5110141123,17 Aug 2022,"22,650.16",
TFL CORPORATE,INSIGHT EXECUTIVE GROUP LIMITED,IT Consultancy,1001\5110147954,16 Aug 2022,"22,500.00",
LONDON BUS SERVICES LTD,AIRWAVE SOLUTIONS LTD,Radio Systems Equipment & Maintenance,1006\5110135945,09 Aug 2022,"22,379.16",
LONDON BUS SERVICES LTD,TRUEFORM ENGINEERING LTD,Building Maintenance & Repairs,1006\5110142140,01 Aug 2022,"22,366.41",
RAIL FOR LONDON LIMITED,VINCI CONSTRUCTION UK LTD,Building Maintenance & Repairs,1020\5110143032,29 Jul 2022,"22,337.64",
TFL CORPORATE,MACE LTD,Civil Engineering Construction Works,1001\5110143163,19 Aug 2022,"22,282.17",
TFL CORPORATE,PERTEMPS RECRUITMENT PARTNERSHIPLTD,Recruitment Expenses,1001\5110144909,19 Aug 2022,"22,258.00",
RFL (IINFRASTRUCTURE) LTD,ALSTOM PRODUCT AND SERVICES LIMITED,Stock of Other Spares,1025\5110140046,18 Aug 2022,"22,225.09",
LONDON BUS SERVICES LTD,TRAPEZE PTI LTD,Electrical & Electronic Engineering,1006\5110135284,05 Aug 2022,"22,174.55",
LONDON UNDERGROUND LTD,DUCTCLEAN (UK) LTD T/A DCUK FM,Building Maintenance & Repairs,1005\5110149864,17 Aug 2022,"22,141.20",
RAIL FOR LONDON LIMITED,AECOM LTD,Professional Engineering Services,1020\5110138347,10 Aug 2022,"22,114.20",
RFL (IINFRASTRUCTURE) LTD,MITIE FM LIMITED,Security Services (Guards),1025\5110148095,11 Aug 2022,"22,110.76",
LUL NOMINEE SSL LIMITED,PROGRESS RAIL SERVICES UK LTD,Track General Maintenance,1031\5110133414,02 Aug 2022,"22,095.00",
LT MUSEUM TRADING LTD,LONDON BOROUGH OF CAMDEN,Property Service Charges,1024\5110135531,02 Aug 2022,"22,090.00",
TFL CORPORATE,VCCP GROUP LLP,Production Artwork And Design For Marketing,1001\5110135512,08 Aug 2022,"22,085.00",
LONDON UNDERGROUND LTD,EQUANS SERVICES LIMITED,Equipment Repairs & Maintenance,1005\5110133382,03 Aug 2022,"22,004.92",
LUL NOMINEE SSL LIMITED,SIEMENS MOBILITY LIMITED,Signalling Systems,1031\5110140029,25 Jul 2022,"22,000.00",
LUL NOMINEE SSL LIMITED,SIEMENS MOBILITY LIMITED,Signalling Systems,1031\5110147161,17 Aug 2022,"22,000.00",
TTL PROPERTIES LTD,JNG CONSTRUCTION & ENGINEERING,Civil Engineering Construction Works,1040\5110137321,29 Jul 2022,"21,989.13",
TFL CORPORATE,AECOM LTD,Planning & Development Consultancy,1001\5110135823,08 Aug 2022,"21,903.20",
TRANSPORT TRADING LTD,CITY OF WESTMINSTER,Rates,1004\1901686440,01 Aug 2022,"21,888.00",
TFL CORPORATE,PERTEMPS RECRUITMENT PARTNERSHIPLTD,Recruitment Expenses,1001\5110144907,19 Aug 2022,"21,870.00",
LONDON UNDERGROUND LTD,TELENT TECHNOLOGY SERVICES LTD,Equipment Repairs & Maintenance,1005\5110133967,10 Aug 2022,"21,864.08",
LONDON UNDERGROUND LTD,MEDIAEDGE,Social Media And Digital Advertising Space,1005\5110110813,25 Jul 2022,"21,847.63",
LT MUSEUM TRADING LTD,YARTO EUROPE LIMITED,LTM Purchase of Clothing & Accessories - Adults,1024\1900021739,09 Aug 2022,"21,827.52",
LONDON UNDERGROUND LTD,STRATEGIC RAIL CONSULTANTS LTD,MR Construction Costs,1005\5110135959,28 Jul 2022,"21,681.00",
TRANSPORT TRADING LTD,NOVACROFT DIRECT LTD,Ticket & Pass Production,1004\5110144053,08 Aug 2022,"21,593.31",
RAIL FOR LONDON LIMITED,GBM SERVICES LTD,Operational Cleaning,1020\5110139665,25 Jul 2022,"21,489.02",
LUL NOMINEE BCV LIMITED,EMICO LTD,MR Construction Costs,1033\5110140909,29 Jul 2022,"21,452.62",
LONDON BUS SERVICES LTD,TRAPEZE PTI LTD,Computer Consumables,1006\5110136778,12 Aug 2022,"21,442.26",
TRANSPORT TRADING LTD,DAISY CORPORATE SERVICES TRADINGLTD,Telephony Fixed,1004\5110140121,17 Aug 2022,"21,400.00",
TRANSPORT TRADING LTD,THAMES CLIPPERS,Gross Sales Clearance,1004\1901686918,18 Aug 2022,"21,389.39",
LONDON BUS SERVICES LTD,WRAGGE & CO,Legal Fees,1006\5110139149,05 Aug 2022,"21,388.00",
LONDON RIVER SERVICES LTD,PORT OF LONDON AUTHORITY,Pier Charges,1007\5110132521,01 Aug 2022,"21,364.45",
DOCKLANDS LIGHT RAILWAY,UNIVERSITY OF HUDDERSFIELD ,Civil Engineering Construction Works,1012\5110133185,02 Aug 2022,"21,306.00",
LONDON UNDERGROUND LTD,MEDIAEDGE,Social Media And Digital Advertising Space,1005\5110123650,25 Jul 2022,"21,296.07",
SURFACE TRANSPORT CORP,CSTS LTD,Traffic Signals,1002\5110141477,09 Aug 2022,"21,275.00",
DOCKLANDS LIGHT RAILWAY,UK POWER NETWORKS LTD,Civil Engineering Construction Works,1012\5110134761,27 Jul 2022,"21,256.57",
TTL PROPERTIES LTD,COMMANDER BUILDING SERVICES LIMITED,MR Construction Costs,1040\5110142174,17 Aug 2022,"21,234.50",
LONDON UNDERGROUND LTD,O2 UK LTD,Radio Pagers,1005\1900233004,08 Aug 2022,"21,182.87",
LONDON UNDERGROUND LTD,TRELLEBORG INDUSTRIAL AVS,Fleet,1005\5110127205,10 Aug 2022,"21,175.63",
LONDON UNDERGROUND LTD,GBM SERVICES LTD,Operational Cleaning,1005\5110143827,04 Aug 2022,"21,015.55",
LONDON BUS SERVICES LTD,LONDON UNITED BUSWAYS,Bus Contract Payments,1006\1900047687,05 Aug 2022,"21,013.20",
LONDON UNDERGROUND LTD,COONEEN DEFENCE LTD,Uniforms,1005\5110144451,11 Aug 2022,"20,887.83",
LONDON UNDERGROUND LTD,ALPHABET (GB) LIMITED,Vehicle Operating Leases,1005\5110133033,27 Jul 2022,"20,829.23",
LONDON UNDERGROUND LTD,ECON CONSTRUCTION LTD,Building Maintenance & Repairs,1005\5110134691,03 Aug 2022,"20,821.54",
RFL (IINFRASTRUCTURE) LTD,MITIE FM LIMITED,Security Services (Guards),1025\5110144938,04 Aug 2022,"20,792.31",
LONDON UNDERGROUND LTD,ECON CONSTRUCTION LTD,Building Maintenance & Repairs,1005\5110142404,03 Aug 2022,"20,766.00",
TFL CORPORATE,VCCP GROUP LLP,Data Hosting Email Design And Transmission Inc SMS,1001\5110137950,10 Aug 2022,"20,764.02",
LONDON UNDERGROUND LTD,EQUANS SERVICES LIMITED,Equipment Repairs & Maintenance,1005\5110145089,18 Aug 2022,"20,761.21",
LUL NOMINEE SSL LIMITED,LUCCHINI UK LTD,Signalling Systems,1031\5110138437,03 Aug 2022,"20,759.50",
LUL NOMINEE SSL LIMITED,SCHAEFFLER (UK) LTD,Fleet,1031\5110136413,08 Aug 2022,"20,646.50",
TFL CORPORATE,AECOM LTD,Planning & Development Consultancy,1001\5110139009,16 Aug 2022,"20,599.14",
LONDON UNDERGROUND LTD,CHANTAL-AIMEE DOERRIES QC,Legal Fees,1005\5110139187,25 Jul 2022,"20,570.00",
LONDON UNDERGROUND LTD,BRITISH STEEL LIMITED ,Track General Maintenance,1005\5110140804,17 Aug 2022,"20,490.90",
LONDON UNDERGROUND LTD,LPA EXCIL ELECTRONICS,Fleet,1005\5110139554,10 Aug 2022,"20,433.60",
TFL CORPORATE,CREACTIVE DESIGN LTD,Management & Support Consultancy,1001\5110140297,27 Jul 2022,"20,392.00",
SURFACE TRANSPORT CORP,TELENT TECHNOLOGY SERVICES LTD,Traffic Signals,1002\5110129600,25 Jul 2022,"20,376.66",
TFL CORPORATE,ARK SIGNALLING CONSULTANCY,Management & Support Consultancy,1001\5110141449,02 Aug 2022,"20,350.00",
RAIL FOR LONDON LIMITED,UK POWER NETWORKS LTD,Management & Support Consultancy,1020\5110141650,17 Aug 2022,"20,319.00",
LONDON UNDERGROUND LTD,L.B FOSTER RAIL TECHNOLOGIES(UK)LTD,Track General Maintenance,1005\5110139065,10 Aug 2022,"20,250.00",
TFL CORPORATE,INTERFLEET TECHNOLOGY LIMITED,Management & Support Consultancy,1001\5110136902,10 Aug 2022,"20,242.85",
TFL CORPORATE,HCL TECHNOLOGIES UK LTD,Computer Software,1001\5110142841,17 Aug 2022,"20,234.75",
LUL NOMINEE SSL LIMITED,SCHUNK CARBON TECHNOLOGY LIMITED,Fleet,1031\5110133167,29 Jul 2022,"20,220.31",
LONDON UNDERGROUND LTD,ALSTOM NL SERVICE PROVISION LTD,Civil Engineering Construction Works,1005\5110138037,25 Jul 2022,"20,125.98",
SURFACE TRANSPORT CORP,TELENT TECHNOLOGY SERVICES LTD,Traffic Signals,1002\5110137335,10 Aug 2022,"20,105.55",
DOCKLANDS LIGHT RAILWAY,MEDIAEDGE,Radio TV Press Poster Cinema Airtime And Space,1012\5110136204,28 Jul 2022,"20,105.54",
TFL CORPORATE,HCL TECHNOLOGIES UK LTD,Computer Software,1001\5110132703,26 Jul 2022,"20,100.00",
LONDON UNDERGROUND LTD,4 RAIL SERVICES LTD,Track General Maintenance,1005\5110139356,26 Jul 2022,"20,075.00",
LUL NOMINEE BCV LIMITED,COMPUTACENTER PLC,Maintenance Materials,1033\5110139991,17 Aug 2022,"20,065.00",
LUL NOMINEE SSL LIMITED,SCHUNK CARBON TECHNOLOGY LIMITED,Fleet,1031\5110141612,29 Jul 2022,"20,052.06",
TFL CORPORATE,CITY OF WESTMINSTER,Borough Services,1001\1900114030,10 Aug 2022,"20,000.00",
LONDON UNDERGROUND LTD,IRSE ENTERPRISES LIMITED,Signalling Systems,1005\5110139429,19 Aug 2022,"20,000.00",
RAIL FOR LONDON LIMITED,ARRIVA LONDON NORTH LTD,Rail Replacement Service Costs,1020\5110140935,12 Aug 2022,"19,884.89",
LONDON UNDERGROUND LTD,HAYLEY GROUP PLC,Fleet,1005\5110105215,28 Jul 2022,"19,824.77",
LUL NOMINEE BCV LIMITED,SIEMENS MOBILITY LIMITED,Signalling Systems,1033\5110147156,19 Aug 2022,"19,800.00",
TFL CORPORATE,AMAZON,Software Maintenance,1001\5110149563,16 Aug 2022,"19,787.85",
RFL (IINFRASTRUCTURE) LTD,LANES GROUP PLC,Building Maintenance & Repairs,1025\5110135494,08 Aug 2022,"19,702.00",
LONDON BUS SERVICES LTD,AA DRIVETECH,Management & Support Consultancy,1006\5110124116,08 Aug 2022,"19,677.50",
LONDON BUS SERVICES LTD,AA DRIVETECH,Management & Support Consultancy,1006\5110099661,29 Jul 2022,"19,677.00",
TFL CORPORATE,MOTT MACDONALD LIMITED,Management & Support Consultancy,1001\5110140298,17 Aug 2022,"19,646.10",
DIAL A RIDE,MERTON COMMUNITY TRANSPORT,Operator Costs,1010\5110150181,18 Aug 2022,"19,614.40",
RAIL FOR LONDON LIMITED,SULLIVAN BUS & COACH LIMITED,Rail Replacement Service Costs,1020\5110142097,01 Aug 2022,"19,594.52",
LONDON UNDERGROUND LTD,CREACTIVE DESIGN LTD,Maintenance Materials,1005\5110142162,29 Jul 2022,"19,489.40",
LONDON UNDERGROUND LTD,CREACTIVE DESIGN LTD,Maintenance Materials,1005\5110144639,05 Aug 2022,"19,489.40",
TRANSPORT TRADING LTD,EQUANS SERVICES LIMITED,Fire and Safety Equipment,1004\5110145532,18 Aug 2022,"19,431.23",
LONDON UNDERGROUND LTD,SPEEDY ASSET SERVICES LTD,Equipment Repairs & Maintenance,1005\5110140115,25 Jul 2022,"19,307.60",
LONDON UNDERGROUND LTD,SPEEDY ASSET SERVICES LTD,Equipment Repairs & Maintenance,1005\5110139988,25 Jul 2022,"19,307.00",
LONDON UNDERGROUND LTD,API CAPACITORS LIMITED,Maintenance Materials,1005\5110148102,12 Aug 2022,"19,248.06",
LONDON UNDERGROUND LTD,PROCTER BROTHERS LTD,MR Construction Costs,1005\5110138823,04 Aug 2022,"19,197.00",
LONDON BUS SERVICES LTD,UNIVERSITY BUS LTD,Bus Contract Payments,1006\1900047750,19 Aug 2022,"19,196.21",
SURFACE TRANSPORT CORP,TELENT TECHNOLOGY SERVICES LTD,Traffic Signals,1002\5110137315,10 Aug 2022,"19,124.79",
LONDON UNDERGROUND LTD,CLOSE BROTHERS RAIL LTD,Building Maintenance & Repairs,1005\5110147628,15 Aug 2022,"19,120.85",
SURFACE TRANSPORT CORP,O2 UK LTD,Computer Hardware,1002\5110133018,02 Aug 2022,"19,120.00",
SURFACE TRANSPORT CORP,ADDLESHAW GODDARD LLP,Legal Fees,1002\5110135968,26 Jul 2022,"19,107.00",
RAIL FOR LONDON LIMITED,SULLIVAN BUS & COACH LIMITED,Rail Replacement Service Costs,1020\5110142099,01 Aug 2022,"18,991.40",
DOCKLANDS LIGHT RAILWAY,MCNEALY BROWN LTD,Civil Engineering Construction Works,1012\5110140978,03 Aug 2022,"18,961.56",
LONDON UNDERGROUND LTD,AECOM LTD,Management & Support Consultancy,1005\5110137591,05 Aug 2022,"18,933.61",
LONDON UNDERGROUND LTD,SERCO LTD,Civil Engineering Construction Works,1005\5110131711,27 Jul 2022,"18,933.23",
RAIL FOR LONDON LIMITED,OVE ARUP & PARTNERS LTD,Management & Support Consultancy,1020\5110141487,17 Aug 2022,"18,925.00",
TFL CORPORATE,ARK SIGNALLING CONSULTANCY,Management & Support Consultancy,1001\5110141212,29 Jul 2022,"18,900.00",
RAIL FOR LONDON LIMITED,OTB ENGINEERING LTD,Professional Engineering Services,1020\5110140011,28 Jul 2022,"18,900.00",
LONDON BUS SERVICES LTD,MITIE CLEANING & ENVIRONMENTAL,"Maps, Timetables & Fare Information",1006\5110133118,27 Jul 2022,"18,893.96",
LONDON UNDERGROUND LTD,EQUANS SERVICES LIMITED,Equipment Repairs & Maintenance,1005\5110145551,18 Aug 2022,"18,887.87",
RFL (IINFRASTRUCTURE) LTD,KINGSBEECH LTD,Computer Hardware,1025\5110144388,17 Aug 2022,"18,881.50",
LONDON UNDERGROUND LTD,METROLINE TRAVEL LTD,Rail Replacement Service Costs,1005\5110140697,17 Aug 2022,"18,875.71",
TRANSPORT TRADING LTD,FRANKHAM CONSULTANCY GROUP LTD,Building Maintenance & Repairs,1004\5110141645,01 Aug 2022,"18,870.00",
TTL PROPERTIES LTD,COMMANDER BUILDING SERVICES LIMITED,MR Construction Costs,1040\5110142156,04 Aug 2022,"18,798.48",
SURFACE TRANSPORT CORP,TELENT TECHNOLOGY SERVICES LTD,Traffic Signals,1002\5110137418,25 Jul 2022,"18,775.87",
TFL CORPORATE,BDB PITMANS LLP,Legal Fees,1001\5110150387,19 Aug 2022,"18,747.09",
TFL CORPORATE,GLASS WALLS AND DOORS,Office Accommodation Moves,1001\5110143072,09 Aug 2022,"18,650.00",
TRANSPORT TRADING LTD,CHANTAL-AIMEE DOERRIES QC,Legal Fees,1004\5110145374,05 Aug 2022,"18,645.00",
LONDON UNDERGROUND LTD,DISAB UK LTD,Fleet,1005\5110134309,27 Jul 2022,"18,590.00",
LONDON RIVER SERVICES LTD,OVE ARUP & PARTNERS LTD,Management & Support Consultancy,1007\5110140979,17 Aug 2022,"18,579.00",
LUL NOMINEE SSL LIMITED,BOMBARDIER TRANSPORT UK,Fleet,1031\5110131225,27 Jul 2022,"18,565.68",
TRANSPORT TRADING LTD,THAMES CLIPPERS,Gross Sales Clearance,1004\1901686917,19 Aug 2022,"18,548.04",
LUL NOMINEE BCV LIMITED,HAYLEY GROUP PLC,Maintenance Materials,1033\5110133820,03 Aug 2022,"18,530.07",
SURFACE TRANSPORT CORP,CAPITA BUSINESS SERVICES LTD,CCS Service Contract,1002\5110129997,26 Jul 2022,"18,451.72",
LONDON UNDERGROUND LTD,SAFETY KLEEN UK LTD,Maintenance of Plant & Equipment,1005\5110119397,29 Jul 2022,"18,409.43",
LONDON UNDERGROUND LTD,SAFETY KLEEN UK LTD,Maintenance of Plant & Equipment,1005\5110131766,02 Aug 2022,"18,409.43",
LONDON UNDERGROUND LTD,KNORR-BREMSE RAIL SYSTEMS LTD,Fleet,1005\5110130839,27 Jul 2022,"18,350.00",
LONDON UNDERGROUND LTD,KNORR-BREMSE RAIL SYSTEMS LTD,Fleet,1005\5110140185,17 Aug 2022,"18,350.00",
LONDON UNDERGROUND LTD,KNORR-BREMSE RAIL SYSTEMS LTD,Fleet,1005\5110140186,17 Aug 2022,"18,350.00",
TFL CORPORATE,VCCP GROUP LLP,Production Artwork And Design For Marketing,1001\5110135510,08 Aug 2022,"18,340.00",
TFL CORPORATE,BENUGO,Caterers Service Charges,1001\5110135783,03 Aug 2022,"18,287.50",
SURFACE TRANSPORT CORP,CHARLES FORREST,Legal Fees,1002\5110143227,01 Aug 2022,"18,250.00",
RFL (IINFRASTRUCTURE) LTD,ICOMERA UK LTD,Manage IT Services,1025\5110144643,11 Aug 2022,"18,200.00",
LONDON TRANSPORT MUSEUM,EXIB LTD,Marketing Exhibitions & Events,1011\5110140693,10 Aug 2022,"18,198.00",
LONDON UNDERGROUND LTD,TELENT TECHNOLOGY SERVICES LTD,Cameras,1005\5110143856,02 Aug 2022,"18,197.16",
SURFACE TRANSPORT CORP,TELENT TECHNOLOGY SERVICES LTD,Traffic Signals,1002\5110137306,10 Aug 2022,"18,182.86",
LONDON UNDERGROUND LTD,SPECIALIST ENGINEERING SERVICES,Track General Maintenance,1005\5110135188,03 Aug 2022,"18,097.94",
LONDON UNDERGROUND LTD,DUCTCLEAN (UK) LTD T/A DCUK FM,Track General Maintenance,1005\5110144463,04 Aug 2022,"18,011.44",
TFL CORPORATE,GLOBAL OUTDOOR MEDIA LIMITED,Social Media And Digital Advertising Space,1001\5110134402,03 Aug 2022,"18,000.00",
LONDON UNDERGROUND LTD,METROLINE TRAVEL LTD,Rail Replacement Service Costs,1005\5110140694,17 Aug 2022,"17,987.60",
RAIL FOR LONDON LIMITED,ENERGY AND SYSTEM TECHNICAL LTD,Management & Support Consultancy,1020\5110144214,04 Aug 2022,"17,983.00",
LONDON BUS SERVICES LTD,TRAPEZE PTI LTD,Computer Consumables,1006\5110138169,18 Aug 2022,"17,966.07",
LONDON UNDERGROUND LTD,THE TIMBER GROUP LTD,Track General Maintenance,1005\5110135655,11 Aug 2022,"17,931.60",
LUL NOMINEE SSL LIMITED,ALSTOM TRANSPORT LTD,Fleet,1031\5110147797,19 Aug 2022,"17,772.00",
LONDON UNDERGROUND LTD,THALES GROUND TRANSPORTATION SYSTEM,Civil Engineering Construction Works,1005\5110146937,17 Aug 2022,"17,735.16",
TRANSPORT TRADING LTD,WAVE UTILITIES,Water,1004\1901686349,11 Aug 2022,"17,666.03",
TFL CORPORATE,MDV MENTZ DATENVERARBEITUNG GMBH,Computer Software,1001\5110137387,12 Aug 2022,"17,640.00",
TFL CORPORATE,MACE LTD,Civil Engineering Construction Works,1001\5110131325,27 Jul 2022,"17,571.69",
TRANSPORT TRADING LTD,POST OFFICE LTD,Ticket & Pass Production,1004\5110129059,25 Jul 2022,"17,536.00",
CYCLE HIRE SCHEME,SERCO LTD,Concession Maintenance Charge,1016\5110129693,25 Jul 2022,"17,466.48",
CYCLE HIRE SCHEME,SERCO LTD,Concession Maintenance Charge,1016\5110137885,10 Aug 2022,"17,466.48",
TRANSPORT TRADING LTD,THAMES CLIPPERS,Gross Sales Clearance,1004\1901686916,18 Aug 2022,"17,452.23",
SURFACE TRANSPORT CORP,PAVEMENT TESTING SERVICES LIMITED,Road Maintenance,1002\5110140817,08 Aug 2022,"17,433.00",
DOCKLANDS LIGHT RAILWAY,HYDER CONSULTING (UK) LTD,Civil Engineering Construction Works,1012\5110133288,02 Aug 2022,"17,414.71",
PUBLIC CARRIAGE OFFICE,NSL LIMITED,PCO Outsourced Services,1003\5110137307,10 Aug 2022,"17,397.62",
LONDON BUS SERVICES LTD,AA DRIVETECH,Management & Support Consultancy,1006\5110107671,29 Jul 2022,"17,381.35",
TFL CORPORATE,DATAQUEST (HEATHROW) LTD,Software Maintenance,1001\5110143388,04 Aug 2022,"17,333.33",
LONDON UNDERGROUND LTD,BRUSH TRACTION LTD,Fleet,1005\5110132632,27 Jul 2022,"17,327.50",
LONDON UNDERGROUND LTD,CAPITA BUSINESS SERVICES LTD,Maintenance of Telecommunications Equipment,1005\5110133483,02 Aug 2022,"17,318.14",
RFL (IINFRASTRUCTURE) LTD,ALSTOM PRODUCT AND SERVICES LIMITED,Stock of Other Spares,1025\5110140044,17 Aug 2022,"17,296.25",
SURFACE TRANSPORT CORP,TELENT TECHNOLOGY SERVICES LTD,Traffic Signals,1002\5110137412,04 Aug 2022,"17,193.86",
LONDON BUS SERVICES LTD,J C ELECTRICAL LTD,Building Maintenance & Repairs,1006\5110143028,15 Aug 2022,"17,170.00",
LONDON BUS SERVICES LTD,TRUEFORM ENGINEERING LTD,Building Maintenance & Repairs,1006\5110138789,25 Jul 2022,"17,130.97",
PUBLIC CARRIAGE OFFICE,AECOM LTD,Customer Research And Counts,1003\5110134913,03 Aug 2022,"17,102.00",
LONDON BUS SERVICES LTD,QUOD LTD,Planning & Development Consultancy,1006\5110143402,01 Aug 2022,"17,000.00",
LONDON UNDERGROUND LTD,EQUANS SERVICES LIMITED,Equipment Repairs & Maintenance,1005\5110145562,18 Aug 2022,"16,986.12",
RFL (IINFRASTRUCTURE) LTD,MORSON HUMAN RESOURCES LTD,Management & Support Consultancy,1025\5110130629,27 Jul 2022,"16,888.26",
LONDON UNDERGROUND LTD,GBM SERVICES LTD,Operational Cleaning,1005\5110140748,26 Jul 2022,"16,887.67",
LONDON UNDERGROUND LTD,R S CLARE & CO LTD,Vehicle Parts Gas Oil & Lubricants,1005\5110130117,26 Jul 2022,"16,806.24",
LONDON UNDERGROUND LTD,R S CLARE & CO LTD,Vehicle Parts Gas Oil & Lubricants,1005\5110130711,27 Jul 2022,"16,806.24",
TRANSPORT TRADING LTD,LONDON BOROUGH OF HAMM& FULHAM,Rates,1004\1901686429,01 Aug 2022,"16,758.00",
TFL CORPORATE,XPS PENSIONS LIMITED,Management & Support Consultancy,1001\5110144596,17 Aug 2022,"16,756.10",
TRANSPORT TRADING LTD,CITY OF WESTMINSTER,Rates,1004\1901686901,17 Aug 2022,"16,625.00",
TFL CORPORATE,PROBRAND LTD,Software Maintenance,1001\5110133950,03 Aug 2022,"16,610.71",
TFL CORPORATE,COSTAIN LTD,Management & Support Consultancy,1001\5110133613,27 Jul 2022,"16,560.00",
RFL (IINFRASTRUCTURE) LTD,OPEN TEXT UK LTD,Software Maintenance,1025\5110136986,08 Aug 2022,"16,499.27",
LONDON UNDERGROUND LTD,MOTIVAIR COMPRESSORS LTD,Maintenance Materials,1005\5110146524,08 Aug 2022,"16,492.54",
VICTORIA COACH STATN LTD,STAGECOACH SERVICES LIMITED,VCS Repayments & Commission,1008\1900004668,27 Jul 2022,"16,477.16",
LONDON UNDERGROUND LTD,OCL RAIL LTD,Contracted Services Buildings,1005\5110138528,25 Jul 2022,"16,416.93",
TRANSPORT TRADING LTD,ATOC,Software Maintenance,1004\5110132984,01 Aug 2022,"16,400.00",
TFL CORPORATE,CRABTREE PROJECTS LTD,Management & Support Consultancy,1001\5110141004,01 Aug 2022,"16,300.00",
TRANSPORT TRADING LTD,BT SERVICE AGILITY,Computer Hardware,1004\1901686111,03 Aug 2022,"16,296.39",
RAIL FOR LONDON LIMITED,BT SERVICE AGILITY,Telephony Fixed,1020\1900007139,08 Aug 2022,"16,292.05",
TFL CORPORATE,DIGITAL REALTY (UK) LIMITED,Computer Hardware,1001\5110141848,10 Aug 2022,"16,250.92",
TFL CORPORATE,HYDER CONSULTING (UK) LTD,Management & Support Consultancy,1001\5110135456,08 Aug 2022,"16,236.00",
LUL NOMINEE SSL LIMITED,KNORR-BREMSE RAIL SYSTEMS LTD,Signalling Systems,1031\5110131915,27 Jul 2022,"16,233.00",
TFL CORPORATE,JACOBS ENGINEERING UK LTD,Planning & Development Consultancy,1001\5110130791,26 Jul 2022,"16,167.46",
LONDON UNDERGROUND LTD,GPX ENGINEERING LTD,Track General Maintenance,1005\5110150245,18 Aug 2022,"16,166.28",
TRANSPORT TRADING LTD,CITY OF WESTMINSTER,Rates,1004\1901686445,01 Aug 2022,"16,093.00",
TRANSPORT TRADING LTD,LONDON BOROUGH OF GREENWICH,Rates,1004\1901686475,01 Aug 2022,"16,093.00",
LONDON UNDERGROUND LTD,MODULAR DISTRIBUTION SYSTEMS,Signalling Systems,1005\5110138638,10 Aug 2022,"16,038.00",
LONDON UNDERGROUND LTD,COGNIZANT WORLDWIDE LIMITED,Software Maintenance,1005\5110133470,27 Jul 2022,"16,005.00",
SURFACE TRANSPORT CORP,NETWORK RAIL INFRASTRUCTURE,Road Maintenance,1002\5110133075,01 Aug 2022,"15,985.00",
LONDON UNDERGROUND LTD,CORYS,Fleet Tsssa Contract,1005\5110133581,08 Aug 2022,"15,925.18",
TFL CORPORATE,LONDON FIRE & EMERGENCY PLANNING,Software Maintenance,1001\5110136119,09 Aug 2022,"15,924.72",
TFL CORPORATE,CORPORATE DOCUMENT SERVICES LTD,Design & Production Of Maps & Timetable Publicity,1001\5110135991,29 Jul 2022,"15,897.65",
SURFACE TRANSPORT CORP,TURNAMMS ASSESSORS,Accident claims recovery,1002\1900072221,01 Aug 2022,"15,882.44",
DOCKLANDS LIGHT RAILWAY,MEDIAEDGE,Radio TV Press Poster Cinema Airtime And Space,1012\5110137929,02 Aug 2022,"15,822.14",
LONDON UNDERGROUND LTD,SCHINDLER LTD,Lift Maintenance,1005\5110141843,05 Aug 2022,"15,799.70",
LONDON UNDERGROUND LTD,MORS SMITT STS SIGNALS,Fleet,1005\5110144562,03 Aug 2022,"15,706.60",
TRANSPORT TRADING LTD,BT SERVICE AGILITY,Telephony Fixed,1004\1901686369,03 Aug 2022,"15,694.60",
LONDON UNDERGROUND LTD,CAPITA BUSINESS SERVICES LTD,Maintenance of Telecommunications Equipment,1005\5110131717,27 Jul 2022,"15,666.28",
LONDON UNDERGROUND LTD,BRECKNELL WILLIS & CO LTD,Fleet,1005\5110134732,03 Aug 2022,"15,627.00",
LUL NOMINEE BCV LIMITED,KINGSBEECH LTD,Maintenance Materials,1033\5110140822,28 Jul 2022,"15,624.35",
TFL CORPORATE,FAITHFUL+GOULD,Management & Support Consultancy,1001\5110129773,25 Jul 2022,"15,618.00",
TRANSPORT TRADING LTD,LONDON BOROUGH OF LAMBETH,Rates,1004\1901686466,01 Aug 2022,"15,561.00",
SURFACE TRANSPORT CORP,TELENT TECHNOLOGY SERVICES LTD,Traffic Signals,1002\5110137324,10 Aug 2022,"15,469.14",
LONDON UNDERGROUND LTD,STS STORAGE SYSTEMS LTD,Maintenance Materials,1005\5110147658,10 Aug 2022,"15,450.00",
LONDON UNDERGROUND LTD,CALDERS & GRANDIDGE,Fleet,1005\5110130990,27 Jul 2022,"15,417.00",
LONDON BUS SERVICES LTD,AA DRIVETECH,Management & Support Consultancy,1006\5110136813,29 Jul 2022,"15,413.65",
LONDON BUS SERVICES LTD,HAMMERSON OPERATIONS LTD,Building Maintenance & Repairs,1006\1900047701,16 Aug 2022,"15,360.00",
LONDON UNDERGROUND LTD,RHINO DOORS,MR Construction Costs,1005\5110144882,05 Aug 2022,"15,327.60",
LONDON UNDERGROUND LTD,CORYS,Fleet Tsssa Contract,1005\5110091211,08 Aug 2022,"15,324.16",
RAIL FOR LONDON LIMITED,THALES GROUND TRANSPORTATION SYSTEM,Management & Support Consultancy,1020\5110139565,17 Aug 2022,"15,307.00",
RAIL FOR LONDON LIMITED,LANES GROUP PLC,Property Management Fees,1020\5110140274,17 Aug 2022,"15,259.76",
DOCKLANDS LIGHT RAILWAY,BURO HAPPOLD LTD,Planning & Development Consultancy,1012\5110143050,05 Aug 2022,"15,252.91",
LONDON UNDERGROUND LTD,FAITHFUL+GOULD,Planning & Development Consultancy,1005\5110129791,26 Jul 2022,"15,250.29",
TFL CORPORATE,STEER,Planning & Development Consultancy,1001\5110132793,01 Aug 2022,"15,246.00",
RAIL FOR LONDON LIMITED,OTB ENGINEERING LTD,Professional Engineering Services,1020\5110140811,28 Jul 2022,"15,225.00",
TFL CORPORATE,PORTARAMP UK LTD,Building Maintenance & Repairs,1001\5110140229,26 Jul 2022,"15,215.00",
LONDON UNDERGROUND LTD,MODULAR DISTRIBUTION SYSTEMS,Lifts & Escalators stock issues,1005\5110150425,18 Aug 2022,"15,130.20",
LUL NOMINEE BCV LIMITED,HAYLEY GROUP PLC,Maintenance Materials,1033\5110149559,16 Aug 2022,"15,053.15",
TFL CORPORATE,FAITHFUL+GOULD,Management & Support Consultancy,1001\5110129840,26 Jul 2022,"15,048.00",
LUL NOMINEE SSL LIMITED,MANTEC ENGINEERING LTD,Signalling Systems,1031\5110148446,15 Aug 2022,"15,038.70",
RFL (IINFRASTRUCTURE) LTD,RS COMPONENTS LTD,Maintenance Materials,1025\5110141471,08 Aug 2022,"15,035.40",
TTL PROPERTIES LTD,NCP SERVICES LTD,Property Management Fees,1040\5110137339,10 Aug 2022,"15,000.00",
LONDON TRANSPORT MUSEUM,BAUER RADIO LIMITED,Advertising,1011\5110144034,05 Aug 2022,"15,000.00",
TFL CORPORATE,INSIGHT EXECUTIVE GROUP LIMITED,Management & Support Consultancy,1001\5110147972,16 Aug 2022,"15,000.00",
LONDON UNDERGROUND LTD,MERMEC UK LIMITED,Maintenance Materials,1005\5110135929,08 Aug 2022,"14,985.58",
LUL NOMINEE SSL LIMITED,KNORR-BREMSE RAIL SYSTEMS LTD,Signalling Systems,1031\5110141117,17 Aug 2022,"14,968.40",
LUL NOMINEE BCV LIMITED,KGJ PRICE LTD,Track General Maintenance,1033\5110140212,26 Jul 2022,"14,935.40",
TFL CORPORATE,SPECIALIST COMPUTER CENTRES LTD,Software Maintenance,1001\5110133178,27 Jul 2022,"14,921.33",
LONDON UNDERGROUND LTD,GBM SERVICES LTD,COVID 19 planning,1005\5110140750,26 Jul 2022,"14,919.71",
TFL CORPORATE,S&P GLOBAL MARKET INTELLIGENCE,Management & Support Consultancy,1001\5110140686,27 Jul 2022,"14,898.00",
TRANSPORT TRADING LTD,LONDON BOROUGH OF HAMM& FULHAM,Rates,1004\1901686431,01 Aug 2022,"14,848.00",
TFL CORPORATE,XPS PENSIONS LIMITED,Management & Support Consultancy,1001\5110142679,17 Aug 2022,"14,820.00",
TRANSPORT TRADING LTD,NOVACROFT DIRECT LTD,Ticket & Pass Production,1004\5110144077,08 Aug 2022,"14,819.54",
LONDON UNDERGROUND LTD,SCHUNK CARBON TECHNOLOGY LIMITED,Fleet,1005\5110134814,29 Jul 2022,"14,811.73",
LUL NOMINEE SSL LIMITED,KNORR-BREMSE RAIL SYSTEMS LTD,Signalling Systems,1031\5110139806,16 Aug 2022,"14,802.40",
TFL CORPORATE,FAITHFUL+GOULD,Management & Support Consultancy,1001\5110129767,25 Jul 2022,"14,796.00",
TRANSPORT TRADING LTD,IPSOS MORI,Ticket & Pass Production,1004\5110130918,27 Jul 2022,"14,740.00",
LONDON UNDERGROUND LTD,MCGINLEY SUPPORT SERVICES LTD,Track General Maintenance,1005\5110146215,08 Aug 2022,"14,729.96",
LONDON UNDERGROUND LTD,BURGES SALMON LLP,Legal Fees,1005\5110138355,26 Jul 2022,"14,724.50",
LONDON UNDERGROUND LTD,MODULAR DISTRIBUTION SYSTEMS,Stock of Lifts and Escalators,1005\5110132459,27 Jul 2022,"14,721.75",
LONDON RIVER SERVICES LTD,F M CONWAY LTD,Civil Engineering Construction Works,1007\5110148111,17 Aug 2022,"14,685.12",
LONDON UNDERGROUND LTD,SCHUNK CARBON TECHNOLOGY LIMITED,Fleet,1005\5110142117,29 Jul 2022,"14,679.88",
SURFACE TRANSPORT CORP,EDF ENERGY,Electricity,1002\5110138296,09 Aug 2022,"14,666.19",
DOCKLANDS LIGHT RAILWAY,AIRWAVE SOLUTIONS LTD,Maintenance of Telecommunications Equipment,1012\5110135952,09 Aug 2022,"14,660.77",
LONDON UNDERGROUND LTD,CENTRE OF ADVERTISE EU LTD,Track General Maintenance,1005\5110141597,01 Aug 2022,"14,650.00",
RAIL FOR LONDON LIMITED,BOMBARDIER TRANSPORT UK,Vehicle Repairs & Maintenance,1020\5110147066,10 Aug 2022,"14,637.51",
LONDON UNDERGROUND LTD,DELATIM LIMITED,Equipment Repairs & Maintenance,1005\5110141850,28 Jul 2022,"14,588.44",
TRANSPORT TRADING LTD,MITIE FM LIMITED,Security Services (Guards),1004\5110147307,10 Aug 2022,"14,582.79",
TRANSPORT TRADING LTD,CATERCOVER SERVICE LTD,Plant & Equipment Purchases,1004\5110148521,16 Aug 2022,"14,558.46",
LONDON UNDERGROUND LTD,OCTAVIUS INFRASTRUCTURE LTD,MR Construction Costs,1005\5110137982,25 Jul 2022,"14,550.00",
LUL NOMINEE SSL LIMITED,THALES GROUND TRANSPORTATION SYSTEM,Computer Hardware,1031\5110129719,26 Jul 2022,"14,520.00",
LONDON UNDERGROUND LTD,EQUANS SERVICES LIMITED,Equipment Repairs & Maintenance,1005\5110138657,04 Aug 2022,"14,488.20",
LONDON UNDERGROUND LTD,JNG CONSTRUCTION & ENGINEERING,MR Construction Costs,1005\5110142030,28 Jul 2022,"14,466.67",
TFL CORPORATE,LLOYDS REGISTER RAIL LTD,Management & Support Consultancy,1001\5110130634,27 Jul 2022,"14,425.00",
TFL CORPORATE,HYDER CONSULTING (UK) LTD,Management & Support Consultancy,1001\5110138363,15 Aug 2022,"14,338.50",
LONDON UNDERGROUND LTD,ALSTOM NL SERVICE PROVISION LTD,Civil Engineering Construction Works,1005\5110129550,25 Jul 2022,"14,296.06",
TFL CORPORATE,CREACTIVE DESIGN LTD,Management & Support Consultancy,1001\5110140300,27 Jul 2022,"14,278.97",
TFL CORPORATE,FAITHFUL+GOULD,Management & Support Consultancy,1001\5110131391,27 Jul 2022,"14,256.00",
TFL CORPORATE,DEEPSTORE LIMITED,Document Archive & Storage,1001\5110144511,04 Aug 2022,"14,245.23",
LONDON UNDERGROUND LTD,MORGANITE ELECTRICAL CARBON LTD,Fleet,1005\5110142100,04 Aug 2022,"14,235.00",
LUL NOMINEE SSL LIMITED,KNORR-BREMSE RAIL SYSTEMS LTD,Signalling Systems,1031\5110130531,25 Jul 2022,"14,229.00",
LONDON UNDERGROUND LTD,BRECKNELL WILLIS & CO LTD,Fleet,1005\5110139549,17 Aug 2022,"14,216.40",
LONDON UNDERGROUND LTD,KNORR-BREMSE RAIL SYSTEMS LTD,Fleet,1005\5110137874,15 Aug 2022,"14,160.00",
LONDON UNDERGROUND LTD,POWERDAY PLC,Non Recyclable Waste Disposal/Refuse Collection,1005\5110132542,27 Jul 2022,"14,124.00",
RAIL FOR LONDON LIMITED,GLEEDS BUILDING SURVEYING LTD,Professional Engineering Services,1020\5110134001,27 Jul 2022,"14,091.00",
LUL NOMINEE SSL LIMITED,SMS,Civil Engineering Construction Works,1031\5110149305,16 Aug 2022,"14,079.03",
LONDON UNDERGROUND LTD,SCHUNK CARBON TECHNOLOGY LIMITED,Fleet,1005\5110141373,29 Jul 2022,"14,033.06",
TFL CORPORATE,LINKS SIGNS LTD,Non Permanent Signage And Way Finding,1001\5110144974,08 Aug 2022,"14,015.00",
LONDON UNDERGROUND LTD,JNG CONSTRUCTION & ENGINEERING,MR Construction Costs,1005\5110145724,09 Aug 2022,"13,986.03",
TFL CORPORATE,ARK SIGNALLING CONSULTANCY,Management & Support Consultancy,1001\5110140895,27 Jul 2022,"13,930.00",
LONDON UNDERGROUND LTD,NETWORK RAIL INFRASTRUCTURE,National Rail Fixed Track Access Charges,1005\5110131663,27 Jul 2022,"13,905.21",
LUL NOMINEE SSL LIMITED,HITACHI ENERGY UK LIMITED,Traction Current,1031\5110142713,12 Aug 2022,"13,884.16",
LUL NOMINEE SSL LIMITED,HITACHI ENERGY UK LIMITED,Traction Current,1031\5110150194,18 Aug 2022,"13,884.16",
LONDON UNDERGROUND LTD,SIEMENS MOBILITY LIMITED,Maintenance Materials,1005\5110129648,25 Jul 2022,"13,825.67",
LONDON UNDERGROUND LTD,KONE PLC,MR Construction Costs,1005\5110145944,09 Aug 2022,"13,808.97",
SURFACE TRANSPORT CORP,SPOKESAFE,Street Furniture,1002\5110149838,19 Aug 2022,"13,800.00",
TFL CORPORATE,ENVIRONMENT AGENCY,Planning & Development Consultancy,1001\5110141691,27 Jul 2022,"13,797.25",
LONDON UNDERGROUND LTD,CIRCET (UK) LIMITED,Retentions Control Account > 1Year,1005\5110146943,09 Aug 2022,"13,794.43",
RFL (IINFRASTRUCTURE) LTD,UNIPER TECHNOLOGIES LTD,Staff Training,1025\5110138134,15 Aug 2022,"13,725.00",
TFL CORPORATE,COSTAIN LTD,Management & Support Consultancy,1001\5110142096,17 Aug 2022,"13,680.00",
RAIL FOR LONDON LIMITED,OTB ENGINEERING LTD,Professional Engineering Services,1020\5110140021,28 Jul 2022,"13,650.00",
DOCKLANDS LIGHT RAILWAY,MOTT MACDONALD LIMITED,Professional Engineering Services,1012\5110130235,27 Jul 2022,"13,616.67",
TRANSPORT TRADING LTD,POST OFFICE LTD,Ticket & Pass Production,1004\5110130606,27 Jul 2022,"13,550.25",
RFL (IINFRASTRUCTURE) LTD,ALSTOM PRODUCT AND SERVICES LIMITED,Electrical Equipment Maintenance,1025\5110092029,17 Aug 2022,"13,365.90",
LONDON UNDERGROUND LTD,1STINRAIL LIMITED,Track General Maintenance,1005\5110141424,28 Jul 2022,"13,360.42",
CYCLE HIRE SCHEME,KELLY TECHNICAL SERVICES LIMITED,Concession Maintenance Charge,1016\5110141952,17 Aug 2022,"13,351.47",
RAIL FOR LONDON LIMITED,C T PLUS COMMUNITY INTEREST COMPANY,Rail Replacement Service Costs,1020\5110091964,25 Jul 2022,"13,338.00",
LUL NOMINEE BCV LIMITED,CRANESERVE,Maintenance Materials,1033\5110145346,09 Aug 2022,"13,324.80",
RAIL FOR LONDON LIMITED,EDF ENERGY,Electricity,1020\5110138299,02 Aug 2022,"13,323.97",
TRANSPORT TRADING LTD,BERWIN LEIGHTON PAISNER,Legal Fees,1004\5110147469,10 Aug 2022,"13,321.00",
LUL NOMINEE SSL LIMITED,MOTIVAIR COMPRESSORS LTD,Maintenance Materials,1031\5110141039,27 Jul 2022,"13,305.30",
LONDON UNDERGROUND LTD,KONE PLC,Escalators,1005\5110138114,01 Aug 2022,"13,269.45",
LUL NOMINEE BCV LIMITED,KINGSBEECH LTD,Maintenance Materials,1033\5110138680,25 Jul 2022,"13,255.66",
LONDON UNDERGROUND LTD,L.B FOSTER RAIL TECHNOLOGIES(UK)LTD,Fleet,1005\5110141414,17 Aug 2022,"13,230.00",
TRANSPORT TRADING LTD,CITY OF WESTMINSTER,Rates,1004\1901686903,17 Aug 2022,"13,205.00",
TRANSPORT TRADING LTD,LONDON BOROUGH OF TOWER HAMLETS,Rates,1004\1901686821,15 Aug 2022,"13,180.00",
TFL CORPORATE,FAITHFUL+GOULD,Management & Support Consultancy,1001\5110134315,03 Aug 2022,"13,152.00",
SURFACE TRANSPORT CORP,"SYSTEMS ENGINEERING, ASSESSMENT",Cameras,1002\5110129762,26 Jul 2022,"13,136.50",
TFL CORPORATE,INSIGHT EXECUTIVE GROUP LIMITED,IT Consultancy,1001\5110147969,15 Aug 2022,"13,125.00",
DOCKLANDS LIGHT RAILWAY,FAITHFUL+GOULD,Planning & Development Consultancy,1012\5110129792,26 Jul 2022,"13,110.00",
DOCKLANDS LIGHT RAILWAY,FAITHFUL+GOULD,Planning & Development Consultancy,1012\5110138367,15 Aug 2022,"13,110.00",
LONDON UNDERGROUND LTD,PANDROL UK LTD,Fleet,1005\5110138864,10 Aug 2022,"13,100.00",
LONDON RIVER SERVICES LTD,PORT OF LONDON AUTHORITY,Pier Charges,1007\5110132514,01 Aug 2022,"13,083.44",
LONDON UNDERGROUND LTD,MEDIAEDGE,Social Media And Digital Advertising Space,1005\5110123632,25 Jul 2022,"13,042.03",
TFL CORPORATE,MEDIAEDGE,Radio TV Press Poster Cinema Airtime And Space,1001\5110137922,02 Aug 2022,"13,032.15",
LONDON UNDERGROUND LTD,NETWORK RAIL COMMERCIAL PROPERTY,National Rail Long Term Charges,1005\5110136697,10 Aug 2022,"13,024.34",
RFL (IINFRASTRUCTURE) LTD,SCHINDLER LTD,Building Maintenance & Repairs,1025\5110144230,03 Aug 2022,"13,018.39",
LUL NOMINEE SSL LIMITED,CRANESERVE,Maintenance Materials,1031\5110145342,09 Aug 2022,"13,015.60",
SURFACE TRANSPORT CORP,INRIX UK LTD,Computer Software,1002\5110092863,28 Jul 2022,"13,000.00",
SURFACE TRANSPORT CORP,INRIX UK LTD,Computer Software,1002\5110125666,26 Jul 2022,"13,000.00",
RAIL FOR LONDON LIMITED,ICOMERA UK LTD,Computer Hardware,1020\5110147863,15 Aug 2022,"13,000.00",
TRANSPORT TRADING LTD,CITY OF LONDON ,Rates,1004\1901686667,03 Aug 2022,"12,999.95",
LONDON UNDERGROUND LTD,CREACTIVE DESIGN LTD,Fleet,1005\5110142175,02 Aug 2022,"12,992.74",
LONDON UNDERGROUND LTD,CREACTIVE DESIGN LTD,Fleet,1005\5110145750,09 Aug 2022,"12,992.74",
LONDON UNDERGROUND LTD,TIDYCO LTD,Fleet,1005\5110135222,03 Aug 2022,"12,985.96",
TFL CORPORATE,CINOS,Computer Hardware,1001\5110149524,18 Aug 2022,"12,973.56",
TFL CORPORATE,PERTEMPS RECRUITMENT PARTNERSHIPLTD,Recruitment Expenses,1001\5110132484,26 Jul 2022,"12,844.00",
LONDON UNDERGROUND LTD,ENPRO GROUP LIMITED,Maintenance Materials,1005\5110134470,01 Aug 2022,"12,844.00",
TRANSPORT TRADING LTD,LONDON BOROUGH OF TOWER HAMLETS,Rates,1004\1901686891,16 Aug 2022,"12,800.00",
LONDON UNDERGROUND LTD,GBM SERVICES LTD,COVID 19 planning,1005\5110140576,25 Jul 2022,"12,756.65",
TFL CORPORATE,MOTT MACDONALD LIMITED,Management & Support Consultancy,1001\5110141619,03 Aug 2022,"12,750.00",
LONDON UNDERGROUND LTD,REHAU LTD,Track General Maintenance,1005\5110130015,25 Jul 2022,"12,717.60",
TTL PROPERTIES LTD,E.ON NEXT ENERGY LTD,Electricity,1040\1700000163,16 Aug 2022,"12,716.22",
TTL PROPERTIES LTD,NCP SERVICES LTD,Property Management Fees,1040\5110137239,10 Aug 2022,"12,716.13",
LONDON RIVER SERVICES LTD,PORT OF LONDON AUTHORITY,Pier Charges,1007\5110132524,01 Aug 2022,"12,703.96",
TFL CORPORATE,CORPORATE DOCUMENT SERVICES LTD,Production Artwork And Design For Marketing,1001\5110145041,04 Aug 2022,"12,700.77",
TFL CORPORATE,CAPITA BUSINESS SERVICES LTD,IT Consultancy,1001\5110131710,27 Jul 2022,"12,700.00",
SURFACE TRANSPORT CORP,SKY HIGH PLC,Traffic Signals,1002\5110112485,27 Jul 2022,"12,685.20",
LT MUSEUM TRADING LTD,MOSAIC FULFILMENT SOLUTIONS,Postage,1024\5110143909,02 Aug 2022,"12,623.20",
LONDON UNDERGROUND LTD,L.B FOSTER RAIL TECHNOLOGIES(UK)LTD,Fleet,1005\5110141410,17 Aug 2022,"12,580.00",
RAIL FOR LONDON LIMITED,UK POWER NETWORKS LTD,Management & Support Consultancy,1020\5110141729,17 Aug 2022,"12,563.77",
TFL CORPORATE,COMPUTACENTER PLC,Software Maintenance,1001\5110134048,03 Aug 2022,"12,558.00",
LONDON UNDERGROUND LTD,GBM SERVICES LTD,Office Cleaning,1005\5110137560,25 Jul 2022,"12,523.56",
TFL CORPORATE,INSIGHT EXECUTIVE GROUP LIMITED,Management & Support Consultancy,1001\5110147932,15 Aug 2022,"12,500.00",
LONDON RIVER SERVICES LTD,PORT OF LONDON AUTHORITY,Pier Charges,1007\5110132534,01 Aug 2022,"12,486.18",
LONDON BUS SERVICES LTD,TRUEFORM ENGINEERING LTD,Building Maintenance & Repairs,1006\5110138790,25 Jul 2022,"12,477.23",
LUL NOMINEE SSL LIMITED,ERIKS  EMS,Component Repairs Sub Contracted,1031\5110138035,10 Aug 2022,"12,467.53",
TFL CORPORATE,STRATEGIC RAIL CONSULTANTS LTD,Management & Support Consultancy,1001\5110144396,03 Aug 2022,"12,436.06",
LONDON UNDERGROUND LTD,KNORR-BREMSE RAIL SYSTEMS LTD,Fleet,1005\5110135137,03 Aug 2022,"12,409.58",
TFL CORPORATE,CENTRE OF ADVERTISE EU LTD,Management & Support Consultancy,1001\5110140070,27 Jul 2022,"12,375.00",
TFL CORPORATE,C.J. GRAY LTD,Management & Support Consultancy,1001\5110131654,27 Jul 2022,"12,350.00",
LONDON RIVER SERVICES LTD,PORT OF LONDON AUTHORITY,Pier Charges,1007\5110132515,01 Aug 2022,"12,341.00",
RAIL FOR LONDON LIMITED,SPECIALIST RAIL SOLUTIONS LTD,Vehicle Repairs & Maintenance,1020\5110140695,01 Aug 2022,"12,337.22",
LONDON UNDERGROUND LTD,HOWELLS RAILWAY PRODUCTS LTD,Maintenance Materials,1005\5110134479,25 Jul 2022,"12,333.00",
TFL CORPORATE,FAITHFUL+GOULD,Management & Support Consultancy,1001\5110131368,27 Jul 2022,"12,330.00",
TRANSPORT TRADING LTD,LONDON BOROUGH OF CAMDEN,Rates,1004\1901686402,01 Aug 2022,"12,288.00",
LUL NOMINEE SSL LIMITED,HOLBRO ENGINEERING LTD,Signalling Systems,1031\5110144149,02 Aug 2022,"12,287.50",
TFL CORPORATE,INSIGHT DIRECT UK LIMITED,Software Maintenance,1001\5110139515,12 Aug 2022,"12,283.51",
TFL CORPORATE,COMPUTACENTER PLC,Software Maintenance,1001\5110135720,08 Aug 2022,"12,200.00",
TFL CORPORATE,MOTT MACDONALD LIMITED,Management & Support Consultancy,1001\5110140936,17 Aug 2022,"12,182.51",
LONDON UNDERGROUND LTD,ELECTROHM RESISTORS LTD,Fleet,1005\5110138916,16 Aug 2022,"12,150.00",
LONDON UNDERGROUND LTD,MEDIAEDGE,Social Media And Digital Advertising Space,1005\5110136306,28 Jul 2022,"12,141.76",
LONDON UNDERGROUND LTD,HAYLEY GROUP PLC,Fleet,1005\5110137634,10 Aug 2022,"12,100.00",
RFL (IINFRASTRUCTURE) LTD,EMO OIL,Equipment Repairs & Maintenance,1025\5110129191,15 Aug 2022,"12,039.80",
TFL CORPORATE,INVESTIGO,Management & Support Consultancy,1001\5110147967,16 Aug 2022,"12,000.00",
LUL NOMINEE BCV LIMITED,KINGSBEECH LTD,Maintenance Materials,1033\5110149933,19 Aug 2022,"12,000.00",
LT MUSEUM TRADING LTD,BRANDART,LTM Purchase of Gifts for Resale,1024\1900021741,09 Aug 2022,"12,000.00",
LONDON UNDERGROUND LTD,ALSTOM NL SERVICE PROVISION LTD,Civil Engineering Construction Works,1005\5110129580,25 Jul 2022,"12,000.00",
LONDON UNDERGROUND LTD,BATTERSEA PROJECT PHASE3B DEVCO LTD,Civil Engineering Construction Works,1005\5110144785,08 Aug 2022,"12,000.00",
LONDON UNDERGROUND LTD,JOHN COBB & PARTNERS,Building Maintenance & Repairs,1005\5110145785,08 Aug 2022,"11,925.00",
SURFACE TRANSPORT CORP,TELENT TECHNOLOGY SERVICES LTD,Traffic Signals,1002\5110137304,10 Aug 2022,"11,912.26",
TTL PROPERTIES LTD,EDF ENERGY,Electricity,1040\1900002293,19 Aug 2022,"11,907.94",
TRANSPORT TRADING LTD,CITY OF WESTMINSTER,Rates,1004\1901686446,01 Aug 2022,"11,863.00",
RFL (IINFRASTRUCTURE) LTD,LANES GROUP PLC,Equipment Repairs & Maintenance,1025\5110136181,05 Aug 2022,"11,859.69",
SURFACE TRANSPORT CORP,MOTT MACDONALD LIMITED,Contracted Services - Highway Bridges,1002\5110130681,27 Jul 2022,"11,844.61",
LONDON UNDERGROUND LTD,EBAC INDUSTRIAL PRODUCTS LIMITED,Fleet,1005\5110147849,15 Aug 2022,"11,839.92",
LUL NOMINEE SSL LIMITED,GIFFEN GROUP LTD,Civil Engineering Construction Works,1031\5110139958,25 Jul 2022,"11,821.44",
LONDON UNDERGROUND LTD,EQUANS SERVICES LIMITED,Equipment Repairs & Maintenance,1005\5110148308,17 Aug 2022,"11,817.70",
LONDON UNDERGROUND LTD,FUSION PEOPLE LTD,Vehicle Operating Leases,1005\5110140191,27 Jul 2022,"11,813.92",
TFL CORPORATE,MOTT MACDONALD LIMITED,Management & Support Consultancy,1001\5110140831,10 Aug 2022,"11,808.00",
LONDON UNDERGROUND LTD,MODULAR DISTRIBUTION SYSTEMS,Stock of Lifts and Escalators,1005\5110138637,26 Jul 2022,"11,777.40",
TRANSPORT TRADING LTD,CITY OF WESTMINSTER,Rates,1004\1901686444,01 Aug 2022,"11,704.00",
LONDON UNDERGROUND LTD,DYER & BUTLER LTD,MR Construction Costs,1005\5110140975,17 Aug 2022,"11,692.84",
LONDON UNDERGROUND LTD,NETWORK RAIL INFRASTRUCTURE,Traction Current,1005\5110132019,27 Jul 2022,"11,688.83",
TFL CORPORATE,GARDINER & THEOBALD LLP,Professional Engineering Services,1001\5110133243,01 Aug 2022,"11,660.00",
TFL CORPORATE,GARDINER & THEOBALD LLP,Professional Engineering Services,1001\5110136958,10 Aug 2022,"11,660.00",
DOCKLANDS LIGHT RAILWAY,CPC PROJECT SERVICES LLP,Professional Engineering Services,1012\5110146519,12 Aug 2022,"11,655.00",
TFL CORPORATE,HCL TECHNOLOGIES UK LTD,Computer Software,1001\5110141347,18 Aug 2022,"11,648.00",
LONDON UNDERGROUND LTD,SPERRY RAIL SERVICE,Track General Maintenance,1005\5110131065,27 Jul 2022,"11,632.53",
TFL CORPORATE,GARDINER & THEOBALD LLP,Professional Engineering Services,1001\5110137362,10 Aug 2022,"11,625.00",
RAIL FOR LONDON LIMITED,ENERGY AND SYSTEM TECHNICAL LTD,Management & Support Consultancy,1020\5110144217,03 Aug 2022,"11,600.00",
LUL NOMINEE BCV LIMITED,RJC (UK) LTD,MR Construction Costs,1033\5110140049,17 Aug 2022,"11,595.04",
LONDON UNDERGROUND LTD,GPX ENGINEERING LTD,Track General Maintenance,1005\5110150163,17 Aug 2022,"11,564.28",
RAIL FOR LONDON LIMITED,OTB ENGINEERING LTD,Professional Engineering Services,1020\5110139972,28 Jul 2022,"11,550.00",
LONDON UNDERGROUND LTD,FUSION PEOPLE LTD,Transport Planning Consultancy & Services,1005\5110148790,17 Aug 2022,"11,536.75",
LONDON UNDERGROUND LTD,BOMBARDIER TRANSPORT UK,Fleet,1005\5110130600,27 Jul 2022,"11,525.00",
TRANSPORT TRADING LTD,CITY OF WESTMINSTER,Rates,1004\1901686441,01 Aug 2022,"11,520.00",
TFL CORPORATE,CPC PROJECT SERVICES LLP,Professional Engineering Services,1001\5110141696,01 Aug 2022,"11,500.00",
LONDON UNDERGROUND LTD,KNORR-BREMSE RAIL SYSTEMS LTD,Fleet,1005\5110139964,17 Aug 2022,"11,492.88",
LONDON UNDERGROUND LTD,LESMAC (FASTENERS) LTD,Track General Maintenance,1005\5110127211,29 Jul 2022,"11,460.00",
LONDON UNDERGROUND LTD,L.B FOSTER RAIL TECHNOLOGIES(UK)LTD,Track General Maintenance,1005\5110135280,03 Aug 2022,"11,451.00",
LONDON UNDERGROUND LTD,HAYLEY GROUP PLC,Maintenance Materials,1005\5110124721,27 Jul 2022,"11,450.16",
LONDON UNDERGROUND LTD,AECOM LTD,Planning & Development Consultancy,1005\5110124959,28 Jul 2022,"11,450.00",
RFL (IINFRASTRUCTURE) LTD,MITIE FM LIMITED,Security Services (Guards),1025\5110144933,04 Aug 2022,"11,436.60",
LONDON UNDERGROUND LTD,EQUANS SERVICES LIMITED,Equipment Repairs & Maintenance,1005\5110145092,18 Aug 2022,"11,416.40",
SURFACE TRANSPORT CORP,REDSPEED INTERNATIONAL  LTD,Maintenance of Plant & Equipment,1002\5110137280,09 Aug 2022,"11,411.25",
LUL NOMINEE SSL LIMITED,SCHAEFFLER (UK) LTD,Fleet,1031\5110141610,17 Aug 2022,"11,409.65",
TFL CORPORATE,ASPIRE,Planning & Development Consultancy,1001\5110143330,01 Aug 2022,"11,400.00",
TFL CORPORATE,CENTRE OF ADVERTISE EU LTD,Management & Support Consultancy,1001\5110142046,11 Aug 2022,"11,385.00",
LUL NOMINEE SSL LIMITED,KNORR-BREMSE RAIL SYSTEMS LTD,Fleet,1031\5110141115,17 Aug 2022,"11,361.30",
TFL CORPORATE,THALES GROUND TRANSPORTATION SYSTEM,Computer Hardware,1001\5110129839,26 Jul 2022,"11,342.93",
LONDON UNDERGROUND LTD,NETWORK RAIL COMMERCIAL PROPERTY,National Rail Long Term Charges,1005\5110136725,10 Aug 2022,"11,338.95",
LONDON UNDERGROUND LTD,HOPPECKE INDUSTRIAL BATTERIES,Fleet,1005\5110140728,09 Aug 2022,"11,332.00",
LONDON UNDERGROUND LTD,HOPPECKE INDUSTRIAL BATTERIES,Fleet,1005\5110147898,15 Aug 2022,"11,332.00",
TRANSPORT TRADING LTD,LONDON BOROUGH OF REDBRIDGE,Rates,1004\1901686392,01 Aug 2022,"11,331.00",
LONDON UNDERGROUND LTD,MCGINLEY SUPPORT SERVICES LTD,Track General Maintenance,1005\5110146217,08 Aug 2022,"11,279.99",
LONDON BUS SERVICES LTD,TRAPEZE PTI LTD,Computer Consumables,1006\5110140068,19 Aug 2022,"11,279.16",
LONDON UNDERGROUND LTD,BURGES SALMON LLP,Legal Fees,1005\5110140795,17 Aug 2022,"11,252.50",
LUL NOMINEE SSL LIMITED,ERIKS  EMS,Component Repairs Sub Contracted,1031\5110131474,27 Jul 2022,"11,248.54",
LUL NOMINEE SSL LIMITED,ERIKS  EMS,Component Repairs Sub Contracted,1031\5110140961,17 Aug 2022,"11,248.54",
TTL PROPERTIES LTD,UK POWER NETWORKS LTD,Professional Engineering Services,1040\5110136853,05 Aug 2022,"11,224.16",
TFL CORPORATE,GARDINER & THEOBALD LLP,Professional Engineering Services,1001\5110134667,03 Aug 2022,"11,200.00",
LONDON UNDERGROUND LTD,BROOKVEX IMS LTD,Lift Maintenance,1005\5110147292,11 Aug 2022,"11,168.94",
TFL CORPORATE,FAITHFUL+GOULD,Management & Support Consultancy,1001\5110131397,27 Jul 2022,"11,160.00",
TFL CORPORATE,FAITHFUL+GOULD,Professional Engineering Services,1001\5110131394,27 Jul 2022,"11,124.00",
TRANSPORT TRADING LTD,LONDON BOROUGH OF NEWHAM ,Rates,1004\1901686375,01 Aug 2022,"11,118.00",
LUL NOMINEE BCV LIMITED,ATKINS LIMITED,Professional Engineering Services,1033\5110135444,08 Aug 2022,"11,095.31",
LUL NOMINEE SSL LIMITED,WESTCODE UK LIMITED,Fleet,1031\5110148134,11 Aug 2022,"11,090.80",
TFL CORPORATE,JONES LANG LASALLE,Planning & Development Consultancy,1001\5110135689,28 Jul 2022,"11,088.00",
LONDON UNDERGROUND LTD,JONES LANG LASALLE,Planning & Development Consultancy,1005\5110135702,18 Aug 2022,"11,088.00",
RAIL FOR LONDON LIMITED,LANES GROUP PLC,Building Maintenance & Repairs,1020\5110136793,09 Aug 2022,"11,072.05",
LONDON UNDERGROUND LTD,PANDROL UK LTD,Track General Maintenance,1005\5110136376,03 Aug 2022,"11,033.40",
TFL CORPORATE,LONDON BOROUGH OF HARROW,Borough Services - Claim Against Pr Yr Accrual,1001\1900116277,17 Aug 2022,"11,023.00",
TFL CORPORATE,CAPITA BUSINESS SERVICES LTD,IT Consultancy,1001\5110133438,10 Aug 2022,"11,000.00",
SURFACE TRANSPORT CORP,T-KARTOR SWEDEN AB,Contracted Services - Roads,1002\5110134684,05 Aug 2022,"11,000.00",
LUL NOMINEE BCV LIMITED,SOLO RAIL SOLUTIONS LIMITED,Maintenance Materials,1033\5110131063,27 Jul 2022,"11,000.00",
LONDON UNDERGROUND LTD,BRITISH STEEL LIMITED ,Track General Maintenance,1005\5110140773,17 Aug 2022,"10,928.48",
LUL NOMINEE SSL LIMITED,CPC PROJECT SERVICES LLP,MR Construction Costs,1031\5110141501,27 Jul 2022,"10,926.32",
TFL CORPORATE,PROBRAND LTD,Software Maintenance,1001\5110130004,26 Jul 2022,"10,910.10",
LUL NOMINEE BCV LIMITED,KGJ PRICE LTD,Track General Maintenance,1033\5110148065,15 Aug 2022,"10,897.20",
TFL CORPORATE,ROAD SAFETY ANALYSIS LTD,Software Maintenance,1001\5110148536,15 Aug 2022,"10,895.00",
TFL CORPORATE,ARK SIGNALLING CONSULTANCY,Management & Support Consultancy,1001\5110139977,27 Jul 2022,"10,880.00",
LONDON UNDERGROUND LTD,DYER & BUTLER LTD,Civil Engineering Construction Works,1005\5110144883,18 Aug 2022,"10,814.25",
TFL CORPORATE,UNIVERSAL MOTORCYCLE TRAINING,External Events Roads Shows And Face To Face,1001\5110135301,01 Aug 2022,"10,800.00",
TFL CORPORATE,HYDER CONSULTING (UK) LTD,Professional Engineering Services,1001\5110133229,01 Aug 2022,"10,800.00",
LONDON UNDERGROUND LTD,HCL TECHNOLOGIES UK LTD,Computer Software,1005\5110142839,17 Aug 2022,"10,795.00",
LUL NOMINEE SSL LIMITED,KNORR-BREMSE RAIL SYSTEMS LTD,Fleet,1031\5110130378,26 Jul 2022,"10,789.20",
LUL NOMINEE SSL LIMITED,CLOSE BROTHERS RAIL LTD,Building Maintenance & Repairs,1031\5110140667,19 Aug 2022,"10,779.79",
LUL NOMINEE SSL LIMITED,KNORR-BREMSE RAIL SYSTEMS LTD,Fleet,1031\5110137788,10 Aug 2022,"10,761.12",
LONDON RIVER SERVICES LTD,SSE PLC,Electricity,1007\1900003575,16 Aug 2022,"10,746.55",
TRANSPORT TRADING LTD,LONDON BOROUGH OF HAMM& FULHAM,Rates,1004\1901686430,01 Aug 2022,"10,693.00",
LUL NOMINEE SSL LIMITED,BOMBARDIER TRANSPORT UK,Fleet,1031\5110134651,03 Aug 2022,"10,656.92",
TFL CORPORATE,ASPIRE,Planning & Development Consultancy,1001\5110143327,01 Aug 2022,"10,640.00",
TFL CORPORATE,GARDINER & THEOBALD LLP,Professional Engineering Services,1001\5110134662,03 Aug 2022,"10,640.00",
TFL CORPORATE,CORPORATE DOCUMENT SERVICES LTD,Printing For Customer Info Materials,1001\5110138562,25 Jul 2022,"10,636.56",
LONDON TRANSPORT MUSEUM,CITY OF LONDON ,LTM Catering & Hospitality,1011\5110074713,05 Aug 2022,"10,625.00",
SURFACE TRANSPORT CORP,DAISY CORPORATE SERVICES TRADINGLTD,Telephony Fixed,1002\5110135513,03 Aug 2022,"10,613.78",
LONDON UNDERGROUND LTD,L.B FOSTER RAIL TECHNOLOGIES(UK)LTD,Fleet,1005\5110132380,27 Jul 2022,"10,600.00",
LONDON UNDERGROUND LTD,L.B FOSTER RAIL TECHNOLOGIES(UK)LTD,Fleet,1005\5110139066,10 Aug 2022,"10,600.00",
TFL CORPORATE,COMPUTACENTER PLC,Computer Hardware,1001\5110134067,03 Aug 2022,"10,593.72",
TRANSPORT TRADING LTD,LONDON BOROUGH OF SOUTHWARK,Rates,1004\1901686406,01 Aug 2022,"10,586.00",
LONDON UNDERGROUND LTD,GBM SERVICES LTD,Operational Cleaning,1005\5110139555,25 Jul 2022,"10,570.22",
LUL NOMINEE SSL LIMITED,CLESHAR CONTRACT SERVICES,Retentions Control Account > 1Year,1031\5110145350,04 Aug 2022,"10,551.35",
CYCLE HIRE SCHEME,SERCO LTD,Concession Maintenance Charge,1016\5110129566,25 Jul 2022,"10,530.65",
CYCLE HIRE SCHEME,SERCO LTD,Concession Maintenance Charge,1016\5110137884,10 Aug 2022,"10,530.65",
LONDON UNDERGROUND LTD,HAYLEY GROUP PLC,Maintenance Materials,1005\5110143106,02 Aug 2022,"10,485.22",
LONDON UNDERGROUND LTD,GOOD SKILLS TRAINING,Staff Training,1005\5110144461,04 Aug 2022,"10,471.00",
TFL CORPORATE,HYDER CONSULTING (UK) LTD,Professional Engineering Services,1001\5110133238,01 Aug 2022,"10,440.00",
LONDON UNDERGROUND LTD,BRECKNELL WILLIS & CO LTD,Fleet,1005\5110134734,03 Aug 2022,"10,418.00",
LONDON UNDERGROUND LTD,TELENT TECHNOLOGY SERVICES LTD,Cameras,1005\5110142374,28 Jul 2022,"10,387.82",
TFL CORPORATE,FAITHFUL+GOULD,Management & Support Consultancy,1001\5110131402,27 Jul 2022,"10,370.00",
LUL NOMINEE BCV LIMITED,SIEMENS MOBILITY LIMITED,Maintenance Materials,1033\5110143825,02 Aug 2022,"10,339.10",
TRANSPORT TRADING LTD,OPTIMA CONTRACTING LIMITED,Office Accommodation Moves,1004\5110130969,27 Jul 2022,"10,334.10",
TFL CORPORATE,INSIGHT EXECUTIVE GROUP LIMITED,Management & Support Consultancy,1001\5110147934,15 Aug 2022,"10,316.25",
LONDON UNDERGROUND LTD,FAIVELEY TRANSPORT,Fleet,1005\5110143892,10 Aug 2022,"10,315.80",
TRANSPORT TRADING LTD,BERWIN LEIGHTON PAISNER,Legal Fees,1004\5110147477,10 Aug 2022,"10,303.00",
TFL CORPORATE,UNION INTERNATIONALE DES TRANSP,Management & Support Consultancy,1001\5110135489,28 Jul 2022,"10,302.00",
LONDON UNDERGROUND LTD,STS STORAGE SYSTEMS LTD,Maintenance Materials,1005\5110145560,05 Aug 2022,"10,300.00",
SURFACE TRANSPORT CORP,AECOM LTD,Contracted Services - Roads,1002\5110140230,10 Aug 2022,"10,299.00",
LUL NOMINEE SSL LIMITED,KNORR-BREMSE RAIL SYSTEMS LTD,Signalling Systems,1031\5110133834,01 Aug 2022,"10,298.00",
RAIL FOR LONDON LIMITED,TURNER & TOWNSEND PROJECT ,Management & Support Consultancy,1020\5110135741,03 Aug 2022,"10,274.40",
TFL CORPORATE,ASHURST LLP,Legal Fees,1001\5110133077,26 Jul 2022,"10,266.10",
RFL (IINFRASTRUCTURE) LTD,GBM SERVICES LTD,Office Cleaning,1025\5110140741,26 Jul 2022,"10,241.70",
SURFACE TRANSPORT CORP,REDSPEED INTERNATIONAL  LTD,Maintenance of Plant & Equipment,1002\5110131076,27 Jul 2022,"10,226.25",
SURFACE TRANSPORT CORP,REDSPEED INTERNATIONAL  LTD,Maintenance of Plant & Equipment,1002\5110137286,10 Aug 2022,"10,226.25",
SURFACE TRANSPORT CORP,REDSPEED INTERNATIONAL  LTD,Maintenance of Plant & Equipment,1002\5110141518,17 Aug 2022,"10,226.25",
LONDON UNDERGROUND LTD,FAIVELEY TRANSPORT,Fleet,1005\5110143328,10 Aug 2022,"10,214.40",
SURFACE TRANSPORT CORP,SIEMENS TRAFFIC CONTROLS,Road Maintenance,1002\5110140019,10 Aug 2022,"10,198.38",
TRANSPORT TRADING LTD,FRANKHAM CONSULTANCY GROUP LTD,Building Maintenance & Repairs,1004\5110139580,27 Jul 2022,"10,195.38",
TFL CORPORATE,CORPORATE DOCUMENT SERVICES LTD,Printing For Customer Info Materials,1001\5110138643,28 Jul 2022,"10,187.76",
TFL CORPORATE,CORPORATE DOCUMENT SERVICES LTD,Printing For Customer Info Materials,1001\5110138561,25 Jul 2022,"10,146.96",
LONDON UNDERGROUND LTD,HAYLEY GROUP PLC,Fleet,1005\5110130490,27 Jul 2022,"10,130.00",
LONDON UNDERGROUND LTD,NETWORK RAIL INFRASTRUCTURE,Electricity,1005\5110119248,12 Aug 2022,"10,120.00",
RFL (IINFRASTRUCTURE) LTD,PLASSER UK LTD,Equipment Repairs & Maintenance,1025\5110140028,17 Aug 2022,"10,083.39",
TTL PROPERTIES LTD,UK POWER SOLUTIONS LTD,Building Maintenance & Repairs,1040\5110120878,04 Aug 2022,"10,056.00",
TTL PROPERTIES LTD,UK POWER SOLUTIONS LTD,Building Maintenance & Repairs,1040\5110120992,04 Aug 2022,"10,000.00",
SURFACE TRANSPORT CORP,B+P GMBH,Traffic Signals,1002\5110140059,25 Jul 2022,"10,000.00",
TTL PROPERTIES LTD,BURGES SALMON LLP,Legal Fees,1040\1900002246,01 Aug 2022,"10,000.00",
SURFACE TRANSPORT CORP,NETWORK RAIL INFRASTRUCTURE,Road Maintenance,1002\5110132674,01 Aug 2022,"10,000.00",
LONDON UNDERGROUND LTD,FUSION PEOPLE LTD,Transport Planning Consultancy & Services,1005\5110143099,05 Aug 2022,"9,997.94",
LONDON UNDERGROUND LTD,TIDYCO LTD,Fleet,1005\5110138351,10 Aug 2022,"9,997.50",
RFL (IINFRASTRUCTURE) LTD,ALSTOM PRODUCT AND SERVICES LIMITED,Electrical Equipment Maintenance,1025\5110125142,17 Aug 2022,"9,987.80",
RAIL FOR LONDON LIMITED,HAYLEY GROUP PLC,Maintenance of Telecommunications Equipment,1020\5110131924,27 Jul 2022,"9,986.22",
TFL CORPORATE,AB PUBLISHING LIMITED,Production Artwork And Design For Marketing,1001\5110143340,01 Aug 2022,"9,980.00",
LONDON UNDERGROUND LTD,WILLIAM COOK RAIL LTD,Fleet,1005\5110132199,27 Jul 2022,"9,956.00",
DOCKLANDS LIGHT RAILWAY,MEDIAEDGE,Radio TV Press Poster Cinema Airtime And Space,1012\5110137933,02 Aug 2022,"9,947.65",
DIAL A RIDE,COMCAB (LONDON) LIMITED,Operator Costs,1010\5110135765,02 Aug 2022,"9,942.41",
TFL CORPORATE,CURRIE & BROWN UK LIMITED,Management & Support Consultancy,1001\5110132014,27 Jul 2022,"9,940.00",
RAIL FOR LONDON LIMITED,HOUGHTON INTERNATIONAL,Maintenance Materials,1020\5110142047,10 Aug 2022,"9,925.22",
TFL CORPORATE,PROFESSIONAL COST MANAGEMENT LTD,Telephony Fixed,1001\5110149361,16 Aug 2022,"9,924.53",
LONDON UNDERGROUND LTD,TAZIKER INDUSTRIAL LTD,MR Construction Costs,1005\5110146851,09 Aug 2022,"9,912.95",
SURFACE TRANSPORT CORP,COSTAIN LTD,Contracted Services - Roads,1002\5110148013,11 Aug 2022,"9,907.86",
TRANSPORT TRADING LTD,HARRIS INSTALLATIONS SERVICES LTD,Office Accommodation Moves,1004\5110146436,10 Aug 2022,"9,900.00",
TFL CORPORATE,ARK SIGNALLING CONSULTANCY,Management & Support Consultancy,1001\5110141218,29 Jul 2022,"9,900.00",
LONDON UNDERGROUND LTD,FUSION PEOPLE LTD,Transport Planning Consultancy & Services,1005\5110148496,17 Aug 2022,"9,892.22",
LONDON RIVER SERVICES LTD,DC ENERGY (SW),Management & Support Consultancy,1007\5110134687,29 Jul 2022,"9,887.14",
LONDON UNDERGROUND LTD,PRECISION CHAINS LTD,Stock of Lifts and Escalators,1005\5110137256,10 Aug 2022,"9,885.00",
RFL (IINFRASTRUCTURE) LTD,C E F,Heating & Lighting,1025\5110128523,01 Aug 2022,"9,870.00",
TTL PROPERTIES LTD,STRATEGIC RAIL CONSULTANTS LTD,Management & Support Consultancy,1040\5110141971,05 Aug 2022,"9,860.00",
TTL PROPERTIES LTD,STRATEGIC RAIL CONSULTANTS LTD,Management & Support Consultancy,1040\5110143244,05 Aug 2022,"9,860.00",
TFL CORPORATE,STRATEGIC RAIL CONSULTANTS LTD,Professional Engineering Services,1001\5110141992,29 Jul 2022,"9,860.00",
TFL CORPORATE,MEDIAEDGE,Radio TV Press Poster Cinema Airtime And Space,1001\5110136145,28 Jul 2022,"9,845.06",
LONDON UNDERGROUND LTD,MORGANITE ELECTRICAL CARBON LTD,Fleet,1005\5110132978,01 Aug 2022,"9,843.00",
LUL NOMINEE SSL LIMITED,GMT RUBBER-METAL-TECHNIC LTD,Fleet,1031\5110139183,10 Aug 2022,"9,840.50",
LONDON UNDERGROUND LTD,DRB GROUP LIMITED,Fleet,1005\5110114066,26 Jul 2022,"9,834.22",
LUL NOMINEE SSL LIMITED,ERIKS INDUSTRIAL SERVICES LTD,Component Repairs Sub Contracted,1031\5110112385,01 Aug 2022,"9,821.69",
LUL NOMINEE SSL LIMITED,ERIKS  EMS,Component Repairs Sub Contracted,1031\5110131449,27 Jul 2022,"9,821.69",
LONDON UNDERGROUND LTD,DIRECT TRACK SOLUTIONS LTD,Track General Maintenance,1005\5110142110,02 Aug 2022,"9,817.90",
TTL PROPERTIES LTD,PWC LLP,Management & Support Consultancy,1040\5110142406,15 Aug 2022,"9,812.57",
TTL PROPERTIES LTD,MATT HUTCHINGS QC,Legal Fees,1040\5110137452,25 Jul 2022,"9,800.00",
LUL NOMINEE SSL LIMITED,CIRCET (UK) LIMITED,Professional Engineering Services,1031\5110146834,09 Aug 2022,"9,785.94",
LONDON UNDERGROUND LTD,BRECKNELL WILLIS & CO LTD,Track General Maintenance,1005\5110131755,27 Jul 2022,"9,783.00",
SURFACE TRANSPORT CORP,TELENT TECHNOLOGY SERVICES LTD,Traffic Signals,1002\5110129624,25 Jul 2022,"9,776.34",
SURFACE TRANSPORT CORP,OTM (UK) LTD,Contracted Services - Highway Bridges,1002\5110141884,19 Aug 2022,"9,770.00",
SURFACE TRANSPORT CORP,CAPITA BUSINESS SERVICES LTD,CCS Service Contract,1002\5110139575,16 Aug 2022,"9,754.00",
TRANSPORT TRADING LTD,HARRIS INSTALLATIONS SERVICES LTD,Office Accommodation Moves,1004\5110146437,10 Aug 2022,"9,737.00",
LONDON UNDERGROUND LTD,SERCO LTD,Maintenance Materials,1005\5110138370,15 Aug 2022,"9,728.00",
LONDON UNDERGROUND LTD,CREACTIVE DESIGN LTD,Maintenance Materials,1005\5110139693,27 Jul 2022,"9,725.08",
LONDON BUS SERVICES LTD,METROBUS LIMITED,Bus Contract Payments,1006\1900047688,05 Aug 2022,"9,716.87",
RAIL FOR LONDON LIMITED,CPC PROJECT SERVICES LLP,Professional Engineering Services,1020\5110146517,09 Aug 2022,"9,715.00",
LUL NOMINEE SSL LIMITED,SCHUNK CARBON TECHNOLOGY LIMITED,Fleet,1031\5110134813,29 Jul 2022,"9,700.19",
TFL CORPORATE,FRAZER NASH CONSULTANCY LTD,Management & Support Consultancy,1001\5110130190,26 Jul 2022,"9,657.00",
TRANSPORT TRADING LTD,CITY OF WESTMINSTER,Rates,1004\1901686900,17 Aug 2022,"9,656.16",
LUL NOMINEE SSL LIMITED,ERIKS  EMS,Component Repairs Sub Contracted,1031\5110129921,26 Jul 2022,"9,642.71",
LUL NOMINEE SSL LIMITED,ERIKS  EMS,Component Repairs Sub Contracted,1031\5110129927,26 Jul 2022,"9,642.71",
LUL NOMINEE SSL LIMITED,ERIKS  EMS,Component Repairs Sub Contracted,1031\5110139383,17 Aug 2022,"9,642.71",
TRANSPORT TRADING LTD,LONDON BOROUGH OF ISLINGTON,Rates,1004\1901686457,01 Aug 2022,"9,600.00",
PUBLIC CARRIAGE OFFICE,CORPORATE DOCUMENT SERVICES LTD,Printing,1003\5110138644,29 Jul 2022,"9,588.00",
SURFACE TRANSPORT CORP,MACLEOD SIMMONDS LTD,Contracted Services - Roads,1002\5110132795,02 Aug 2022,"9,585.00",
TFL CORPORATE,HYDER CONSULTING (UK) LTD,Management & Support Consultancy,1001\5110133210,01 Aug 2022,"9,571.80",
LONDON UNDERGROUND LTD,NETWORK RAIL COMMERCIAL PROPERTY,National Rail Long Term Charges,1005\5110136699,10 Aug 2022,"9,569.25",
LONDON UNDERGROUND LTD,NETWORK RAIL COMMERCIAL PROPERTY,National Rail Long Term Charges,1005\5110136702,10 Aug 2022,"9,569.25",
LONDON UNDERGROUND LTD,NETWORK RAIL COMMERCIAL PROPERTY,National Rail Long Term Charges,1005\5110136742,10 Aug 2022,"9,569.25",
TFL CORPORATE,INITIATE CONSULTING LTD,Management & Support Consultancy,1001\5110145206,18 Aug 2022,"9,562.50",
TFL CORPORATE,ATKINS LIMITED,Management & Support Consultancy,1001\5110131414,27 Jul 2022,"9,520.00",
SURFACE TRANSPORT CORP,CAPITA BUSINESS SERVICES LTD,CCS Service Contract,1002\5110139590,16 Aug 2022,"9,518.72",
LUL NOMINEE SSL LIMITED,SKF (UK) LTD,Fleet,1031\5110131767,27 Jul 2022,"9,510.00",
LONDON UNDERGROUND LTD,HERBERT SMITH LLP,Legal Fees,1005\5110135254,28 Jul 2022,"9,509.94",
SURFACE TRANSPORT CORP,KC & ASSOCIATES LTD,Contracted Services - Highway Bridges,1002\5110130107,26 Jul 2022,"9,500.00",
RAIL FOR LONDON LIMITED,HANNING & KAHL GMBH & CO KG,Management & Support Consultancy,1020\5110131362,29 Jul 2022,"9,495.02",
LONDON UNDERGROUND LTD,KNORR-BREMSE RAIL SYSTEMS LTD,Fleet,1005\5110134632,03 Aug 2022,"9,465.00",
SURFACE TRANSPORT CORP,TELENT TECHNOLOGY SERVICES LTD,Traffic Signals,1002\5110137273,16 Aug 2022,"9,455.27",
LONDON UNDERGROUND LTD,HOWELLS RAILWAY PRODUCTS LTD,Signals & Electricals stock issues,1005\5110140007,25 Jul 2022,"9,432.00",
LONDON UNDERGROUND LTD,VOITH TURBO LTD,Fleet,1005\5110132623,27 Jul 2022,"9,417.43",
PUBLIC CARRIAGE OFFICE,NSL LIMITED,PCO Outsourced Services,1003\5110138829,09 Aug 2022,"9,391.14",
TFL CORPORATE,INSIGHT EXECUTIVE GROUP LIMITED,IT Consultancy,1001\5110147959,15 Aug 2022,"9,375.00",
TTL PROPERTIES LTD,STRATEGIC RAIL CONSULTANTS LTD,Management & Support Consultancy,1040\5110111839,03 Aug 2022,"9,367.00",
LUL NOMINEE SSL LIMITED,KNORR-BREMSE RAIL SYSTEMS LTD,Fleet,1031\5110130526,25 Jul 2022,"9,365.40",
TRANSPORT TRADING LTD,LONDON BOROUGH OF ISLINGTON,Rates,1004\1901686460,01 Aug 2022,"9,363.00",
RAIL FOR LONDON LIMITED,C T PLUS COMMUNITY INTEREST COMPANY,Rail Replacement Service Costs,1020\5110139953,09 Aug 2022,"9,332.89",
LONDON UNDERGROUND LTD,FAIVELEY TRANSPORT,Fleet,1005\5110143300,10 Aug 2022,"9,317.76",
TRANSPORT TRADING LTD,LONDON BOROUGH OF BRENT,Rates,1004\1901686388,01 Aug 2022,"9,310.00",
TFL CORPORATE,GLEEDS BUILDING SURVEYING LTD,Management & Support Consultancy,1001\5110134009,27 Jul 2022,"9,306.00",
LONDON UNDERGROUND LTD,WECS PRECISION LTD,Fleet,1005\5110144710,09 Aug 2022,"9,304.00",
LONDON UNDERGROUND LTD,TIFLEX LTD,Track General Maintenance,1005\5110131009,27 Jul 2022,"9,293.85",
RAIL FOR LONDON LIMITED,STADLER PANKOW GMBH,Stock Of Fleet,1020\5110138090,12 Aug 2022,"9,288.96",
LONDON UNDERGROUND LTD,SPEEDY HIRE DIRECT LTD,Plant & Equipment Purchases,1005\5110134273,27 Jul 2022,"9,272.72",
TFL CORPORATE,STANTEC UK LIMITED,Planning & Development Consultancy,1001\5110130623,27 Jul 2022,"9,239.99",
SURFACE TRANSPORT CORP,NETWORK RAIL INFRASTRUCTURE,Road Maintenance,1002\5110133725,03 Aug 2022,"9,226.68",
LUL NOMINEE SSL LIMITED,SCHUNK CARBON TECHNOLOGY LIMITED,Fleet,1031\5110140787,29 Jul 2022,"9,225.29",
TFL CORPORATE,FAITHFUL+GOULD,Professional Engineering Services,1001\5110131372,27 Jul 2022,"9,225.00",
TFL CORPORATE,MONSTER CHETWYND,Art And Poetry Installations And Programmes,1001\5110138824,04 Aug 2022,"9,200.00",
SURFACE TRANSPORT CORP,CURRIE & BROWN UK LIMITED,Contracted Services - Roads,1002\5110135495,29 Jul 2022,"9,200.00",
LUL NOMINEE SSL LIMITED,KNORR-BREMSE RAIL SYSTEMS LTD,Signalling Systems,1031\5110131161,26 Jul 2022,"9,197.05",
LONDON UNDERGROUND LTD,PROGRESS RAIL SERVICES UK LTD,Signalling Systems,1005\5110131752,27 Jul 2022,"9,194.75",
TFL CORPORATE,ATKINS LIMITED,Professional Engineering Services,1001\5110131348,27 Jul 2022,"9,180.00",
LONDON UNDERGROUND LTD,HOLOPHANE EUROPE LTD,Signalling Systems,1005\5110137279,10 Aug 2022,"9,163.00",
LUL NOMINEE SSL LIMITED,MORGANITE ELECTRICAL CARBON LTD,Fleet,1031\5110133598,08 Aug 2022,"9,160.50",
LUL NOMINEE SSL LIMITED,ALSTOM TRANSPORT LTD,Fleet,1031\5110147799,19 Aug 2022,"9,134.00",
LONDON UNDERGROUND LTD,RJC (UK) LTD,Escalators,1005\5110134384,27 Jul 2022,"9,132.00",
TTL PROPERTIES LTD,STRATEGIC RAIL CONSULTANTS LTD,Management & Support Consultancy,1040\5110127911,03 Aug 2022,"9,120.50",
TRANSPORT TRADING LTD,LONDON BOROUGH OF CAMDEN,Rates,1004\1901686396,01 Aug 2022,"9,097.00",
SURFACE TRANSPORT CORP,O2 UK LTD,Telephony Mobile,1002\1900072724,19 Aug 2022,"9,057.42",
LONDON UNDERGROUND LTD,SPEEDY ASSET SERVICES LTD,Equipment Repairs & Maintenance,1005\5110140109,26 Jul 2022,"9,037.60",
SURFACE TRANSPORT CORP,CEOX SERVICES LTD,Computer Software,1002\5110122207,28 Jul 2022,"9,000.00",
LONDON UNDERGROUND LTD,ATKINS LIMITED,Planning & Development Consultancy,1005\5110136417,28 Jul 2022,"9,000.00",
TFL CORPORATE,INSIGHT EXECUTIVE GROUP LIMITED,IT Consultancy,1001\5110147902,15 Aug 2022,"9,000.00",
TRANSPORT TRADING LTD,BERWIN LEIGHTON PAISNER,Legal Fees,1004\5110135322,26 Jul 2022,"9,000.00",
SURFACE TRANSPORT CORP,REDSPEED INTERNATIONAL  LTD,Maintenance of Plant & Equipment,1002\5110137289,10 Aug 2022,"8,989.00",
LONDON UNDERGROUND LTD,PAYCOMPLETE UK LTD,MR Construction Costs,1005\5110131261,03 Aug 2022,"8,967.00",
SURFACE TRANSPORT CORP,CURRIE & BROWN UK LIMITED,Contracted Services - Roads,1002\5110135491,29 Jul 2022,"8,925.00",
TFL CORPORATE,ADFIELD HARVEY LTD,Production Artwork And Design For Marketing,1001\5110137960,01 Aug 2022,"8,910.00",
TFL CORPORATE,MEDIAEDGE,Social Media And Digital Advertising Space,1001\5110136295,28 Jul 2022,"8,884.61",
TTL PROPERTIES LTD,STRATEGIC RAIL CONSULTANTS LTD,Management & Support Consultancy,1040\5110132555,03 Aug 2022,"8,874.00",
LONDON UNDERGROUND LTD,SPEEDY ASSET SERVICES LTD,Equipment Repairs & Maintenance,1005\5110140094,29 Jul 2022,"8,860.39",
LUL NOMINEE SSL LIMITED,CIRCET (UK) LIMITED,Professional Engineering Services,1031\5110146376,08 Aug 2022,"8,856.15",
LONDON UNDERGROUND LTD,MODULAR DISTRIBUTION SYSTEMS,Stock of Lifts and Escalators,1005\5110141093,17 Aug 2022,"8,833.05",
TFL CORPORATE,CURRIE & BROWN UK LIMITED,Professional Engineering Services,1001\5110129548,25 Jul 2022,"8,820.00",
TRANSPORT TRADING LTD,LONDON BOROUGH OF WALTHAM FOREST,Rates,1004\1901686427,01 Aug 2022,"8,778.00",
LONDON UNDERGROUND LTD,TELENT TECHNOLOGY SERVICES LTD,Cameras,1005\5110131559,27 Jul 2022,"8,774.44",
TFL CORPORATE,CURRIE & BROWN UK LIMITED,Professional Engineering Services,1001\5110131462,25 Jul 2022,"8,745.00",
LONDON UNDERGROUND LTD,PROGRESS RAIL SERVICES UK LTD,Track General Maintenance,1005\5110131748,27 Jul 2022,"8,702.90",
TFL CORPORATE,RISKTEC SOLUTIONS LTD,Management & Support Consultancy,1001\5110142568,02 Aug 2022,"8,672.37",
RAIL FOR LONDON LIMITED,LOCKEN,Computer Consumables,1020\5110127818,03 Aug 2022,"8,667.84",
RAIL FOR LONDON LIMITED,BOMBARDIER TRANSPORT UK,Fleet,1020\5110135694,03 Aug 2022,"8,660.00",
LONDON UNDERGROUND LTD,HAYLEY GROUP PLC,Protective Clothing,1005\5110137635,10 Aug 2022,"8,652.72",
LUL NOMINEE BCV LIMITED,HAYLEY GROUP PLC,Protective Clothing,1033\5110131131,27 Jul 2022,"8,652.72",
LONDON UNDERGROUND LTD,A J WELLS & SONS LTD,MR Construction Costs,1005\5110148565,17 Aug 2022,"8,642.00",
LONDON UNDERGROUND LTD,DESIGNPLAN LIGHTING LTD,Heating & Lighting,1005\5110140976,17 Aug 2022,"8,640.00",
TFL CORPORATE,PERTEMPS RECRUITMENT PARTNERSHIPLTD,Recruitment Expenses,1001\5110132482,26 Jul 2022,"8,625.00",
LUL NOMINEE SSL LIMITED,ERIKS  EMS,Component Repairs Sub Contracted,1031\5110129567,16 Aug 2022,"8,622.92",
LONDON UNDERGROUND LTD,MCGINLEY SUPPORT SERVICES LTD,Track General Maintenance,1005\5110146208,08 Aug 2022,"8,604.00",
LONDON UNDERGROUND LTD,FAIVELEY TRANSPORT,Fleet,1005\5110143320,10 Aug 2022,"8,592.00",
TTL PROPERTIES LTD,CASTLE WATER LIMITED,Water,1040\1900001868,02 Aug 2022,"8,582.44",
LONDON UNDERGROUND LTD,CAPITA BUSINESS SERVICES LTD,IT Consultancy,1005\5110136234,09 Aug 2022,"8,575.69",
RAIL FOR LONDON LIMITED,NETWORK RAIL INFRASTRUCTURE,National Rail Contribution,1020\5110132483,27 Jul 2022,"8,570.50",
RFL (IINFRASTRUCTURE) LTD,EE LIMITED,Manage IT Services,1025\5110145088,15 Aug 2022,"8,565.70",
SURFACE TRANSPORT CORP,REDSPEED INTERNATIONAL  LTD,Maintenance of Plant & Equipment,1002\5110141520,10 Aug 2022,"8,540.25",
SURFACE TRANSPORT CORP,REDSPEED INTERNATIONAL  LTD,Maintenance of Plant & Equipment,1002\5110141523,10 Aug 2022,"8,540.25",
TFL CORPORATE,COMPUTACENTER PLC,Software Maintenance,1001\5110135796,08 Aug 2022,"8,540.00",
TFL CORPORATE,HYDER CONSULTING (UK) LTD,Management & Support Consultancy,1001\5110132557,26 Jul 2022,"8,537.04",
SURFACE TRANSPORT CORP,"SYSTEMS ENGINEERING, ASSESSMENT",PCN and Penalty Fare Processing,1002\5110129697,26 Jul 2022,"8,520.82",
DOCKLANDS LIGHT RAILWAY,PROGRESS RAIL SERVICES UK LTD,Civil Engineering Construction Works,1012\5110141094,17 Aug 2022,"8,518.00",
LONDON UNDERGROUND LTD,LPA EXCIL ELECTRONICS,Fleet,1005\5110130688,26 Jul 2022,"8,514.00",
LONDON UNDERGROUND LTD,TIFLEX LTD,Track General Maintenance,1005\5110130256,27 Jul 2022,"8,510.00",
RFL (IINFRASTRUCTURE) LTD,KNORR-BREMSE RAIL SYSTEMS LTD,Computer Consumables,1025\5110140485,17 Aug 2022,"8,507.00",
LONDON UNDERGROUND LTD,EVENHEIGHTS LTD,Vehicle Operating Leases,1005\5110147388,10 Aug 2022,"8,500.00",
LUL NOMINEE SSL LIMITED,KNORR-BREMSE RAIL SYSTEMS LTD,Signalling Systems,1031\5110136598,08 Aug 2022,"8,497.20",
LONDON UNDERGROUND LTD,DYER & BUTLER LTD,Civil Engineering Construction Works,1005\5110144887,18 Aug 2022,"8,490.07",
LONDON UNDERGROUND LTD,BIFFA WASTE SERVICES LIMITED,Non Recyclable Waste Disposal/Refuse Collection,1005\5110135511,10 Aug 2022,"8,486.80",
LONDON UNDERGROUND LTD,PIRTEK WATFORD LTD,Stock of Fleet,1005\5110128842,25 Jul 2022,"8,475.72",
TFL CORPORATE,XANTA LIMITED,Management & Support Consultancy,1001\5110147100,12 Aug 2022,"8,475.00",
LONDON UNDERGROUND LTD,GEOTECHNICAL OBSERVATIONS LTD,Civil Engineering Construction Works,1005\5110148692,18 Aug 2022,"8,450.76",
RFL (IINFRASTRUCTURE) LTD,EE LIMITED,Manage IT Services,1025\5110144958,15 Aug 2022,"8,434.50",
RFL (IINFRASTRUCTURE) LTD,EE LIMITED,Manage IT Services,1025\5110145094,15 Aug 2022,"8,418.71",
TRANSPORT TRADING LTD,WJB SERVICES LIMITED,Office Accommodation Moves,1004\5110146415,09 Aug 2022,"8,415.46",
LONDON UNDERGROUND LTD,GODIVA BEARINGS (SOUTHERN) LTD,Fleet,1005\5110144080,12 Aug 2022,"8,415.00",
LONDON UNDERGROUND LTD,BT SERVICE AGILITY,Telephony Fixed,1005\1900232136,09 Aug 2022,"8,414.09",
LONDON UNDERGROUND LTD,GEOTECHNICAL OBSERVATIONS LTD,Civil Engineering Construction Works,1005\5110135391,27 Jul 2022,"8,410.43",
TFL CORPORATE,BROWSE BION LTD,Non Permanent Signage And Way Finding,1001\5110141908,01 Aug 2022,"8,409.27",
LONDON UNDERGROUND LTD,4 RAIL SERVICES LTD,Track General Maintenance,1005\5110146932,10 Aug 2022,"8,395.00",
LONDON UNDERGROUND LTD,DIRECT TRACK SOLUTIONS LTD,Signalling Systems,1005\5110147653,19 Aug 2022,"8,387.60",
TTL PROPERTIES LTD,STRATEGIC RAIL CONSULTANTS LTD,Management & Support Consultancy,1040\5110110806,03 Aug 2022,"8,381.00",
LONDON BUS SERVICES LTD,MILESTONE INFRASTRUCTURE LIMITED,Building Maintenance & Repairs,1006\5110130277,25 Jul 2022,"8,376.70",
SURFACE TRANSPORT CORP,GTT-EMEA LIMITED,Maintenance of Telecommunications Equipment,1002\5110137521,10 Aug 2022,"8,376.60",
SURFACE TRANSPORT CORP,GTT-EMEA LIMITED,Maintenance of Telecommunications Equipment,1002\5110149590,19 Aug 2022,"8,376.60",
LONDON UNDERGROUND LTD,DWG INFRACO LIMITED,Track General Maintenance,1005\5110146331,08 Aug 2022,"8,376.00",
LUL NOMINEE SSL LIMITED,KNORR-BREMSE RAIL SYSTEMS LTD,Fleet,1031\5110139807,15 Aug 2022,"8,369.76",
LONDON BUS SERVICES LTD,C T PLUS COMMUNITY INTEREST COMPANY,Bus Contract Payments,1006\1900047682,05 Aug 2022,"8,356.56",
LONDON UNDERGROUND LTD,SOLUTION RAIL LIMITED,MR Construction Costs,1005\5110140945,26 Jul 2022,"8,356.35",
LUL NOMINEE BCV LIMITED,KINGSBEECH LTD,Track General Maintenance,1033\5110144653,08 Aug 2022,"8,316.00",
TRANSPORT TRADING LTD,THE BIG BUS COMPANY,Ticket & Pass Production,1004\1901686247,27 Jul 2022,"8,305.32",
SURFACE TRANSPORT CORP,TELENT TECHNOLOGY SERVICES LTD,Traffic Signals,1002\5110137287,10 Aug 2022,"8,303.32",
TFL CORPORATE,INVESTIGO,Management & Support Consultancy,1001\5110147160,09 Aug 2022,"8,290.00",
TRANSPORT TRADING LTD,GLEEDS BUILDING SURVEYING LTD,Management & Support Consultancy,1004\5110142450,19 Aug 2022,"8,290.00",
LUL NOMINEE SSL LIMITED,SCHUNK CARBON TECHNOLOGY LIMITED,Fleet,1031\5110132584,29 Jul 2022,"8,285.96",
LONDON UNDERGROUND LTD,KNORR-BREMSE RAIL SYSTEMS LTD,Fleet,1005\5110140167,17 Aug 2022,"8,276.80",
RAIL FOR LONDON LIMITED,AECOM LTD,Professional Engineering Services,1020\5110143108,18 Aug 2022,"8,275.06",
LONDON UNDERGROUND LTD,VOITH TURBO LTD,Fleet,1005\5110131826,27 Jul 2022,"8,270.97",
TFL CORPORATE,INVESTIGO,Management & Support Consultancy,1001\5110148911,15 Aug 2022,"8,250.00",
RAIL FOR LONDON LIMITED,HAYLEY GROUP PLC,Civil Engineering Construction Works,1020\5110144892,04 Aug 2022,"8,232.00",
SURFACE TRANSPORT CORP,WSO2 UK LIMITED,Computer Software,1002\5110131046,29 Jul 2022,"8,225.00",
SURFACE TRANSPORT CORP,WSO2 UK LIMITED,Computer Software,1002\5110131052,29 Jul 2022,"8,225.00",
SURFACE TRANSPORT CORP,WSO2 UK LIMITED,Software Maintenance,1002\5110106244,25 Jul 2022,"8,225.00",
PUBLIC CARRIAGE OFFICE,PW AUTOMOTIVE TRAINING LTD,Staff Training,1003\5110138925,16 Aug 2022,"8,211.00",
TRANSPORT TRADING LTD,QUAY OFFICE FURNISHERS LTD,Furniture & Equipment,1004\5110149923,19 Aug 2022,"8,194.00",
TRANSPORT TRADING LTD,NOVACROFT DIRECT LTD,Ticket & Pass Production,1004\5110144222,08 Aug 2022,"8,181.00",
LONDON UNDERGROUND LTD,MEP LTD,Fleet,1005\5110101609,11 Aug 2022,"8,179.00",
PUBLIC CARRIAGE OFFICE,MITIE FM LIMITED,Security Services (Guards),1003\5110136851,01 Aug 2022,"8,159.07",
LONDON UNDERGROUND LTD,TIFLEX LTD,Track General Maintenance,1005\5110134952,03 Aug 2022,"8,152.50",
LONDON UNDERGROUND LTD,PULLMAN RAIL LTD,Fleet,1005\5110140759,26 Jul 2022,"8,124.09",
LONDON UNDERGROUND LTD,CAPITA BUSINESS SERVICES LTD,Maintenance of Telecommunications Equipment,1005\5110130808,27 Jul 2022,"8,116.59",
TRANSPORT TRADING LTD,CAPITA BUSINESS SERVICES LTD,Maintenance of Telecommunications Equipment,1004\5110130984,27 Jul 2022,"8,116.58",
LONDON UNDERGROUND LTD,MORS SMITT STS SIGNALS,Fleet,1005\5110144893,04 Aug 2022,"8,111.58",
TFL CORPORATE,HEALTH AND SAFETY EXECUTIVE,Staff Training,1001\5110140689,12 Aug 2022,"8,100.00",
TRANSPORT TRADING LTD,BNP PARIBAS REAL ESTATE ADV & PROP,Property Management Fees,1004\5110129632,25 Jul 2022,"8,100.00",
LONDON UNDERGROUND LTD,PULLMAN RAIL LTD,Fleet,1005\5110140780,26 Jul 2022,"8,093.48",
LONDON UNDERGROUND LTD,SIEMENS MOBILITY LIMITED,Signalling Systems,1005\5110129211,25 Jul 2022,"8,040.00",
TFL CORPORATE,LINKS SIGNS LTD,Non Permanent Signage And Way Finding,1001\5110145265,08 Aug 2022,"8,037.64",
LONDON UNDERGROUND LTD,JONES LANG LASALLE,Planning & Development Consultancy,1005\5110130001,26 Jul 2022,"8,016.00",
LONDON UNDERGROUND LTD,SILENZIO PANELS LTD,Civil Engineering Construction Works,1005\5110138464,29 Jul 2022,"8,016.00",
SURFACE TRANSPORT CORP,TELENT TECHNOLOGY SERVICES LTD,Traffic Signals,1002\5110129631,25 Jul 2022,"8,002.48",
TFL CORPORATE,STRAIGHTFORWARD COMMUNICATIONS LTD,Photography And Video Design And Production,1001\5110139362,26 Jul 2022,"8,000.00",
TFL CORPORATE,INSIGHT EXECUTIVE GROUP LIMITED,Management & Support Consultancy,1001\5110147974,15 Aug 2022,"8,000.00",
LONDON UNDERGROUND LTD,GARDINER & THEOBALD LLP,Planning & Development Consultancy,1005\5110136419,27 Jul 2022,"8,000.00",
RAIL FOR LONDON LIMITED,STRATEGIC RAIL CONSULTANTS LTD,Professional Engineering Services,1020\5110145904,09 Aug 2022,"8,000.00",
SURFACE TRANSPORT CORP,LONDON BOROUGH OF WALTHAM FOREST,Borough Services - Claim Against Pr Yr Accrual,1002\1900072291,10 Aug 2022,"7,983.60",
TFL CORPORATE,LINKS SIGNS LTD,Non Permanent Signage And Way Finding,1001\5110145601,09 Aug 2022,"7,971.00",
RFL (IINFRASTRUCTURE) LTD,AIRWAVE SOLUTIONS LTD,Computer Software,1025\5110136186,09 Aug 2022,"7,953.98",
RAIL FOR LONDON LIMITED,TURNER & TOWNSEND PROJECT ,Management & Support Consultancy,1020\5110135737,03 Aug 2022,"7,945.44",
TFL CORPORATE,PROBRAND LTD,Software Maintenance,1001\5110129591,25 Jul 2022,"7,944.89",
LONDON UNDERGROUND LTD,THALES GROUND TRANSPORTATION SYSTEM,Computer Hardware,1005\5110129703,26 Jul 2022,"7,940.00",
LONDON UNDERGROUND LTD,DIRECT TRACK SOLUTIONS LTD,Track General Maintenance,1005\5110147087,12 Aug 2022,"7,940.00",
TFL CORPORATE,MEDIAEDGE,Radio TV Press Poster Cinema Airtime And Space,1001\5110136212,28 Jul 2022,"7,935.16",
LUL NOMINEE BCV LIMITED,DESIGN AND TECHNICAL SERVICES UK,Equipment Repairs & Maintenance,1033\5110147122,10 Aug 2022,"7,896.00",
LUL NOMINEE SSL LIMITED,ERIKS  EMS,Component Repairs Sub Contracted,1031\5110130818,08 Aug 2022,"7,890.71",
LUL NOMINEE SSL LIMITED,ERIKS  EMS,Component Repairs Sub Contracted,1031\5110129919,26 Jul 2022,"7,890.71",
LUL NOMINEE SSL LIMITED,ERIKS INDUSTRIAL SERVICES LTD,Component Repairs Sub Contracted,1031\5110129929,26 Jul 2022,"7,890.71",
LUL NOMINEE SSL LIMITED,ERIKS  EMS,Component Repairs Sub Contracted,1031\5110131471,27 Jul 2022,"7,890.71",
TTL PROPERTIES LTD,STRATEGIC RAIL CONSULTANTS LTD,Management & Support Consultancy,1040\5110127909,03 Aug 2022,"7,888.00",
LONDON BUS SERVICES LTD,RINGWAY INFRASTRUCTURE SERVICES LTD,Building Maintenance & Repairs,1006\5110148058,17 Aug 2022,"7,885.75",
LONDON UNDERGROUND LTD,ALSTOM TRANSPORT LTD,Fleet,1005\5110136832,10 Aug 2022,"7,885.00",
VICTORIA COACH STATN LTD,VINCI CONSTRUCTION UK LTD,Building Maintenance & Repairs,1008\5110142131,28 Jul 2022,"7,875.90",
TFL CORPORATE,GLOBAL OUTDOOR MEDIA LIMITED,Printing For Customer Info Materials,1001\5110134377,03 Aug 2022,"7,875.00",
SURFACE TRANSPORT CORP,GOLDEN RIVER TRAFFIC LTD,Manage IT Services,1002\5110124985,02 Aug 2022,"7,870.35",
LUL NOMINEE SSL LIMITED,HARMILL SYSTEMS LTD,Civil Engineering Construction Works,1031\5110148474,17 Aug 2022,"7,854.77",
LONDON UNDERGROUND LTD,PULLMAN RAIL LTD,Fleet,1005\5110140785,26 Jul 2022,"7,854.32",
LUL NOMINEE BCV LIMITED,TRELLEBORG INDUSTRIAL AVS,Maintenance Materials,1033\5110129008,25 Jul 2022,"7,840.00",
TFL CORPORATE,MEDIAEDGE,Radio TV Press Poster Cinema Airtime And Space,1001\5110136249,28 Jul 2022,"7,834.82",
LONDON UNDERGROUND LTD,BT SERVICE AGILITY,Telephony Fixed,1005\1900232502,12 Aug 2022,"7,809.69",
TFL CORPORATE,EQUINIX (UK) LTD,Manage IT Services,1001\5110133050,27 Jul 2022,"7,804.62",
SURFACE TRANSPORT CORP,REDSPEED INTERNATIONAL  LTD,Maintenance of Plant & Equipment,1002\5110139688,17 Aug 2022,"7,804.43",
RAIL FOR LONDON LIMITED,TURNER & TOWNSEND PROJECT ,Management & Support Consultancy,1020\5110135724,03 Aug 2022,"7,803.22",
LONDON UNDERGROUND LTD,MACE Ltd,Planning & Development Consultancy,1005\5110147351,18 Aug 2022,"7,800.00",
LONDON UNDERGROUND LTD,PULLMAN RAIL LTD,Fleet,1005\5110144689,08 Aug 2022,"7,771.09",
LT MUSEUM TRADING LTD,BRONTE,LTM Purchase of Clothing & Accessories - Adults,1024\1900021579,27 Jul 2022,"7,770.00",
TTL PROPERTIES LTD,JNG CONSTRUCTION & ENGINEERING,Building Maintenance & Repairs,1040\5110149901,19 Aug 2022,"7,765.65",
LONDON UNDERGROUND LTD,PULLMAN RAIL LTD,Fleet,1005\5110144664,08 Aug 2022,"7,765.58",
LONDON BUS SERVICES LTD,TURNAMMS ASSESSORS,Accident claims recovery,1006\1900047572,28 Jul 2022,"7,747.39",
TFL CORPORATE,ESRI (UK) LIMITED,Software Maintenance,1001\5110132045,02 Aug 2022,"7,733.00",
LONDON UNDERGROUND LTD,PULLMAN RAIL LTD,Fleet,1005\5110144672,08 Aug 2022,"7,729.46",
RFL (IINFRASTRUCTURE) LTD,EMERSON NETWORK POWER LTD,Protective Clothing,1025\5110137395,10 Aug 2022,"7,721.40",
LONDON BUS SERVICES LTD,TAIT EUROPE LTD,Radio Systems Equipment & Maintenance,1006\5110135172,27 Jul 2022,"7,717.62",
LONDON UNDERGROUND LTD,LANES GROUP PLC,Building Maintenance & Repairs,1005\5110143271,02 Aug 2022,"7,702.24",
LONDON UNDERGROUND LTD,EVENHEIGHTS LTD,Vehicle Operating Leases,1005\5110147110,09 Aug 2022,"7,700.00",
TFL CORPORATE,CURRIE & BROWN UK LIMITED,Management & Support Consultancy,1001\5110132005,27 Jul 2022,"7,700.00",
TFL CORPORATE,FAITHFUL+GOULD,Management & Support Consultancy,1001\5110133114,01 Aug 2022,"7,700.00",
LONDON UNDERGROUND LTD,PULLMAN RAIL LTD,Fleet,1005\5110140784,26 Jul 2022,"7,696.04",
LONDON UNDERGROUND LTD,MORSON HUMAN RESOURCES LTD,Electrical Equipment Maintenance,1005\5110136983,17 Aug 2022,"7,695.00",
TFL CORPORATE,CORPORATE DOCUMENT SERVICES LTD,Printing,1001\5110138641,08 Aug 2022,"7,686.92",
TRANSPORT TRADING LTD,CITY OF WESTMINSTER,Rates,1004\1901686902,17 Aug 2022,"7,669.75",
TFL CORPORATE,CURRIE & BROWN UK LIMITED,Management & Support Consultancy,1001\5110132033,27 Jul 2022,"7,659.36",
TRANSPORT TRADING LTD,MATT HUTCHINGS QC,Legal Fees,1004\5110139670,25 Jul 2022,"7,650.00",
LONDON UNDERGROUND LTD,NETWORK RAIL INFRASTRUCTURE,Maintenance of Plant & Equipment,1005\5110134114,03 Aug 2022,"7,649.81",
TTL PROPERTIES LTD,MOTT MACDONALD LIMITED,Planning & Development Consultancy,1040\5110147354,15 Aug 2022,"7,633.87",
LUL NOMINEE SSL LIMITED,ELECTROMECH RS LTD,Component Repairs Sub Contracted,1031\5110138631,25 Jul 2022,"7,632.69",
TFL CORPORATE,GLEEDS BUILDING SURVEYING LTD,Management & Support Consultancy,1001\5110134004,27 Jul 2022,"7,630.00",
LONDON BUS SERVICES LTD,QUOD LTD,Planning & Development Consultancy,1006\5110143891,02 Aug 2022,"7,622.50",
TFL CORPORATE,AECOM LTD,Management & Support Consultancy,1001\5110140171,25 Jul 2022,"7,611.60",
TFL CORPORATE,UNIVERSAL MOTORCYCLE TRAINING,External Events Roads Shows And Face To Face,1001\5110135302,28 Jul 2022,"7,590.00",
TFL CORPORATE,AMAZON,Software Maintenance,1001\5110149567,16 Aug 2022,"7,586.87",
LONDON BUS SERVICES LTD,MITIE CLEANING & ENVIRONMENTAL,Management & Support Consultancy,1006\5110131708,27 Jul 2022,"7,556.67",
TRANSPORT TRADING LTD,CITY OF WESTMINSTER,Rates,1004\1901686439,01 Aug 2022,"7,554.00",
SURFACE TRANSPORT CORP,METIS,Professional Engineering Services,1002\5110143399,05 Aug 2022,"7,532.52",
LONDON UNDERGROUND LTD,WATSON FUELS,Fleet,1005\5110138382,10 Aug 2022,"7,532.00",
LONDON UNDERGROUND LTD,KNORR-BREMSE RAIL SYSTEMS LTD,Fleet,1005\5110136091,09 Aug 2022,"7,527.52",
RFL (IINFRASTRUCTURE) LTD,WATSON FUELS,Maintenance Materials,1025\5110112420,05 Aug 2022,"7,520.25",
RAIL FOR LONDON LIMITED,XANTA LIMITED,Management & Support Consultancy,1020\5110141384,29 Jul 2022,"7,520.00",
TFL CORPORATE,4C ASSOCIATES LIMITED,Management & Support Consultancy,1001\5110123707,09 Aug 2022,"7,500.00",
TFL CORPORATE,INVESTIGO,Management & Support Consultancy,1001\5110143265,09 Aug 2022,"7,500.00",
TFL CORPORATE,INVESTIGO,Management & Support Consultancy,1001\5110148948,15 Aug 2022,"7,500.00",
TTL PROPERTIES LTD,BRUCE GILLINGHAM POLLARD LIMITED,Management & Support Consultancy,1040\5110148946,17 Aug 2022,"7,500.00",
TFL CORPORATE,INSIGHT EXECUTIVE GROUP LIMITED,IT Consultancy,1001\5110145164,15 Aug 2022,"7,500.00",
LONDON UNDERGROUND LTD,4 RAIL SERVICES LTD,Track General Maintenance,1005\5110146930,10 Aug 2022,"7,489.80",
LONDON UNDERGROUND LTD,PULLMAN RAIL LTD,Fleet,1005\5110144660,08 Aug 2022,"7,483.40",
SURFACE TRANSPORT CORP,REDSPEED INTERNATIONAL  LTD,Traffic Signals,1002\5110141485,17 Aug 2022,"7,478.25",
SURFACE TRANSPORT CORP,REDSPEED INTERNATIONAL  LTD,Maintenance of Plant & Equipment,1002\5110131010,27 Jul 2022,"7,478.25",
SURFACE TRANSPORT CORP,REDSPEED INTERNATIONAL  LTD,Maintenance of Plant & Equipment,1002\5110137278,08 Aug 2022,"7,478.25",
LUL NOMINEE SSL LIMITED,AMETEK AIRTECHNOLOGY GROUP LTD,Fleet,1031\5110129905,26 Jul 2022,"7,449.50",
LONDON UNDERGROUND LTD,ACIERIES ET LAMINOIRS DE RIVES SAS,Fleet,1005\5110140791,12 Aug 2022,"7,449.00",
TFL CORPORATE,HCL TECHNOLOGIES UK LTD,Computer Software,1001\5110142843,17 Aug 2022,"7,442.25",
LUL NOMINEE SSL LIMITED,MORGANITE ELECTRICAL CARBON LTD,Fleet,1031\5110142637,08 Aug 2022,"7,432.80",
TFL CORPORATE,MACE Ltd,Management & Support Consultancy,1001\5110138488,04 Aug 2022,"7,425.00",
PUBLIC CARRIAGE OFFICE,NSL LIMITED,PCO Outsourced Services,1003\5110138515,27 Jul 2022,"7,419.16",
TFL CORPORATE,FAITHFUL+GOULD,Management & Support Consultancy,1001\5110129802,25 Jul 2022,"7,398.00",
TFL CORPORATE,GREATER LONDON AUTHORITY ,Publications & Periodicals,1001\5110147028,19 Aug 2022,"7,387.51",
LONDON UNDERGROUND LTD,TRACKWORK RESOURCES LTD,Fleet,1005\5110138053,10 Aug 2022,"7,382.00",
LONDON UNDERGROUND LTD,KNORR-BREMSE RAIL SYSTEMS LTD,Fleet,1005\5110135668,08 Aug 2022,"7,381.40",
LONDON UNDERGROUND LTD,DPSS CABLING SERVICES LIMITED,Equipment Repairs & Maintenance,1005\5110149961,19 Aug 2022,"7,374.86",
LUL NOMINEE SSL LIMITED,KNORR-BREMSE RAIL SYSTEMS LTD,Fleet,1031\5110139808,15 Aug 2022,"7,373.36",
LONDON UNDERGROUND LTD,TRELLEBORG INDUSTRIAL AVS,Fleet,1005\5110129630,28 Jul 2022,"7,366.00",
LONDON UNDERGROUND LTD,AGGREGATE INDUSTRIES UK LTD,Signalling Systems,1005\5110127954,17 Aug 2022,"7,355.52",
LONDON UNDERGROUND LTD,CURRIE & BROWN UK LIMITED,Building Maintenance & Repairs,1005\5110135684,08 Aug 2022,"7,351.50",
LONDON UNDERGROUND LTD,EQUANS SERVICES LIMITED,Fire and Safety Equipment,1005\5110144768,03 Aug 2022,"7,345.98",
LONDON UNDERGROUND LTD,COMMANDER BUILDING SERVICES LIMITED,Equipment Repairs & Maintenance,1005\5110148709,17 Aug 2022,"7,343.34",
LONDON UNDERGROUND LTD,THALES GROUND TRANSPORTATION SYSTEM,Signalling Systems,1005\5110138124,10 Aug 2022,"7,331.60",
LUL NOMINEE BCV LIMITED,COMPUTACENTER PLC,Maintenance Materials,1033\5110138298,15 Aug 2022,"7,327.32",
TRANSPORT TRADING LTD,HARRIS INSTALLATIONS SERVICES LTD,Office Accommodation Moves,1004\5110148700,17 Aug 2022,"7,320.00",
TFL CORPORATE,FIRSTCO LIMITED,Management & Support Consultancy,1001\5110147414,15 Aug 2022,"7,271.00",
LONDON UNDERGROUND LTD,GRAYBAR LTD,Track General Maintenance,1005\5110141459,08 Aug 2022,"7,270.00",
TFL CORPORATE,INVESTIGO,Management & Support Consultancy,1001\5110140231,01 Aug 2022,"7,259.00",
LONDON UNDERGROUND LTD,KONE PLC,Escalators,1005\5110132399,27 Jul 2022,"7,246.75",
LONDON UNDERGROUND LTD,PULLMAN RAIL LTD,Fleet,1005\5110144667,08 Aug 2022,"7,225.41",
TRANSPORT TRADING LTD,CITY OF WESTMINSTER,Rates,1004\1901686670,03 Aug 2022,"7,215.61",
LUL NOMINEE SSL LIMITED,KNORR-BREMSE RAIL SYSTEMS LTD,Fleet,1031\5110136090,09 Aug 2022,"7,209.92",
LUL NOMINEE SSL LIMITED,KNORR-BREMSE RAIL SYSTEMS LTD,Fleet,1031\5110138030,15 Aug 2022,"7,209.92",
TFL CORPORATE,AON SOLUTIONS UK LTD,Management & Support Consultancy,1001\5110137945,08 Aug 2022,"7,206.15",
LONDON UNDERGROUND LTD,AB CONNECTORS LTD,Protective Clothing,1005\5110140112,26 Jul 2022,"7,203.62",
TFL CORPORATE,BROWSE BION LTD,Non Permanent Signage And Way Finding,1001\5110138952,25 Jul 2022,"7,200.83",
RFL (IINFRASTRUCTURE) LTD,NCC SERVICES LIMITED,Staff Training,1025\5110127117,09 Aug 2022,"7,200.00",
TRANSPORT TRADING LTD,LONDON BOROUGH OF NEWHAM ,Rates,1004\1901686377,01 Aug 2022,"7,182.00",
TRANSPORT TRADING LTD,LONDON BOROUGH OF NEWHAM ,Rates,1004\1901686381,01 Aug 2022,"7,182.00",
TFL CORPORATE,HYDER CONSULTING (UK) LTD,Management & Support Consultancy,1001\5110133234,26 Jul 2022,"7,177.50",
SURFACE TRANSPORT CORP,DAISY CORPORATE SERVICES TRADINGLTD,Telephony Fixed,1002\5110139360,17 Aug 2022,"7,165.20",
LONDON UNDERGROUND LTD,HOPPECKE INDUSTRIAL BATTERIES,Fleet,1005\5110141550,29 Jul 2022,"7,158.24",
LONDON UNDERGROUND LTD,HOPPECKE INDUSTRIAL BATTERIES,Fleet,1005\5110147894,16 Aug 2022,"7,158.24",
LONDON UNDERGROUND LTD,HOPPECKE INDUSTRIAL BATTERIES,Fleet,1005\5110147895,16 Aug 2022,"7,158.24",
LUL NOMINEE SSL LIMITED,SWEETNAM & BRADLEY LTD,Maintenance Materials,1031\5110117603,19 Aug 2022,"7,152.40",
LONDON UNDERGROUND LTD,BT SERVICE AGILITY,Telephony Fixed,1005\1900232575,17 Aug 2022,"7,149.64",
RAIL FOR LONDON LIMITED,PROBRAND LTD,Software Maintenance,1020\5110103696,27 Jul 2022,"7,140.00",
LONDON UNDERGROUND LTD,PULLMAN RAIL LTD,Fleet,1005\5110140761,26 Jul 2022,"7,136.62",
LUL NOMINEE SSL LIMITED,AEI CABLES LTD,Fleet,1031\5110131260,27 Jul 2022,"7,132.00",
TTL PROPERTIES LTD,AVISON YOUNG (UK) LIMITED,Planning & Development Consultancy,1040\5110131276,27 Jul 2022,"7,128.00",
LONDON UNDERGROUND LTD,BRECKNELL WILLIS & CO LTD,Signalling Systems,1005\5110132568,27 Jul 2022,"7,127.00",
TFL CORPORATE,INSIGHT EXECUTIVE GROUP LIMITED,Management & Support Consultancy,1001\5110148428,15 Aug 2022,"7,125.00",
LUL NOMINEE BCV LIMITED,TRACKWORK RESOURCES LTD,Track General Maintenance,1033\5110134706,27 Jul 2022,"7,123.50",
TRANSPORT TRADING LTD,HARRIS INSTALLATIONS SERVICES LTD,Office Accommodation Moves,1004\5110138340,25 Jul 2022,"7,122.28",
TFL CORPORATE,KELWAY (UK),Software Maintenance,1001\5110130749,27 Jul 2022,"7,116.69",
LONDON UNDERGROUND LTD,PULLMAN RAIL LTD,Fleet,1005\5110140763,26 Jul 2022,"7,116.39",
LONDON UNDERGROUND LTD,PROGRESS RAIL SERVICES UK LTD,Track General Maintenance,1005\5110134332,03 Aug 2022,"7,114.80",
VICTORIA COACH STATN LTD,EDF ENERGY,Electricity,1008\5110144477,09 Aug 2022,"7,105.27",
LONDON UNDERGROUND LTD,SIEMENS MOBILITY LIMITED,Signalling Systems,1005\5110129218,25 Jul 2022,"7,104.00",
RAIL FOR LONDON LIMITED,NETWORK RAIL INFRASTRUCTURE,Civil Engineering Construction Works,1020\5110140678,17 Aug 2022,"7,103.20",
SURFACE TRANSPORT CORP,TELENT TECHNOLOGY SERVICES LTD,Traffic Signals,1002\5110137416,16 Aug 2022,"7,101.57",
LONDON UNDERGROUND LTD,HEGENSCHEIDT-MFD GMBH,Staff Training,1005\5110134937,05 Aug 2022,"7,100.00",
SURFACE TRANSPORT CORP,40SEVEN LTD,Civil Engineering Construction Works,1002\5110132161,27 Jul 2022,"7,089.00",
SURFACE TRANSPORT CORP,INRIX UK LTD,Computer Software,1002\5110114417,25 Jul 2022,"7,083.33",
SURFACE TRANSPORT CORP,INRIX UK LTD,Computer Software,1002\5110125665,26 Jul 2022,"7,083.33",
TFL CORPORATE,REED SPECIALIST RECRUITMENT LTD,Agency Staff,1001\1900123546,17 Aug 2022,"7,082.80",
LONDON UNDERGROUND LTD,NETWORK RAIL COMMERCIAL PROPERTY,National Rail Long Term Charges,1005\5110136714,10 Aug 2022,"7,073.70",
LONDON UNDERGROUND LTD,KNORR-BREMSE RAIL SYSTEMS LTD,Maintenance Materials,1005\5110130592,26 Jul 2022,"7,070.08",
LONDON UNDERGROUND LTD,GBM SERVICES LTD,Operational Cleaning,1005\5110137518,25 Jul 2022,"7,068.87",
LONDON UNDERGROUND LTD,SPX RAIL SYSTEMS,Signalling Systems,1005\5110130872,27 Jul 2022,"7,056.96",
LONDON UNDERGROUND LTD,MUSGROVE LTD,Fleet,1005\5110148533,12 Aug 2022,"7,056.00",
SURFACE TRANSPORT CORP,EVERSHEDS,Legal Fees,1002\5110140950,26 Jul 2022,"7,041.00",
LONDON UNDERGROUND LTD,TRENITALIA C2C LTD,National Rail Long Term Charges,1005\5110137846,10 Aug 2022,"7,030.63",
LUL NOMINEE SSL LIMITED,KNORR-BREMSE RAIL SYSTEMS LTD,Signalling Systems,1031\5110137655,10 Aug 2022,"7,025.20",
TFL CORPORATE,OTM (UK) LTD,Radio TV Press Poster Cinema Airtime And Space,1001\5110134406,26 Jul 2022,"7,025.00",
PUBLIC CARRIAGE OFFICE,NSL LIMITED,PCO Outsourced Services,1003\5110136968,27 Jul 2022,"7,022.64",
LUL NOMINEE SSL LIMITED,WECS PRECISION LTD,Signalling Systems,1031\5110149903,19 Aug 2022,"7,020.00",
LONDON UNDERGROUND LTD,EQUANS SERVICES LIMITED,Fire and Safety Equipment,1005\5110135348,03 Aug 2022,"7,019.83",
LONDON UNDERGROUND LTD,ACTIVAIR AUTOMATION LTD,Fleet,1005\5110144251,04 Aug 2022,"7,008.95",
LONDON UNDERGROUND LTD,FELTHAM COACHWORKS LTD,Vehicle Repairs & Maintenance,1005\5110147129,10 Aug 2022,"7,008.21",
LONDON UNDERGROUND LTD,VFS (SOUTHAMPTON) LIMITED,Vehicle Repairs & Maintenance,1005\5110147171,09 Aug 2022,"7,005.51",
TRANSPORT TRADING LTD,QUADIENT UK LTD,Postage,1004\5110150434,18 Aug 2022,"7,000.00",
SURFACE TRANSPORT CORP,PCUBED LTD,Software Maintenance,1002\5110136114,27 Jul 2022,"7,000.00",
LUL NOMINEE BCV LIMITED,HEGENSCHEIDT-MFD GMBH,Maintenance Materials,1033\5110129257,27 Jul 2022,"6,995.00",
LUL NOMINEE SSL LIMITED,MORGANITE ELECTRICAL CARBON LTD,Fleet,1031\5110136689,05 Aug 2022,"6,950.00",
TFL CORPORATE,CORPORATE DOCUMENT SERVICES LTD,Postage,1001\5110138568,25 Jul 2022,"6,942.16",
LONDON UNDERGROUND LTD,4 RAIL SERVICES LTD,Track General Maintenance,1005\5110140779,27 Jul 2022,"6,935.00",
LONDON UNDERGROUND LTD,4 RAIL SERVICES LTD,Building Maintenance & Repairs,1005\5110141620,27 Jul 2022,"6,930.00",
RAIL FOR LONDON LIMITED,ATKINS LIMITED,Professional Engineering Services,1020\5110132132,27 Jul 2022,"6,929.69",
RAIL FOR LONDON LIMITED,KNORR-BREMSE RAIL SYSTEMS LTD,Stock Of Fleet,1020\5110140564,17 Aug 2022,"6,928.00",
SURFACE TRANSPORT CORP,REDSPEED INTERNATIONAL  LTD,Maintenance of Plant & Equipment,1002\5110141492,10 Aug 2022,"6,922.00",
SURFACE TRANSPORT CORP,CAPITA BUSINESS SERVICES LTD,CCS Service Contract,1002\5110139581,16 Aug 2022,"6,917.10",
LONDON UNDERGROUND LTD,ENPRO GROUP LIMITED,Maintenance Materials,1005\5110137909,10 Aug 2022,"6,916.00",
TFL CORPORATE,CURRIE & BROWN UK LIMITED,Management & Support Consultancy,1001\5110132009,27 Jul 2022,"6,900.00",
LONDON UNDERGROUND LTD,FUSION PEOPLE LTD,Vehicle Operating Leases,1005\5110139160,26 Jul 2022,"6,896.89",
LUL NOMINEE SSL LIMITED,THALES GROUND TRANSPORTATION SYSTEM,Computer Hardware,1031\5110129700,26 Jul 2022,"6,889.33",
LONDON UNDERGROUND LTD,HYDROBOLT,Fleet,1005\5110148560,16 Aug 2022,"6,881.28",
LUL NOMINEE SSL LIMITED,MCGINLEY SUPPORT SERVICES LTD,Civil Engineering Construction Works,1031\5110144298,03 Aug 2022,"6,876.48",
TRANSPORT TRADING LTD,CITY OF WESTMINSTER,Rates,1004\1901686443,01 Aug 2022,"6,862.00",
RFL (IINFRASTRUCTURE) LTD,DPMS LTD,Equipment Repairs & Maintenance,1025\5110141836,03 Aug 2022,"6,806.82",
TFL CORPORATE,WORKLAB LTD,Recruitment Agency Fees,1001\5110146989,09 Aug 2022,"6,800.00",
LONDON BUS SERVICES LTD,TELENT TECHNOLOGY SERVICES LTD,Cameras,1006\5110140055,17 Aug 2022,"6,795.03",
LUL NOMINEE BCV LIMITED,MOTIVAIR COMPRESSORS LTD,Maintenance Materials,1033\5110145922,05 Aug 2022,"6,779.00",
SURFACE TRANSPORT CORP,TELENT TECHNOLOGY SERVICES LTD,Traffic Signals,1002\5110137356,10 Aug 2022,"6,760.87",
LONDON UNDERGROUND LTD,KNORR-BREMSE RAIL SYSTEMS LTD,Fleet,1005\5110140551,17 Aug 2022,"6,748.09",
LONDON TRANSPORT MUSEUM,UNDERCOVER ARTS,Marketing Services,1011\5110143097,01 Aug 2022,"6,748.00",
LONDON UNDERGROUND LTD,BMAC LTD,Fleet,1005\5110129720,26 Jul 2022,"6,738.48",
LONDON UNDERGROUND LTD,TELENT TECHNOLOGY SERVICES LTD,Cameras,1005\5110149369,16 Aug 2022,"6,731.55",
LONDON UNDERGROUND LTD,LB FOSTER TEW PLUS,Lift Maintenance,1005\5110144220,03 Aug 2022,"6,718.24",
RFL (IINFRASTRUCTURE) LTD,PROBRAND LTD,Software Maintenance,1025\5110147459,16 Aug 2022,"6,718.00",
TRANSPORT TRADING LTD,CITY OF WESTMINSTER,Rates,1004\1901686437,01 Aug 2022,"6,703.00",
TRANSPORT TRADING LTD,LONDON BOROUGH OF LAMBETH,Rates,1004\1901686465,01 Aug 2022,"6,703.00",
LONDON UNDERGROUND LTD,EVENHEIGHTS LTD,Vehicle Operating Leases,1005\5110147378,10 Aug 2022,"6,700.00",
LONDON UNDERGROUND LTD,OLDHAM ENGINEERING LTD,Fleet,1005\5110147338,10 Aug 2022,"6,700.00",
LONDON BUS SERVICES LTD,TRUEFORM ENGINEERING LTD,Building Maintenance & Repairs,1006\5110145543,04 Aug 2022,"6,698.15",
LUL NOMINEE SSL LIMITED,SCHUNK CARBON TECHNOLOGY LIMITED,Fleet,1031\5110132588,29 Jul 2022,"6,690.53",
LUL NOMINEE BCV LIMITED,CRANESERVE,Maintenance Materials,1033\5110141220,29 Jul 2022,"6,662.40",
LUL NOMINEE SSL LIMITED,HYDER CONSULTING (UK) LTD,Planning & Development Consultancy,1031\5110148475,12 Aug 2022,"6,652.54",
TRANSPORT TRADING LTD,LONDON BOROUGH OF NEWHAM ,Rates,1004\1901686380,01 Aug 2022,"6,650.00",
LONDON UNDERGROUND LTD,4 RAIL SERVICES LTD,Building Maintenance & Repairs,1005\5110149367,19 Aug 2022,"6,635.70",
RAIL FOR LONDON LIMITED,STADLER PANKOW GMBH,Vehicle Parts General,1020\5110132809,29 Jul 2022,"6,609.59",
LONDON UNDERGROUND LTD,TIME & FREQUENCY SOLUTIONS LTD,Building Maintenance & Repairs,1005\5110142045,28 Jul 2022,"6,600.00",
LONDON UNDERGROUND LTD,LESMAC (FASTENERS) LTD,Maintenance Materials,1005\5110143112,03 Aug 2022,"6,600.00",
LONDON UNDERGROUND LTD,HAYLEY GROUP PLC,Fleet,1005\5110131926,27 Jul 2022,"6,590.00",
SURFACE TRANSPORT CORP,HUNTRESS SEARCH LTD,Passenger Surveys,1002\5110139376,17 Aug 2022,"6,585.34",
LONDON UNDERGROUND LTD,4 RAIL SERVICES LTD,Building Maintenance & Repairs,1005\5110144490,05 Aug 2022,"6,570.00",
LUL NOMINEE SSL LIMITED,BPH RAIL & CIVIL ENGINEERING LTD,Electrical & Electronic Engineering,1031\5110145072,15 Aug 2022,"6,550.26",
LONDON UNDERGROUND LTD,EVENHEIGHTS LTD,Vehicle Operating Leases,1005\5110147332,10 Aug 2022,"6,550.00",
TFL CORPORATE,AECOM LTD,Management & Support Consultancy,1001\5110144120,18 Aug 2022,"6,549.00",
TRANSPORT TRADING LTD,LONDON BOROUGH OF CAMDEN,Rates,1004\1901686401,01 Aug 2022,"6,544.00",
LONDON UNDERGROUND LTD,TYLER BROTHERS (S-IN-A) LTD,Fleet,1005\5110142644,29 Jul 2022,"6,540.00",
LONDON UNDERGROUND LTD,HAYLEY GROUP PLC,Maintenance Materials,1005\5110137046,10 Aug 2022,"6,533.57",
LUL NOMINEE BCV LIMITED,KINGSBEECH LTD,Building Maintenance & Repairs,1033\5110144192,04 Aug 2022,"6,517.71",
LONDON UNDERGROUND LTD,4 RAIL SERVICES LTD,Building Maintenance & Repairs,1005\5110139077,25 Jul 2022,"6,516.10",
LONDON UNDERGROUND LTD,RIVERSIDE TRUCK RENTAL LIMITED,Vehicle Operating Leases,1005\5110145002,10 Aug 2022,"6,510.00",
LUL NOMINEE SSL LIMITED,CRANESERVE,Maintenance Materials,1031\5110141219,29 Jul 2022,"6,507.80",
TFL CORPORATE,EDENRED (UK GROUP) LIMITED,Staff Welfare Benefits,1001\5110141877,28 Jul 2022,"6,500.00",
TFL CORPORATE,C.J. GRAY LTD,Management & Support Consultancy,1001\5110132545,27 Jul 2022,"6,500.00",
LONDON UNDERGROUND LTD,DERLIN CONSTRUCTION LTD,Plant & Equipment Purchases,1005\5110149800,19 Aug 2022,"6,500.00",
LONDON UNDERGROUND LTD,HEGENSCHEIDT-MFD GMBH,Maintenance Materials,1005\5110133490,04 Aug 2022,"6,488.00",
SURFACE TRANSPORT CORP,HYDER CONSULTING (UK) LTD,Planning & Development Consultancy,1002\5110139036,05 Aug 2022,"6,483.00",
LUL NOMINEE SSL LIMITED,ERIKS  EMS,Component Repairs Sub Contracted,1031\5110131441,27 Jul 2022,"6,480.63",
LUL NOMINEE SSL LIMITED,ERIKS  EMS,Component Repairs Sub Contracted,1031\5110139443,17 Aug 2022,"6,480.63",
TFL CORPORATE,ATKINS LIMITED,Management & Support Consultancy,1001\5110136840,10 Aug 2022,"6,475.00",
TFL CORPORATE,WSP UK LTD,Professional Engineering Services,1001\5110129886,26 Jul 2022,"6,473.00",
LONDON UNDERGROUND LTD,FELTHAM COACHWORKS LTD,Vehicle Repairs & Maintenance,1005\5110140801,27 Jul 2022,"6,467.74",
LUL NOMINEE SSL LIMITED,PRO ACCESS SCAFFOLDING LIMITED,Civil Engineering Construction Works,1031\5110137924,27 Jul 2022,"6,465.00",
SURFACE TRANSPORT CORP,TELENT TECHNOLOGY SERVICES LTD,Traffic Signals,1002\5110137342,10 Aug 2022,"6,464.10",
LONDON TRANSPORT MUSEUM,CISION GROUP LTD,Marketing Services,1011\5110142502,04 Aug 2022,"6,460.00",
LONDON UNDERGROUND LTD,VOITH TURBO LTD,Fleet,1005\5110138875,16 Aug 2022,"6,454.10",
LONDON UNDERGROUND LTD,EQUANS SERVICES LIMITED,Fire and Safety Equipment,1005\5110138445,10 Aug 2022,"6,449.41",
LONDON UNDERGROUND LTD,HAYLEY GROUP PLC,Building Maintenance & Repairs,1005\5110136573,10 Aug 2022,"6,449.40",
RAIL FOR LONDON LIMITED,HACKNEY COMMUNITY TRANSPORT,Rail Replacement Service Costs,1020\5110132502,28 Jul 2022,"6,448.00",
TFL CORPORATE,REED SPECIALIST RECRUITMENT LTD,Agency Staff,1001\1900118616,27 Jul 2022,"6,445.28",
TFL CORPORATE,REED SPECIALIST RECRUITMENT LTD,Agency Staff,1001\1900123181,17 Aug 2022,"6,445.28",
LUL NOMINEE BCV LIMITED,SCHWIHAG GMBH,Track General Maintenance,1033\5110139636,19 Aug 2022,"6,435.00",
TFL CORPORATE,WSO2 UK LIMITED,Software Maintenance,1001\5110131050,27 Jul 2022,"6,428.88",
LONDON UNDERGROUND LTD,MODULAR DISTRIBUTION SYSTEMS,Signalling Systems,1005\5110132462,27 Jul 2022,"6,415.20",
LONDON UNDERGROUND LTD,MODULAR DISTRIBUTION SYSTEMS,Signalling Systems,1005\5110135515,03 Aug 2022,"6,415.20",
LONDON UNDERGROUND LTD,TRENITALIA C2C LTD,National Rail Qualifying Expenditure Charges,1005\5110137842,08 Aug 2022,"6,410.29",
CYCLE HIRE SCHEME,SERCO LTD,Concession Maintenance Charge,1016\5110131709,03 Aug 2022,"6,409.60",
LUL NOMINEE SSL LIMITED,ERIKS  EMS,Component Repairs Sub Contracted,1031\5110139434,17 Aug 2022,"6,404.63",
TTL PROPERTIES LTD,MATT HUTCHINGS QC,Legal Fees,1040\5110146788,15 Aug 2022,"6,400.00",
RAIL FOR LONDON LIMITED,CEEQUAL,Management & Support Consultancy,1020\5110145244,09 Aug 2022,"6,393.00",
LUL NOMINEE SSL LIMITED,SMS,Civil Engineering Construction Works,1031\5110149478,17 Aug 2022,"6,390.92",
LONDON UNDERGROUND LTD,DENCO LUBRICATION LTD,Stock of Lifts and Escalators,1005\5110148027,19 Aug 2022,"6,384.00",
TFL CORPORATE,FAITHFUL+GOULD,Management & Support Consultancy,1001\5110131400,27 Jul 2022,"6,380.00",
LONDON UNDERGROUND LTD,CITY OF LONDON ,Civil Engineering Construction Works,1005\5110150039,19 Aug 2022,"6,364.09",
LONDON UNDERGROUND LTD,NETWORK RAIL COMMERCIAL PROPERTY,National Rail Long Term Charges,1005\5110136718,10 Aug 2022,"6,348.22",
DIAL A RIDE,BEXLEY ACCESSIBLE TRANSPORT SCHEME,Operator Costs,1010\5110148740,17 Aug 2022,"6,347.15",
LONDON UNDERGROUND LTD,CONCEPT SITE INVESTIGATIONS,MR Construction Costs,1005\5110141433,04 Aug 2022,"6,339.70",
TFL CORPORATE,REED SPECIALIST RECRUITMENT LTD,Agency Staff,1001\1900119241,03 Aug 2022,"6,335.73",
TFL CORPORATE,REED SPECIALIST RECRUITMENT LTD,Agency Staff,1001\1900120589,10 Aug 2022,"6,335.73",
TRANSPORT TRADING LTD,LONDON BOROUGH OF HILLINGDON,Rates,1004\1901686455,01 Aug 2022,"6,330.00",
LONDON UNDERGROUND LTD,TELENT TECHNOLOGY SERVICES LTD,Security Equipment,1005\5110131086,04 Aug 2022,"6,328.33",
LONDON UNDERGROUND LTD,WILLIAM COOK RAIL LTD,Fleet,1005\5110136329,01 Aug 2022,"6,315.00",
TFL CORPORATE,INVESTIGO,Management & Support Consultancy,1001\5110147115,09 Aug 2022,"6,300.00",
TFL CORPORATE,MATT HUTCHINGS QC,Legal Fees,1001\5110146795,15 Aug 2022,"6,300.00",
RAIL FOR LONDON LIMITED,OTB ENGINEERING LTD,Professional Engineering Services,1020\5110140962,28 Jul 2022,"6,300.00",
RAIL FOR LONDON LIMITED,THALES GROUND TRANSPORTATION SYSTEM,Management & Support Consultancy,1020\5110134455,03 Aug 2022,"6,289.25",
LONDON UNDERGROUND LTD,FIRSTCO LIMITED,Traction Current,1005\5110148742,19 Aug 2022,"6,278.95",
TRANSPORT TRADING LTD,CITY OF WESTMINSTER,Rates,1004\1901686447,01 Aug 2022,"6,277.00",
LONDON UNDERGROUND LTD,MODULAR DISTRIBUTION SYSTEMS,Escalators,1005\5110144934,04 Aug 2022,"6,265.80",
LONDON UNDERGROUND LTD,RHINO DOORS,MR Construction Costs,1005\5110140907,05 Aug 2022,"6,250.00",
LONDON UNDERGROUND LTD,UNIPART RAIL LTD,Plant & Equipment Purchases,1005\5110135335,03 Aug 2022,"6,249.31",
RAIL FOR LONDON LIMITED,TURNER & TOWNSEND PROJECT ,Management & Support Consultancy,1020\5110135803,08 Aug 2022,"6,235.04",
LONDON UNDERGROUND LTD,EVENHEIGHTS LTD,Vehicle Operating Leases,1005\5110147392,16 Aug 2022,"6,220.00",
LONDON UNDERGROUND LTD,VOITH TURBO LTD,Fleet,1005\5110131824,27 Jul 2022,"6,209.47",
LONDON UNDERGROUND LTD,VOITH TURBO LTD,Fleet,1005\5110137864,10 Aug 2022,"6,209.47",
LONDON UNDERGROUND LTD,VOITH TURBO LTD,Fleet,1005\5110135726,08 Aug 2022,"6,208.97",
LONDON UNDERGROUND LTD,EQUANS SERVICES LIMITED,Equipment Repairs & Maintenance,1005\5110145553,18 Aug 2022,"6,196.40",
LONDON UNDERGROUND LTD,LB FOSTER TEW PLUS,Lift Maintenance,1005\5110143121,03 Aug 2022,"6,194.93",
LONDON UNDERGROUND LTD,PULLMAN RAIL LTD,Fleet,1005\5110128911,10 Aug 2022,"6,190.12",
LONDON UNDERGROUND LTD,PULLMAN RAIL LTD,Fleet,1005\5110128935,10 Aug 2022,"6,190.12",
TFL CORPORATE,BURGES SALMON LLP,Legal Fees,1001\5110147795,10 Aug 2022,"6,189.00",
LONDON UNDERGROUND LTD,PROGRESS RAIL SERVICES UK LTD,Track General Maintenance,1005\5110131758,26 Jul 2022,"6,186.00",
LUL NOMINEE SSL LIMITED,WESTCODE UK LIMITED,Fleet,1031\5110140276,26 Jul 2022,"6,177.60",
TFL CORPORATE,XPS PENSIONS LIMITED,Management & Support Consultancy,1001\5110135187,27 Jul 2022,"6,160.26",
SURFACE TRANSPORT CORP,REDSPEED INTERNATIONAL  LTD,Maintenance of Plant & Equipment,1002\5110141494,17 Aug 2022,"6,146.30",
LUL NOMINEE SSL LIMITED,WESTCODE UK LIMITED,Fleet,1031\5110148738,16 Aug 2022,"6,123.20",
LUL NOMINEE SSL LIMITED,HOLBRO ENGINEERING LTD,Fleet,1031\5110141440,27 Jul 2022,"6,120.00",
LT MUSEUM TRADING LTD,JMT PRODUCT COLLECTIONS LTD,LTM Purchase of Gifts for Resale,1024\1900021765,10 Aug 2022,"6,110.40",
TFL CORPORATE,COMPUTACENTER PLC,Software Maintenance,1001\5110135760,08 Aug 2022,"6,100.00",
TFL CORPORATE,COMPUTACENTER PLC,Software Maintenance,1001\5110135763,08 Aug 2022,"6,100.00",
LONDON UNDERGROUND LTD,TIDYCO LTD,Fleet,1005\5110135226,03 Aug 2022,"6,093.99",
RFL (IINFRASTRUCTURE) LTD,COMPUTACENTER PLC,Computer Software,1025\5110133485,02 Aug 2022,"6,092.44",
LONDON UNDERGROUND LTD,PERCY LANE PRODUCTS,Fleet,1005\5110092688,05 Aug 2022,"6,091.95",
LONDON UNDERGROUND LTD,CREACTIVE DESIGN LTD,Fleet,1005\5110148427,18 Aug 2022,"6,077.00",
TFL CORPORATE,REED SPECIALIST RECRUITMENT LTD,Agency Staff,1001\1900118639,27 Jul 2022,"6,063.00",
TFL CORPORATE,REED SPECIALIST RECRUITMENT LTD,Agency Staff,1001\1900119221,03 Aug 2022,"6,063.00",
TFL CORPORATE,REED SPECIALIST RECRUITMENT LTD,Agency Staff,1001\1900120480,10 Aug 2022,"6,063.00",
TFL CORPORATE,REED SPECIALIST RECRUITMENT LTD,Agency Staff,1001\1900123223,17 Aug 2022,"6,063.00",
LONDON BUS SERVICES LTD,NEL HYDROGEN A/S,Vehicle Repairs & Maintenance,1006\5110131516,29 Jul 2022,"6,059.00",
TFL CORPORATE,CORPORATE DOCUMENT SERVICES LTD,Non Permanent Signage And Way Finding,1001\5110141508,01 Aug 2022,"6,044.93",
TTL PROPERTIES LTD,4 RAIL SERVICES LTD,Building Maintenance & Repairs,1040\5110145629,05 Aug 2022,"6,031.80",
LUL NOMINEE BCV LIMITED,SAFETY KLEEN UK LTD,Equipment Repairs & Maintenance,1033\5110131769,01 Aug 2022,"6,024.65",
